Workbook

Sheet INFO
A1: COMPETIÇÃO: | C1: 32o CAMPEONATO BRASILEIRO INDIVIDUAL
A2: LOCAL: | C2: SÃO PAULO/SP
A3: DATA: | C3: 16 a 19/junho de 2022
A4: CATEGORIA: | C4: SUB-18
A6: FONTE UTILIZADA: | B6: ARIAL
A8: CORES UTILIZADAS:
B10: R: 255 | C10: 1a Divisão (Série Ouro) | D10: R: 255 | E10: 5a Divisão (Copa) | F10: R: 0
B11: G: 255 | D11: G: 192 | F11: G: 176
B12: B: 0 | D12: B: 0 | F12: B: 240
B14: R: 0 | C14: =$C$10 -> 1a Divisão (Série Ouro) | D14: R: 255 | E14: =$E$10 -> 5a Divisão (Copa) | F14: R: 204
B15: G: 96 | D15: G: 226 | F15: G: 236
B16: B: 39 | D16: B: 133 | F16: B: 255
B18: R: 0 | C18: 2a Divisão (Série Prata) | D18: R: 191 | E18: 6a Divisão | F18: R: 54
B19: G: 255 | D19: G: 191 | F19: G: 96
B20: B: 0 | D20: B: 191 | F20: B: 146
B22: R: 0 | C22: =$C$18 -> 2a Divisão (Série Prata) | D22: R: 234 | E22: =$E$18 -> 6a Divisão | F22: R: 255
B23: G: 32 | D23: G: 234 | F23: G: 255
B24: B: 96 | D24: B: 234 | F24: B: 204
B26: R: 54 | C26: 3a Divisão (Série Bronze) | D26: R: 247 | E26: 7a Divisão | F26: R: 255
B27: G: 96 | D27: G: 150 | F27: G: 0
B28: B: 146 | D28: B: 70 | F28: B: 255
B30: R: 184 | C30: =$C$26 -> 3a Divisão (Série Bronze) | D30: R: 250 | E30: =$E$26 -> 7a Divisão | F30: R: 255
B31: G: 204 | D31: G: 191 | F31: G: 255
B32: B: 228 | D32: B: 143 | F32: B: 204
C34: 4a Divisão (Série Extra) | D34: R: 0
D35: G: 176
D36: B: 80
C38: =$C$34 -> 4a Divisão (Série Extra) | D38: R: 204
D39: G: 255
D40: B: 204

Sheet RANKING
A1: POS. | B1: ATLETAS | C1: ESTADO | D1: SIGLA
A2: 1 | B2: LEO LIMA | C2: SAO PAULO | D2: =VLOOKUP($C2,ESTADOS!$A$2:$B$28,2,FALSE) -> SP | F2: >>> Atenção <<<
A3: 2 | B3: PEDRO ANTONIO | C3: SAO PAULO | D3: =VLOOKUP($C3,ESTADOS!$A$2:$B$28,2,FALSE) -> SP | F3: Para completar o cálculo da 1a Fase proceda da seguinte forma:
A4: 3 | B4: TUGUINHA | C4: SAO PAULO | D4: =VLOOKUP($C4,ESTADOS!$A$2:$B$28,2,FALSE) -> SP | F4: 1) Coloque os Botonistas do mesmo Estado/Clube dentro
A5: 4 | B5: CAROL | C5: SAO PAULO | D5: =VLOOKUP($C5,ESTADOS!$A$2:$B$28,2,FALSE) -> SP | F5: de cada bloco.
A6: 5 | B6: IGOR COSTA | C6: SAO PAULO | D6: =VLOOKUP($C6,ESTADOS!$A$2:$B$28,2,FALSE) -> SP | F6: • 2 botonistas: posições 1 e 4 ou 2 e 3 ou 5 e 8 ou 6 e 7
A7: 6 | B7: VITOR HUGO | C7: SAO PAULO | D7: =VLOOKUP($C7,ESTADOS!$A$2:$B$28,2,FALSE) -> SP | F7: ou 9 e 12 ou 10 e 11 ou 13 e 16 ou 14 e 15.
A8: 7 | B8: TUSURINHA | C8: SAO PAULO | D8: =VLOOKUP($C8,ESTADOS!$A$2:$B$28,2,FALSE) -> SP | F8: • 3 botonistas: posições 1, 2 e 4 ou 5, 6 e 8 ou
A9: 8 | B9: LUIZ GULHERME | C9: SAO PAULO | D9: =VLOOKUP($C9,ESTADOS!$A$2:$B$28,2,FALSE) -> SP | F9: 9, 10 e 12 ou 13, 14 e 16.
A10: 9 | B10: PEDRINHO | C10: SAO PAULO | D10: =VLOOKUP($C10,ESTADOS!$A$2:$B$28,2,FALSE) -> SP | F10: • 4 botonistas: posições 1 a 4 ou 5 a 8 ou 9 a 12 ou 13 a 16.
A11: 10 | B11: WALLACE RINCO | C11: SAO PAULO | D11: =VLOOKUP($C11,ESTADOS!$A$2:$B$28,2,FALSE) -> SP
A12: 11 | B12: DAVI ANDRADE | C12: SAO PAULO | D12: =VLOOKUP($C12,ESTADOS!$A$2:$B$28,2,FALSE) -> SP
A13: 12 | B13: MELLI JR | C13: SAO PAULO | D13: =VLOOKUP($C13,ESTADOS!$A$2:$B$28,2,FALSE) -> SP
A14: 13 | B14: RODRIGO | C14: PERNAMBUCO | D14: =VLOOKUP($C14,ESTADOS!$A$2:$B$28,2,FALSE) -> PE
A15: 14 | B15: LINNO BALA | C15: PERNAMBUCO | D15: =VLOOKUP($C15,ESTADOS!$A$2:$B$28,2,FALSE) -> PE
A16: 15 | B16: DANIEL COUTO | C16: RIO DE JANEIRO | D16: =VLOOKUP($C16,ESTADOS!$A$2:$B$28,2,FALSE) -> RJ
A17: 16 | B17: VERISSON | C17: PERNAMBUCO | D17: =VLOOKUP($C17,ESTADOS!$A$2:$B$28,2,FALSE) -> PE

Sheet ESTADOS
A1: ESTADO | B1: SIGLA
A2: ACRE | B2: AC
A3: ALAGOAS | B3: AL
A4: AMAPA | B4: AP
A5: AMAZONAS | B5: AM
A6: BAHIA | B6: BA
A7: CEARA | B7: CE
A8: DISTRITO FEDERAL | B8: DF
A9: ESPIRITO SANTO | B9: ES
A10: GOIAS | B10: GO
A11: MARANHAO | B11: MA
A12: MATO GROSSO | B12: MT
A13: MATO GROSSO DO SUL | B13: MS
A14: MINAS GERAIS | B14: MG
A15: PARA | B15: PA
A16: PARAIBA | B16: PB
A17: PARANA | B17: PR
A18: PERNAMBUCO | B18: PE
A19: PIAUI | B19: PI
A20: RIO DE JANEIRO | B20: RJ
A21: RIO GRANDE DO NORTE | B21: RN
A22: RIO GRANDE DO SUL | B22: RS
A23: RONDONIA | B23: RO
A24: RORAIMA | B24: RR
A25: SANTA CATARINA | B25: SC
A26: SAO PAULO | B26: SP
A27: SERGIPE | B27: SE
A28: TOCANTINS | B28: TO

Sheet F1
B4: 32o CAMPEONATO BRASILEIRO INDIVIDUAL
B6: =CONCATENATE(INFO!$C$4, " | ", "1a Divisão") -> SUB-18 | 1a Divisão | P6: 1a Fase | AU6: POSIÇÃO DOS ATLETAS | AZ6: SEQUÊNCIA | CASA x FORA
A7: Grp | B7: Rod. | C7: Data/Hora | D7: Mesas | E7: Jogos | R7: Critérios | U7: OK | W7: MV | X7: ME | Y7: MD | Z7: MGP | AA7: MGC | AB7: VV | AC7: VE | AD7: VD | AE7: VGP | AF7: VGC | AH7: Col. | AI7: Sort | AJ7: Atleta | AK7: PG | AL7: J | AM7: V | AN7: E | AO7: D | AP7: GP | AQ7: GC | AR7: SG | AS7: Chave Sorteiro | AU7: COL. | AV7: ATLETA | AW7: CASA | AX7: FORA | AZ7: 1 | BA7: 2 | BB7: 3 | BC7: 4 | BD7: 5 | BE7: 6 | BF7: 7 | BG7: 8 | BH7: 9 | BI7: 10 | BJ7: 11 | BK7: 12 | BL7: 13 | BM7: 14 | BN7: 15
AZ8: =IF(COUNTIF($E$18:$I$25,$Z8)=0,"",IF(COUNTIF($E$18:$E$25,$Z8)=1,"C","F")) -> 
A9: 1 | B9: 1 | C9: 2022-06-17 | D9: 57 | E9: =VLOOKUP($R9,$AU$9:$AV$24,2,0) -> LEO LIMA (SP) | J9: 9 | K9: 1 | L9: =VLOOKUP($S9,$AU$9:$AV$24,2,0) -> CAROL (SP) | R9: 1 | S9: 4 | U9: =COUNTBLANK(J9:K9) -> 0 | W9: =IF(OR(J9="",K9=""),"",IF(OR(E9="WO",L9="WO"),"",IF(J9>K9,1,0))) -> 1 | X9: =IF(OR(J9="",K9=""),"",IF(OR(E9="WO",L9="WO"),"",IF(J9=K9,1,0))) -> 0 | Y9: =IF(OR(J9="",K9=""),"",IF(OR(E9="WO",L9="WO"),"",IF(J9<K9,1,0))) -> 0 | Z9: =IF(OR(J9="",K9=""),"",IF(OR(E9="WO",L9="WO"),"",J9)) -> 9 | AA9: =IF(OR(J9="",K9=""),"",IF(OR(E9="WO",L9="WO"),"",K9)) -> 1 | AB9: =IF(OR(J9="",K9=""),"",IF(OR(E9="WO",L9="WO"),"",IF(J9<K9,1,0))) -> 0 | AC9: =IF(OR(J9="",K9=""),"",IF(OR(E9="WO",L9="WO"),"",IF(J9=K9,1,0))) -> 0 | AD9: =IF(OR(J9="",K9=""),"",IF(OR(E9="WO",L9="WO"),"",IF(J9>K9,1,0))) -> 1 | AE9: =IF(OR(J9="",K9=""),"",IF(OR(E9="WO",L9="WO"),"",K9)) -> 1 | AF9: =IF(OR(J9="",K9=""),"",IF(OR(E9="WO",L9="WO"),"",J9)) -> 9 | AH9: 1 | AI9: =RANK(AS9,$AS$9:$AS$24) -> 1 | AJ9: =AV9 -> LEO LIMA (SP) | AK9: =SUM(AM9*3)+AN9 -> 43 | AL9: =SUM(AM9:AO9) -> 15 | AM9: =SUMIF(E$9:E$142,AJ9,W$9:W$142)+SUMIF(L$9:L$142,AJ9,AB$9:AB$142) -> 14 | AN9: =SUMIF(E$9:E$142,AJ9,X$9:X$142)+SUMIF(L$9:L$142,AJ9,AC$9:AC$142) -> 1 | AO9: =SUMIF(E$9:E$142,AJ9,Y$9:Y$142)+SUMIF(L$9:L$142,AJ9,AD$9:AD$142) -> 0 | AP9: =SUMIF(E$9:E$142,AJ9,Z$9:Z$142)+SUMIF(L$9:L$142,AJ9,AE$9:AE$142) -> 115 | AQ9: =SUMIF(E$9:E$142,AJ9,AA$9:AA$142)+SUMIF(L$9:L$142,AJ9,AF$9:AF$142) -> 29 | AR9: =SUM(AP9-AQ9) -> 86 | AS9: =(AK9*1000000000)+((AM9)*1000000)+((AP9-AQ9)*1000)+AP9+AH9/100 -> 4.301408612e+10 | AU9: 1 | AV9: =IFERROR(CONCATENATE(RANKING!$B2," (",RANKING!$D2,")"),"") -> LEO LIMA (SP) | AW9: =COUNTIF($E$9:$I$142,$AV9) -> 15 | AX9: =COUNTIF($L$9:$P$142,$AV9) -> 0 | AZ9: =IF(COUNTIF($E$9:$P$16,$AJ9)=0,"",IF(COUNTIF($E$9:$I$16,$AJ9)=1,"CASA","FORA")) -> CASA | BA9: =IF(COUNTIF($E$18:$P$25,$AJ9)=0,"",IF(COUNTIF($E$18:$I$25,$AJ9)=1,"CASA","FORA")) -> CASA | BB9: =IF(COUNTIF($E$27:$P$34,$AJ9)=0,"",IF(COUNTIF($E$27:$I$34,$AJ9)=1,"CASA","FORA")) -> CASA | BC9: =IF(COUNTIF($E$36:$P$43,$AJ9)=0,"",IF(COUNTIF($E$36:$I$43,$AJ9)=1,"CASA","FORA")) -> CASA | BD9: =IF(COUNTIF($E$45:$P$52,$AJ9)=0,"",IF(COUNTIF($E$45:$I$52,$AJ9)=1,"CASA","FORA")) -> CASA | BE9: =IF(COUNTIF($E$54:$P$61,$AJ9)=0,"",IF(COUNTIF($E$54:$I$61,$AJ9)=1,"CASA","FORA")) -> CASA | BF9: =IF(COUNTIF($E$63:$P$70,$AJ9)=0,"",IF(COUNTIF($E$63:$I$70,$AJ9)=1,"CASA","FORA")) -> CASA | BG9: =IF(COUNTIF($E$72:$P$79,$AJ9)=0,"",IF(COUNTIF($E$72:$I$79,$AJ9)=1,"CASA","FORA")) -> CASA | BH9: =IF(COUNTIF($E$81:$P$88,$AJ9)=0,"",IF(COUNTIF($E$81:$I$88,$AJ9)=1,"CASA","FORA")) -> CASA | BI9: =IF(COUNTIF($E$90:$P$97,$AJ9)=0,"",IF(COUNTIF($E$90:$I$97,$AJ9)=1,"CASA","FORA")) -> CASA | BJ9: =IF(COUNTIF($E$99:$P$106,$AJ9)=0,"",IF(COUNTIF($E$99:$I$106,$AJ9)=1,"CASA","FORA")) -> CASA | BK9: =IF(COUNTIF($E$108:$P$115,$AJ9)=0,"",IF(COUNTIF($E$108:$I$115,$AJ9)=1,"CASA","FORA")) -> CASA | BL9: =IF(COUNTIF($E$117:$P$124,$AJ9)=0,"",IF(COUNTIF($E$117:$I$124,$AJ9)=1,"CASA","FORA")) -> CASA | BM9: =IF(COUNTIF($E$126:$P$133,$AJ9)=0,"",IF(COUNTIF($E$126:$I$133,$AJ9)=1,"CASA","FORA")) -> CASA | BN9: =IF(COUNTIF($E$135:$P$142,$AJ9)=0,"",IF(COUNTIF($E$135:$I$142,$AJ9)=1,"CASA","FORA")) -> CASA
D10: 58 | E10: PEDRO ANTONIO (SP) | J10: 5 | K10: 0 | L10: TUGUINHA (SP) | R10: 2 | S10: 3 | U10: 0 | W10: 1 | X10: 0 | Y10: 0 | Z10: 5 | AA10: 0 | AB10: 0 | AC10: 0 | AD10: 1 | AE10: 0 | AF10: 5 | AH10: 2 | AI10: =RANK(AS10,$AS$9:$AS$24) -> 10 | AJ10: =AV10 -> PEDRO ANTONIO (SP) | AK10: =SUM(AM10*3)+AN10 -> 18 | AL10: =SUM(AM10:AO10) -> 15 | AM10: 5 | AN10: 3 | AO10: 7 | AP10: 38 | AQ10: 45 | AR10: =SUM(AP10-AQ10) -> -7 | AS10: =(AK10*1000000000)+((AM10)*1000000)+((AP10-AQ10)*1000)+AP10+AH10/100 -> 1.800499304e+10 | AU10: 2 | AV10: =IFERROR(CONCATENATE(RANKING!$B3," (",RANKING!$D3,")"),"") -> PEDRO ANTONIO (SP) | AW10: 14 | AX10: 1 | AZ10: CASA | BA10: CASA | BB10: FORA | BC10: CASA | BD10: CASA | BE10: CASA | BF10: CASA | BG10: CASA | BH10: CASA | BI10: CASA | BJ10: CASA | BK10: CASA | BL10: CASA | BM10: CASA | BN10: CASA
D11: 59 | E11: IGOR COSTA (SP) | J11: 3 | K11: 1 | L11: LUIZ GULHERME (SP) | R11: 5 | S11: 8 | U11: 0 | W11: 1 | X11: 0 | Y11: 0 | Z11: 3 | AA11: 1 | AB11: 0 | AC11: 0 | AD11: 1 | AE11: 1 | AF11: 3 | AH11: 3 | AI11: 11 | AJ11: TUGUINHA (SP) | AK11: 17 | AL11: 15 | AM11: 5 | AN11: 2 | AO11: 8 | AP11: 31 | AQ11: 54 | AR11: -23 | AS11: 1.700497703e+10 | AU11: 3 | AV11: =IFERROR(CONCATENATE(RANKING!$B4," (",RANKING!$D4,")"),"") -> TUGUINHA (SP) | AW11: 13 | AX11: 2 | AZ11: FORA | BA11: FORA | BB11: CASA | BC11: CASA | BD11: CASA | BE11: CASA | BF11: CASA | BG11: CASA | BH11: CASA | BI11: CASA | BJ11: CASA | BK11: CASA | BL11: CASA | BM11: CASA | BN11: CASA
D12: 60 | E12: VITOR HUGO (SP) | J12: 0 | K12: 1 | L12: TUSURINHA (SP) | R12: 6 | S12: 7 | U12: 0 | W12: 0 | X12: 0 | Y12: 1 | Z12: 0 | AA12: 1 | AB12: 1 | AC12: 0 | AD12: 0 | AE12: 1 | AF12: 0 | AH12: 4 | AI12: 16 | AJ12: CAROL (SP) | AK12: 3 | AL12: 15 | AM12: 1 | AN12: 0 | AO12: 14 | AP12: 18 | AQ12: 52 | AR12: -34 | AS12: 3000966018 | AU12: 4 | AV12: =IFERROR(CONCATENATE(RANKING!$B5," (",RANKING!$D5,")"),"") -> CAROL (SP) | AW12: 12 | AX12: 3 | AZ12: FORA | BA12: FORA | BB12: FORA | BC12: CASA | BD12: CASA | BE12: CASA | BF12: CASA | BG12: CASA | BH12: CASA | BI12: CASA | BJ12: CASA | BK12: CASA | BL12: CASA | BM12: CASA | BN12: CASA
A13: 1 | C13: 09:00:00 | D13: 61 | E13: PEDRINHO (SP) | J13: 1 | K13: 2 | L13: MELLI JR (SP) | R13: 9 | S13: 12 | U13: 0 | W13: 0 | X13: 0 | Y13: 1 | Z13: 1 | AA13: 2 | AB13: 1 | AC13: 0 | AD13: 0 | AE13: 2 | AF13: 1 | AH13: 5 | AI13: 6 | AJ13: IGOR COSTA (SP) | AK13: 24 | AL13: 15 | AM13: 8 | AN13: 0 | AO13: 7 | AP13: 39 | AQ13: 42 | AR13: -3 | AS13: 2.400799704e+10 | AU13: 5 | AV13: =IFERROR(CONCATENATE(RANKING!$B6," (",RANKING!$D6,")"),"") -> IGOR COSTA (SP) | AW13: 11 | AX13: 4 | AZ13: CASA | BA13: CASA | BB13: CASA | BC13: FORA | BD13: FORA | BE13: FORA | BF13: FORA | BG13: CASA | BH13: CASA | BI13: CASA | BJ13: CASA | BK13: CASA | BL13: CASA | BM13: CASA | BN13: CASA
A14: 1 | D14: 62 | E14: WALLACE RINCO (SP) | J14: 4 | K14: 0 | L14: DAVI ANDRADE (SP) | R14: 10 | S14: 11 | U14: 0 | W14: 1 | X14: 0 | Y14: 0 | Z14: 4 | AA14: 0 | AB14: 0 | AC14: 0 | AD14: 1 | AE14: 0 | AF14: 4 | AH14: 6 | AI14: 9 | AJ14: VITOR HUGO (SP) | AK14: 19 | AL14: 15 | AM14: 5 | AN14: 4 | AO14: 6 | AP14: 35 | AQ14: 41 | AR14: -6 | AS14: 1.900499404e+10 | AU14: 6 | AV14: =IFERROR(CONCATENATE(RANKING!$B7," (",RANKING!$D7,")"),"") -> VITOR HUGO (SP) | AW14: 10 | AX14: 5 | AZ14: CASA | BA14: CASA | BB14: FORA | BC14: FORA | BD14: FORA | BE14: FORA | BF14: FORA | BG14: CASA | BH14: CASA | BI14: CASA | BJ14: CASA | BK14: CASA | BL14: CASA | BM14: CASA | BN14: CASA
D15: 63 | E15: RODRIGO (PE) | J15: 2 | K15: 0 | L15: VERISSON (PE) | R15: 13 | S15: 16 | U15: 0 | W15: 1 | X15: 0 | Y15: 0 | Z15: 2 | AA15: 0 | AB15: 0 | AC15: 0 | AD15: 1 | AE15: 0 | AF15: 2 | AH15: 7 | AI15: 7 | AJ15: TUSURINHA (SP) | AK15: 21 | AL15: 15 | AM15: 7 | AN15: 0 | AO15: 8 | AP15: 31 | AQ15: 49 | AR15: -18 | AS15: 2.100698203e+10 | AU15: 7 | AV15: =IFERROR(CONCATENATE(RANKING!$B8," (",RANKING!$D8,")"),"") -> TUSURINHA (SP) | AW15: 9 | AX15: 6 | AZ15: FORA | BA15: FORA | BB15: CASA | BC15: FORA | BD15: FORA | BE15: FORA | BF15: FORA | BG15: CASA | BH15: CASA | BI15: CASA | BJ15: CASA | BK15: CASA | BL15: CASA | BM15: CASA | BN15: CASA
D16: 64 | E16: LINNO BALA (PE) | J16: 2 | K16: 4 | L16: DANIEL COUTO (RJ) | R16: 14 | S16: 15 | U16: 0 | W16: 0 | X16: 0 | Y16: 1 | Z16: 2 | AA16: 4 | AB16: 1 | AC16: 0 | AD16: 0 | AE16: 4 | AF16: 2 | AH16: 8 | AI16: 8 | AJ16: LUIZ GULHERME (SP) | AK16: 20 | AL16: 15 | AM16: 6 | AN16: 2 | AO16: 7 | AP16: 40 | AQ16: 43 | AR16: -3 | AS16: 2.000599704e+10 | AU16: 8 | AV16: =IFERROR(CONCATENATE(RANKING!$B9," (",RANKING!$D9,")"),"") -> LUIZ GULHERME (SP) | AW16: 8 | AX16: 7 | AZ16: FORA | BA16: FORA | BB16: FORA | BC16: FORA | BD16: FORA | BE16: FORA | BF16: FORA | BG16: CASA | BH16: CASA | BI16: CASA | BJ16: CASA | BK16: CASA | BL16: CASA | BM16: CASA | BN16: CASA
A17: 1 | AH17: 9 | AI17: 13 | AJ17: PEDRINHO (SP) | AK17: 14 | AL17: 15 | AM17: 3 | AN17: 5 | AO17: 7 | AP17: 31 | AQ17: 40 | AR17: -9 | AS17: 1.400299103e+10 | AU17: 9 | AV17: =IFERROR(CONCATENATE(RANKING!$B10," (",RANKING!$D10,")"),"") -> PEDRINHO (SP) | AW17: 7 | AX17: 8 | AZ17: CASA | BA17: CASA | BB17: CASA | BC17: CASA | BD17: CASA | BE17: CASA | BF17: CASA | BG17: FORA | BH17: FORA | BI17: FORA | BJ17: FORA | BK17: FORA | BL17: FORA | BM17: FORA | BN17: FORA
A18: 1 | B18: 2 | C18: =$C$9 -> 2022-06-17 | D18: 60 | E18: =VLOOKUP($R18,$AU$9:$AV$24,2,0) -> LEO LIMA (SP) | J18: 8 | K18: 1 | L18: =VLOOKUP($S18,$AU$9:$AV$24,2,0) -> TUGUINHA (SP) | R18: 1 | S18: 3 | U18: =COUNTBLANK(J18:K18) -> 0 | W18: 1 | X18: 0 | Y18: 0 | Z18: 8 | AA18: 1 | AB18: 0 | AC18: 0 | AD18: 1 | AE18: 1 | AF18: 8 | AH18: 10 | AI18: 3 | AJ18: WALLACE RINCO (SP) | AK18: 40 | AL18: 15 | AM18: 13 | AN18: 1 | AO18: 1 | AP18: 77 | AQ18: 36 | AR18: 41 | AS18: 4.001304108e+10 | AU18: 10 | AV18: =IFERROR(CONCATENATE(RANKING!$B11," (",RANKING!$D11,")"),"") -> WALLACE RINCO (SP) | AW18: 6 | AX18: 9 | AZ18: CASA | BA18: CASA | BB18: FORA | BC18: CASA | BD18: CASA | BE18: CASA | BF18: CASA | BG18: FORA | BH18: FORA | BI18: FORA | BJ18: FORA | BK18: FORA | BL18: FORA | BM18: FORA | BN18: FORA
D19: 59 | E19: PEDRO ANTONIO (SP) | J19: 1 | K19: 0 | L19: CAROL (SP) | R19: 2 | S19: 4 | U19: 0 | W19: 1 | X19: 0 | Y19: 0 | Z19: 1 | AA19: 0 | AB19: 0 | AC19: 0 | AD19: 1 | AE19: 0 | AF19: 1 | AH19: 11 | AI19: 15 | AJ19: DAVI ANDRADE (SP) | AK19: 7 | AL19: 15 | AM19: 2 | AN19: 1 | AO19: 12 | AP19: 14 | AQ19: 43 | AR19: -29 | AS19: 7001971014 | AU19: 11 | AV19: =IFERROR(CONCATENATE(RANKING!$B12," (",RANKING!$D12,")"),"") -> DAVI ANDRADE (SP) | AW19: 5 | AX19: 10 | AZ19: FORA | BA19: FORA | BB19: CASA | BC19: CASA | BD19: CASA | BE19: CASA | BF19: CASA | BG19: FORA | BH19: FORA | BI19: FORA | BJ19: FORA | BK19: FORA | BL19: FORA | BM19: FORA | BN19: FORA
D20: 62 | E20: IGOR COSTA (SP) | J20: 1 | K20: 2 | L20: TUSURINHA (SP) | R20: 5 | S20: 7 | U20: 0 | W20: 0 | X20: 0 | Y20: 1 | Z20: 1 | AA20: 2 | AB20: 1 | AC20: 0 | AD20: 0 | AE20: 2 | AF20: 1 | AH20: 12 | AI20: 5 | AJ20: MELLI JR (SP) | AK20: 28 | AL20: 15 | AM20: 9 | AN20: 1 | AO20: 5 | AP20: 44 | AQ20: 46 | AR20: -2 | AS20: 2.800899804e+10 | AU20: 12 | AV20: =IFERROR(CONCATENATE(RANKING!$B13," (",RANKING!$D13,")"),"") -> MELLI JR (SP) | AW20: 4 | AX20: 11 | AZ20: FORA | BA20: FORA | BB20: FORA | BC20: CASA | BD20: CASA | BE20: CASA | BF20: CASA | BG20: FORA | BH20: FORA | BI20: FORA | BJ20: FORA | BK20: FORA | BL20: FORA | BM20: FORA | BN20: FORA
D21: 61 | E21: VITOR HUGO (SP) | J21: 3 | K21: 2 | L21: LUIZ GULHERME (SP) | R21: 6 | S21: 8 | U21: 0 | W21: 1 | X21: 0 | Y21: 0 | Z21: 3 | AA21: 2 | AB21: 0 | AC21: 0 | AD21: 1 | AE21: 2 | AF21: 3 | AH21: 13 | AI21: 4 | AJ21: RODRIGO (PE) | AK21: 28 | AL21: 15 | AM21: 9 | AN21: 1 | AO21: 5 | AP21: 59 | AQ21: 48 | AR21: 11 | AS21: 2.800901106e+10 | AU21: 13 | AV21: =IFERROR(CONCATENATE(RANKING!$B14," (",RANKING!$D14,")"),"") -> RODRIGO (PE) | AW21: 3 | AX21: 12 | AZ21: CASA | BA21: CASA | BB21: CASA | BC21: FORA | BD21: FORA | BE21: FORA | BF21: FORA | BG21: FORA | BH21: FORA | BI21: FORA | BJ21: FORA | BK21: FORA | BL21: FORA | BM21: FORA | BN21: FORA
A22: 1 | C22: 09:30:00 | D22: 63 | E22: PEDRINHO (SP) | J22: 1 | K22: 2 | L22: DAVI ANDRADE (SP) | R22: 9 | S22: 11 | U22: 0 | W22: 0 | X22: 0 | Y22: 1 | Z22: 1 | AA22: 2 | AB22: 1 | AC22: 0 | AD22: 0 | AE22: 2 | AF22: 1 | AH22: 14 | AI22: 12 | AJ22: LINNO BALA (PE) | AK22: 15 | AL22: 15 | AM22: 4 | AN22: 3 | AO22: 8 | AP22: 31 | AQ22: 52 | AR22: -21 | AS22: 1.500397903e+10 | AU22: 14 | AV22: =IFERROR(CONCATENATE(RANKING!$B15," (",RANKING!$D15,")"),"") -> LINNO BALA (PE) | AW22: 2 | AX22: 13 | AZ22: CASA | BA22: CASA | BB22: FORA | BC22: FORA | BD22: FORA | BE22: FORA | BF22: FORA | BG22: FORA | BH22: FORA | BI22: FORA | BJ22: FORA | BK22: FORA | BL22: FORA | BM22: FORA | BN22: FORA
A23: 1 | D23: 64 | E23: WALLACE RINCO (SP) | J23: 6 | K23: 0 | L23: MELLI JR (SP) | R23: 10 | S23: 12 | U23: 0 | W23: 1 | X23: 0 | Y23: 0 | Z23: 6 | AA23: 0 | AB23: 0 | AC23: 0 | AD23: 1 | AE23: 0 | AF23: 6 | AH23: 15 | AI23: 2 | AJ23: DANIEL COUTO (RJ) | AK23: 40 | AL23: 15 | AM23: 13 | AN23: 1 | AO23: 1 | AP23: 79 | AQ23: 34 | AR23: 45 | AS23: 4.001304508e+10 | AU23: 15 | AV23: =IFERROR(CONCATENATE(RANKING!$B16," (",RANKING!$D16,")"),"") -> DANIEL COUTO (RJ) | AW23: 1 | AX23: 14 | AZ23: FORA | BA23: FORA | BB23: CASA | BC23: FORA | BD23: FORA | BE23: FORA | BF23: FORA | BG23: FORA | BH23: FORA | BI23: FORA | BJ23: FORA | BK23: FORA | BL23: FORA | BM23: FORA | BN23: FORA
D24: 57 | E24: RODRIGO (PE) | J24: 2 | K24: 6 | L24: DANIEL COUTO (RJ) | R24: 13 | S24: 15 | U24: 0 | W24: 0 | X24: 0 | Y24: 1 | Z24: 2 | AA24: 6 | AB24: 1 | AC24: 0 | AD24: 0 | AE24: 6 | AF24: 2 | AH24: 16 | AI24: 14 | AJ24: VERISSON (PE) | AK24: 10 | AL24: 15 | AM24: 3 | AN24: 1 | AO24: 11 | AP24: 22 | AQ24: 50 | AR24: -28 | AS24: 1.000297202e+10 | AU24: 16 | AV24: =IFERROR(CONCATENATE(RANKING!$B17," (",RANKING!$D17,")"),"") -> VERISSON (PE) | AW24: 0 | AX24: 15 | AZ24: FORA | BA24: FORA | BB24: FORA | BC24: FORA | BD24: FORA | BE24: FORA | BF24: FORA | BG24: FORA | BH24: FORA | BI24: FORA | BJ24: FORA | BK24: FORA | BL24: FORA | BM24: FORA | BN24: FORA
D25: 58 | E25: LINNO BALA (PE) | J25: 0 | K25: 2 | L25: VERISSON (PE) | R25: 14 | S25: 16 | U25: 0 | W25: 0 | X25: 0 | Y25: 1 | Z25: 0 | AA25: 2 | AB25: 1 | AC25: 0 | AD25: 0 | AE25: 2 | AF25: 0
A26: 1
A27: 1 | B27: 3 | C27: =$C$9 -> 2022-06-17 | D27: 62 | E27: =VLOOKUP($R27,$AU$9:$AV$24,2,0) -> LEO LIMA (SP) | J27: 7 | K27: 3 | L27: =VLOOKUP($S27,$AU$9:$AV$24,2,0) -> PEDRO ANTONIO (SP) | R27: 1 | S27: 2 | U27: =COUNTBLANK(J27:K27) -> 0 | W27: 1 | X27: 0 | Y27: 0 | Z27: 7 | AA27: 3 | AB27: 0 | AC27: 0 | AD27: 1 | AE27: 3 | AF27: 7
D28: 63 | E28: TUGUINHA (SP) | J28: 2 | K28: 1 | L28: CAROL (SP) | R28: 3 | S28: 4 | U28: 0 | W28: 1 | X28: 0 | Y28: 0 | Z28: 2 | AA28: 1 | AB28: 0 | AC28: 0 | AD28: 1 | AE28: 1 | AF28: 2
D29: 64 | E29: IGOR COSTA (SP) | J29: 3 | K29: 1 | L29: VITOR HUGO (SP) | R29: 5 | S29: 6 | U29: 0 | W29: 1 | X29: 0 | Y29: 0 | Z29: 3 | AA29: 1 | AB29: 0 | AC29: 0 | AD29: 1 | AE29: 1 | AF29: 3
D30: 57 | E30: TUSURINHA (SP) | J30: 3 | K30: 5 | L30: LUIZ GULHERME (SP) | R30: 7 | S30: 8 | U30: 0 | W30: 0 | X30: 0 | Y30: 1 | Z30: 3 | AA30: 5 | AB30: 1 | AC30: 0 | AD30: 0 | AE30: 5 | AF30: 3
A31: 1 | C31: 10:00:00 | D31: 59 | E31: PEDRINHO (SP) | J31: 2 | K31: 4 | L31: WALLACE RINCO (SP) | R31: 9 | S31: 10 | U31: 0 | W31: 0 | X31: 0 | Y31: 1 | Z31: 2 | AA31: 4 | AB31: 1 | AC31: 0 | AD31: 0 | AE31: 4 | AF31: 2
A32: 1 | D32: 58 | E32: DAVI ANDRADE (SP) | J32: 2 | K32: 4 | L32: MELLI JR (SP) | R32: 11 | S32: 12 | U32: 0 | W32: 0 | X32: 0 | Y32: 1 | Z32: 2 | AA32: 4 | AB32: 1 | AC32: 0 | AD32: 0 | AE32: 4 | AF32: 2
D33: 60 | E33: RODRIGO (PE) | J33: 2 | K33: 1 | L33: LINNO BALA (PE) | R33: 13 | S33: 14 | U33: 0 | W33: 1 | X33: 0 | Y33: 0 | Z33: 2 | AA33: 1 | AB33: 0 | AC33: 0 | AD33: 1 | AE33: 1 | AF33: 2
D34: 61 | E34: DANIEL COUTO (RJ) | J34: 7 | K34: 1 | L34: VERISSON (PE) | R34: 15 | S34: 16 | U34: 0 | W34: 1 | X34: 0 | Y34: 0 | Z34: 7 | AA34: 1 | AB34: 0 | AC34: 0 | AD34: 1 | AE34: 1 | AF34: 7
A35: 1
A36: 1 | B36: 4 | C36: =$C$9 -> 2022-06-17 | D36: 58 | E36: =VLOOKUP($R36,$AU$9:$AV$24,2,0) -> LEO LIMA (SP) | J36: 8 | K36: 2 | L36: =VLOOKUP($S36,$AU$9:$AV$24,2,0) -> IGOR COSTA (SP) | R36: 1 | S36: 5 | U36: =COUNTBLANK(J36:K36) -> 0 | W36: 1 | X36: 0 | Y36: 0 | Z36: 8 | AA36: 2 | AB36: 0 | AC36: 0 | AD36: 1 | AE36: 2 | AF36: 8
D37: 57 | E37: PEDRO ANTONIO (SP) | J37: 3 | K37: 3 | L37: VITOR HUGO (SP) | R37: 2 | S37: 6 | U37: 0 | W37: 0 | X37: 1 | Y37: 0 | Z37: 3 | AA37: 3 | AB37: 0 | AC37: 1 | AD37: 0 | AE37: 3 | AF37: 3
D38: 59 | E38: TUGUINHA (SP) | J38: 1 | K38: 4 | L38: TUSURINHA (SP) | R38: 3 | S38: 7 | U38: 0 | W38: 0 | X38: 0 | Y38: 1 | Z38: 1 | AA38: 4 | AB38: 1 | AC38: 0 | AD38: 0 | AE38: 4 | AF38: 1
D39: 60 | E39: CAROL (SP) | J39: 2 | K39: 3 | L39: LUIZ GULHERME (SP) | R39: 4 | S39: 8 | U39: 0 | W39: 0 | X39: 0 | Y39: 1 | Z39: 2 | AA39: 3 | AB39: 1 | AC39: 0 | AD39: 0 | AE39: 3 | AF39: 2
A40: 1 | C40: 10:30:00 | D40: 62 | E40: PEDRINHO (SP) | J40: 3 | K40: 3 | L40: RODRIGO (PE) | R40: 9 | S40: 13 | U40: 0 | W40: 0 | X40: 1 | Y40: 0 | Z40: 3 | AA40: 3 | AB40: 0 | AC40: 1 | AD40: 0 | AE40: 3 | AF40: 3
A41: 1 | D41: 61 | E41: WALLACE RINCO (SP) | J41: 9 | K41: 3 | L41: LINNO BALA (PE) | R41: 10 | S41: 14 | U41: 0 | W41: =IF(OR(J41="",K41=""),"",IF(OR(E41="WO",L41="WO"),"",IF(J41>K41,1,0))) -> 1 | X41: =IF(OR(J41="",K41=""),"",IF(OR(E41="WO",L41="WO"),"",IF(J41=K41,1,0))) -> 0 | Y41: =IF(OR(J41="",K41=""),"",IF(OR(E41="WO",L41="WO"),"",IF(J41<K41,1,0))) -> 0 | Z41: =IF(OR(J41="",K41=""),"",IF(OR(E41="WO",L41="WO"),"",J41)) -> 9 | AA41: =IF(OR(J41="",K41=""),"",IF(OR(E41="WO",L41="WO"),"",K41)) -> 3 | AB41: =IF(OR(J41="",K41=""),"",IF(OR(E41="WO",L41="WO"),"",IF(J41<K41,1,0))) -> 0 | AC41: =IF(OR(J41="",K41=""),"",IF(OR(E41="WO",L41="WO"),"",IF(J41=K41,1,0))) -> 0 | AD41: =IF(OR(J41="",K41=""),"",IF(OR(E41="WO",L41="WO"),"",IF(J41>K41,1,0))) -> 1 | AE41: =IF(OR(J41="",K41=""),"",IF(OR(E41="WO",L41="WO"),"",K41)) -> 3 | AF41: =IF(OR(J41="",K41=""),"",IF(OR(E41="WO",L41="WO"),"",J41)) -> 9
D42: 64 | E42: DAVI ANDRADE (SP) | J42: 0 | K42: 3 | L42: DANIEL COUTO (RJ) | R42: 11 | S42: 15 | U42: 0 | W42: 0 | X42: 0 | Y42: 1 | Z42: 0 | AA42: 3 | AB42: 1 | AC42: 0 | AD42: 0 | AE42: 3 | AF42: 0
D43: 63 | E43: MELLI JR (SP) | J43: 3 | K43: 2 | L43: VERISSON (PE) | R43: 12 | S43: 16 | U43: 0 | W43: 1 | X43: 0 | Y43: 0 | Z43: 3 | AA43: 2 | AB43: 0 | AC43: 0 | AD43: 1 | AE43: 2 | AF43: 3
A44: 1
A45: 1 | B45: 5 | C45: =$C$9 -> 2022-06-17 | D45: 60 | E45: =VLOOKUP($R45,$AU$9:$AV$24,2,0) -> LEO LIMA (SP) | J45: 7 | K45: 1 | L45: =VLOOKUP($S45,$AU$9:$AV$24,2,0) -> VITOR HUGO (SP) | R45: 1 | S45: 6 | U45: =COUNTBLANK(J45:K45) -> 0 | W45: 1 | X45: 0 | Y45: 0 | Z45: 7 | AA45: 1 | AB45: 0 | AC45: 0 | AD45: 1 | AE45: 1 | AF45: 7
D46: 61 | E46: PEDRO ANTONIO (SP) | J46: 3 | K46: 2 | L46: TUSURINHA (SP) | R46: 2 | S46: 7 | U46: 0 | W46: 1 | X46: 0 | Y46: 0 | Z46: 3 | AA46: 2 | AB46: 0 | AC46: 0 | AD46: 1 | AE46: 2 | AF46: 3
D47: 62 | E47: TUGUINHA (SP) | J47: 0 | K47: 2 | L47: LUIZ GULHERME (SP) | R47: 3 | S47: 8 | U47: 0 | W47: 0 | X47: 0 | Y47: 1 | Z47: 0 | AA47: 2 | AB47: 1 | AC47: 0 | AD47: 0 | AE47: 2 | AF47: 0
D48: 63 | E48: CAROL (SP) | J48: 1 | K48: 2 | L48: IGOR COSTA (SP) | R48: 4 | S48: 5 | U48: 0 | W48: 0 | X48: 0 | Y48: 1 | Z48: 1 | AA48: 2 | AB48: 1 | AC48: 0 | AD48: 0 | AE48: 2 | AF48: 1
A49: 1 | C49: 11:00:00 | D49: 64 | E49: PEDRINHO (SP) | J49: 1 | K49: 3 | L49: LINNO BALA (PE) | R49: 9 | S49: 14 | U49: 0 | W49: 0 | X49: 0 | Y49: 1 | Z49: 1 | AA49: 3 | AB49: 1 | AC49: 0 | AD49: 0 | AE49: 3 | AF49: 1
A50: 1 | D50: 58 | E50: WALLACE RINCO (SP) | J50: 4 | K50: 4 | L50: DANIEL COUTO (RJ) | R50: 10 | S50: 15 | U50: 0 | W50: 0 | X50: 1 | Y50: 0 | Z50: 4 | AA50: 4 | AB50: 0 | AC50: 1 | AD50: 0 | AE50: 4 | AF50: 4
D51: 57 | E51: DAVI ANDRADE (SP) | J51: 3 | K51: 1 | L51: VERISSON (PE) | R51: 11 | S51: 16 | U51: 0 | W51: 1 | X51: 0 | Y51: 0 | Z51: 3 | AA51: 1 | AB51: 0 | AC51: 0 | AD51: 1 | AE51: 1 | AF51: 3
D52: 59 | E52: MELLI JR (SP) | J52: 5 | K52: 3 | L52: RODRIGO (PE) | R52: 12 | S52: 13 | U52: 0 | W52: 1 | X52: 0 | Y52: 0 | Z52: 5 | AA52: 3 | AB52: 0 | AC52: 0 | AD52: 1 | AE52: 3 | AF52: 5
A53: 1
A54: 1 | B54: 6 | C54: =$C$9 -> 2022-06-17 | D54: 62 | E54: =VLOOKUP($R54,$AU$9:$AV$24,2,0) -> LEO LIMA (SP) | J54: 10 | K54: 0 | L54: =VLOOKUP($S54,$AU$9:$AV$24,2,0) -> TUSURINHA (SP) | R54: 1 | S54: 7 | U54: =COUNTBLANK(J54:K54) -> 0 | W54: 1 | X54: 0 | Y54: 0 | Z54: 10 | AA54: 0 | AB54: 0 | AC54: 0 | AD54: 1 | AE54: 0 | AF54: 10
D55: 64 | E55: PEDRO ANTONIO (SP) | J55: 1 | K55: 4 | L55: LUIZ GULHERME (SP) | R55: 2 | S55: 8 | U55: 0 | W55: 0 | X55: 0 | Y55: 1 | Z55: 1 | AA55: 4 | AB55: 1 | AC55: 0 | AD55: 0 | AE55: 4 | AF55: 1
D56: 57 | E56: TUGUINHA (SP) | J56: 3 | K56: 1 | L56: IGOR COSTA (SP) | R56: 3 | S56: 5 | U56: 0 | W56: 1 | X56: 0 | Y56: 0 | Z56: 3 | AA56: 1 | AB56: 0 | AC56: 0 | AD56: 1 | AE56: 1 | AF56: 3
D57: 58 | E57: CAROL (SP) | J57: 1 | K57: 3 | L57: VITOR HUGO (SP) | R57: 4 | S57: 6 | U57: 0 | W57: 0 | X57: 0 | Y57: 1 | Z57: 1 | AA57: 3 | AB57: 1 | AC57: 0 | AD57: 0 | AE57: 3 | AF57: 1
A58: 1 | C58: 11:30:00 | D58: 60 | E58: PEDRINHO (SP) | J58: 3 | K58: 6 | L58: DANIEL COUTO (RJ) | R58: 9 | S58: 15 | U58: 0 | W58: 0 | X58: 0 | Y58: 1 | Z58: 3 | AA58: 6 | AB58: 1 | AC58: 0 | AD58: 0 | AE58: 6 | AF58: 3
A59: 1 | D59: 59 | E59: WALLACE RINCO (SP) | J59: 4 | K59: 1 | L59: VERISSON (PE) | R59: 10 | S59: 16 | U59: 0 | W59: 1 | X59: 0 | Y59: 0 | Z59: 4 | AA59: 1 | AB59: 0 | AC59: 0 | AD59: 1 | AE59: 1 | AF59: 4
D60: 61 | E60: DAVI ANDRADE (SP) | J60: 0 | K60: 4 | L60: RODRIGO (PE) | R60: 11 | S60: 13 | U60: 0 | W60: 0 | X60: 0 | Y60: 1 | Z60: 0 | AA60: 4 | AB60: 1 | AC60: 0 | AD60: 0 | AE60: 4 | AF60: 0
D61: 63 | E61: MELLI JR (SP) | J61: 5 | K61: 2 | L61: LINNO BALA (PE) | R61: 12 | S61: 14 | U61: 0 | W61: 1 | X61: 0 | Y61: 0 | Z61: 5 | AA61: 2 | AB61: 0 | AC61: 0 | AD61: 1 | AE61: 2 | AF61: 5
A62: 1
A63: 1 | B63: 7 | C63: =$C$9 -> 2022-06-17 | D63: 58 | E63: =VLOOKUP($R63,$AU$9:$AV$24,2,0) -> LEO LIMA (SP) | J63: 8 | K63: 3 | L63: =VLOOKUP($S63,$AU$9:$AV$24,2,0) -> LUIZ GULHERME (SP) | R63: 1 | S63: 8 | U63: =COUNTBLANK(J63:K63) -> 0 | W63: 1 | X63: 0 | Y63: 0 | Z63: 8 | AA63: 3 | AB63: 0 | AC63: 0 | AD63: 1 | AE63: 3 | AF63: 8
D64: 59 | E64: PEDRO ANTONIO (SP) | J64: 2 | K64: 3 | L64: IGOR COSTA (SP) | R64: 2 | S64: 5 | U64: 0 | W64: 0 | X64: 0 | Y64: 1 | Z64: 2 | AA64: 3 | AB64: 1 | AC64: 0 | AD64: 0 | AE64: 3 | AF64: 2
D65: 64 | E65: TUGUINHA (SP) | J65: 0 | K65: 4 | L65: VITOR HUGO (SP) | R65: 3 | S65: 6 | U65: 0 | W65: 0 | X65: 0 | Y65: 1 | Z65: 0 | AA65: 4 | AB65: 1 | AC65: 0 | AD65: 0 | AE65: 4 | AF65: 0
D66: 61 | E66: CAROL (SP) | J66: 1 | K66: 4 | L66: TUSURINHA (SP) | R66: 4 | S66: 7 | U66: 0 | W66: 0 | X66: 0 | Y66: 1 | Z66: 1 | AA66: 4 | AB66: 1 | AC66: 0 | AD66: 0 | AE66: 4 | AF66: 1
A67: 1 | C67: 12:00:00 | D67: 57 | E67: PEDRINHO (SP) | J67: 1 | K67: 0 | L67: VERISSON (PE) | R67: 9 | S67: 16 | U67: 0 | W67: 1 | X67: 0 | Y67: 0 | Z67: 1 | AA67: 0 | AB67: 0 | AC67: 0 | AD67: 1 | AE67: 0 | AF67: 1
A68: 1 | D68: 63 | E68: WALLACE RINCO (SP) | J68: 8 | K68: 5 | L68: RODRIGO (PE) | R68: 10 | S68: 13 | U68: 0 | W68: 1 | X68: 0 | Y68: 0 | Z68: 8 | AA68: 5 | AB68: 0 | AC68: 0 | AD68: 1 | AE68: 5 | AF68: 8
D69: 60 | E69: DAVI ANDRADE (SP) | J69: 1 | K69: 2 | L69: LINNO BALA (PE) | R69: 11 | S69: 14 | U69: 0 | W69: 0 | X69: 0 | Y69: 1 | Z69: 1 | AA69: 2 | AB69: 1 | AC69: 0 | AD69: 0 | AE69: 2 | AF69: 1
D70: 62 | E70: MELLI JR (SP) | J70: 3 | K70: 5 | L70: DANIEL COUTO (RJ) | R70: 12 | S70: 15 | U70: 0 | W70: 0 | X70: 0 | Y70: 1 | Z70: 3 | AA70: 5 | AB70: 1 | AC70: 0 | AD70: 0 | AE70: 5 | AF70: 3
A71: 1
A72: 1 | B72: 8 | C72: =$C$9 -> 2022-06-17 | D72: 61 | E72: =VLOOKUP($R72,$AU$9:$AV$24,2,0) -> LEO LIMA (SP) | J72: 3 | K72: 3 | L72: =VLOOKUP($S72,$AU$9:$AV$24,2,0) -> PEDRINHO (SP) | R72: 1 | S72: 9 | U72: =COUNTBLANK(J72:K72) -> 0 | W72: 0 | X72: 1 | Y72: 0 | Z72: 3 | AA72: 3 | AB72: 0 | AC72: 1 | AD72: 0 | AE72: 3 | AF72: 3
D73: 62 | E73: PEDRO ANTONIO (SP) | J73: 2 | K73: 3 | L73: WALLACE RINCO (SP) | R73: 2 | S73: 10 | U73: 0 | W73: =IF(OR(J73="",K73=""),"",IF(OR(E73="WO",L73="WO"),"",IF(J73>K73,1,0))) -> 0 | X73: =IF(OR(J73="",K73=""),"",IF(OR(E73="WO",L73="WO"),"",IF(J73=K73,1,0))) -> 0 | Y73: =IF(OR(J73="",K73=""),"",IF(OR(E73="WO",L73="WO"),"",IF(J73<K73,1,0))) -> 1 | Z73: =IF(OR(J73="",K73=""),"",IF(OR(E73="WO",L73="WO"),"",J73)) -> 2 | AA73: =IF(OR(J73="",K73=""),"",IF(OR(E73="WO",L73="WO"),"",K73)) -> 3 | AB73: =IF(OR(J73="",K73=""),"",IF(OR(E73="WO",L73="WO"),"",IF(J73<K73,1,0))) -> 1 | AC73: =IF(OR(J73="",K73=""),"",IF(OR(E73="WO",L73="WO"),"",IF(J73=K73,1,0))) -> 0 | AD73: =IF(OR(J73="",K73=""),"",IF(OR(E73="WO",L73="WO"),"",IF(J73>K73,1,0))) -> 0 | AE73: =IF(OR(J73="",K73=""),"",IF(OR(E73="WO",L73="WO"),"",K73)) -> 3 | AF73: =IF(OR(J73="",K73=""),"",IF(OR(E73="WO",L73="WO"),"",J73)) -> 2
D74: 63 | E74: TUGUINHA (SP) | J74: 2 | K74: 1 | L74: DAVI ANDRADE (SP) | R74: 3 | S74: 11 | U74: 0 | W74: 1 | X74: 0 | Y74: 0 | Z74: 2 | AA74: 1 | AB74: 0 | AC74: 0 | AD74: 1 | AE74: 1 | AF74: 2
D75: 64 | E75: CAROL (SP) | J75: 2 | K75: 3 | L75: MELLI JR (SP) | R75: 4 | S75: 12 | U75: 0 | W75: 0 | X75: 0 | Y75: 1 | Z75: 2 | AA75: 3 | AB75: 1 | AC75: 0 | AD75: 0 | AE75: 3 | AF75: 2
A76: 1 | C76: 12:30:00 | D76: 57 | E76: IGOR COSTA (SP) | J76: 2 | K76: 5 | L76: RODRIGO (PE) | R76: 5 | S76: 13 | U76: 0 | W76: 0 | X76: 0 | Y76: 1 | Z76: 2 | AA76: 5 | AB76: 1 | AC76: 0 | AD76: 0 | AE76: 5 | AF76: 2
A77: 1 | D77: 58 | E77: VITOR HUGO (SP) | J77: 2 | K77: 2 | L77: LINNO BALA (PE) | R77: 6 | S77: 14 | U77: 0 | W77: 0 | X77: 1 | Y77: 0 | Z77: 2 | AA77: 2 | AB77: 0 | AC77: 1 | AD77: 0 | AE77: 2 | AF77: 2
D78: 59 | E78: TUSURINHA (SP) | J78: 0 | K78: 6 | L78: DANIEL COUTO (RJ) | R78: 7 | S78: 15 | U78: 0 | W78: 0 | X78: 0 | Y78: 1 | Z78: 0 | AA78: 6 | AB78: 1 | AC78: 0 | AD78: 0 | AE78: 6 | AF78: 0
D79: 60 | E79: LUIZ GULHERME (SP) | J79: 1 | K79: 1 | L79: VERISSON (PE) | R79: 8 | S79: 16 | U79: 0 | W79: 0 | X79: 1 | Y79: 0 | Z79: 1 | AA79: 1 | AB79: 0 | AC79: 1 | AD79: 0 | AE79: 1 | AF79: 1
A80: 1
A81: 1 | B81: 9 | C81: 2022-06-18 | D81: 57 | E81: =VLOOKUP($R81,$AU$9:$AV$24,2,0) -> LEO LIMA (SP) | J81: 7 | K81: 3 | L81: =VLOOKUP($S81,$AU$9:$AV$24,2,0) -> WALLACE RINCO (SP) | R81: 1 | S81: 10 | U81: =COUNTBLANK(J81:K81) -> 0 | W81: 1 | X81: 0 | Y81: 0 | Z81: 7 | AA81: 3 | AB81: 0 | AC81: 0 | AD81: 1 | AE81: 3 | AF81: 7
D82: 58 | E82: PEDRO ANTONIO (SP) | J82: 2 | K82: 0 | L82: DAVI ANDRADE (SP) | R82: 2 | S82: 11 | U82: 0 | W82: 1 | X82: 0 | Y82: 0 | Z82: 2 | AA82: 0 | AB82: 0 | AC82: 0 | AD82: 1 | AE82: 0 | AF82: 2
D83: 59 | E83: TUGUINHA (SP) | J83: 2 | K83: 2 | L83: MELLI JR (SP) | R83: 3 | S83: 12 | U83: 0 | W83: 0 | X83: 1 | Y83: 0 | Z83: 2 | AA83: 2 | AB83: 0 | AC83: 1 | AD83: 0 | AE83: 2 | AF83: 2
D84: 60 | E84: CAROL (SP) | J84: 1 | K84: 4 | L84: RODRIGO (PE) | R84: 4 | S84: 13 | U84: 0 | W84: 0 | X84: 0 | Y84: 1 | Z84: 1 | AA84: 4 | AB84: 1 | AC84: 0 | AD84: 0 | AE84: 4 | AF84: 1
A85: 1 | C85: 09:00:00 | D85: 61 | E85: IGOR COSTA (SP) | J85: 4 | K85: 1 | L85: LINNO BALA (PE) | R85: 5 | S85: 14 | U85: 0 | W85: 1 | X85: 0 | Y85: 0 | Z85: 4 | AA85: 1 | AB85: 0 | AC85: 0 | AD85: 1 | AE85: 1 | AF85: 4
A86: 1 | D86: 62 | E86: VITOR HUGO (SP) | J86: 3 | K86: 6 | L86: DANIEL COUTO (RJ) | R86: 6 | S86: 15 | U86: 0 | W86: 0 | X86: 0 | Y86: 1 | Z86: 3 | AA86: 6 | AB86: 1 | AC86: 0 | AD86: 0 | AE86: 6 | AF86: 3
D87: 63 | E87: TUSURINHA (SP) | J87: 4 | K87: 1 | L87: VERISSON (PE) | R87: 7 | S87: 16 | U87: 0 | W87: 1 | X87: 0 | Y87: 0 | Z87: 4 | AA87: 1 | AB87: 0 | AC87: 0 | AD87: 1 | AE87: 1 | AF87: 4
D88: 64 | E88: LUIZ GULHERME (SP) | J88: 2 | K88: 2 | L88: PEDRINHO (SP) | R88: 8 | S88: 9 | U88: 0 | W88: 0 | X88: 1 | Y88: 0 | Z88: 2 | AA88: 2 | AB88: 0 | AC88: 1 | AD88: 0 | AE88: 2 | AF88: 2
A89: 1
A90: 1 | B90: 10 | C90: =$C$81 -> 2022-06-18 | D90: 59 | E90: =VLOOKUP($R90,$AU$9:$AV$24,2,0) -> LEO LIMA (SP) | J90: 9 | K90: 1 | L90: =VLOOKUP($S90,$AU$9:$AV$24,2,0) -> DAVI ANDRADE (SP) | R90: 1 | S90: 11 | U90: =COUNTBLANK(J90:K90) -> 0 | W90: 1 | X90: 0 | Y90: 0 | Z90: 9 | AA90: 1 | AB90: 0 | AC90: 0 | AD90: 1 | AE90: 1 | AF90: 9
D91: 60 | E91: PEDRO ANTONIO (SP) | J91: 1 | K91: 4 | L91: MELLI JR (SP) | R91: 2 | S91: 12 | U91: 0 | W91: 0 | X91: 0 | Y91: 1 | Z91: 1 | AA91: 4 | AB91: 1 | AC91: 0 | AD91: 0 | AE91: 4 | AF91: 1
D92: 58 | E92: TUGUINHA (SP) | J92: 3 | K92: 5 | L92: RODRIGO (PE) | R92: 3 | S92: 13 | U92: 0 | W92: 0 | X92: 0 | Y92: 1 | Z92: 3 | AA92: 5 | AB92: 1 | AC92: 0 | AD92: 0 | AE92: 5 | AF92: 3
D93: 62 | E93: CAROL (SP) | J93: 1 | K93: 3 | L93: LINNO BALA (PE) | R93: 4 | S93: 14 | U93: 0 | W93: 0 | X93: 0 | Y93: 1 | Z93: 1 | AA93: 3 | AB93: 1 | AC93: 0 | AD93: 0 | AE93: 3 | AF93: 1
A94: 1 | C94: 09:30:00 | D94: 63 | E94: IGOR COSTA (SP) | J94: 3 | K94: 6 | L94: DANIEL COUTO (RJ) | R94: 5 | S94: 15 | U94: 0 | W94: 0 | X94: 0 | Y94: 1 | Z94: 3 | AA94: 6 | AB94: 1 | AC94: 0 | AD94: 0 | AE94: 6 | AF94: 3
A95: 1 | D95: 64 | E95: VITOR HUGO (SP) | J95: 1 | K95: 3 | L95: VERISSON (PE) | R95: 6 | S95: 16 | U95: 0 | W95: 0 | X95: 0 | Y95: 1 | Z95: 1 | AA95: 3 | AB95: 1 | AC95: 0 | AD95: 0 | AE95: 3 | AF95: 1
D96: 57 | E96: TUSURINHA (SP) | J96: 2 | K96: 3 | L96: PEDRINHO (SP) | R96: 7 | S96: 9 | U96: 0 | W96: 0 | X96: 0 | Y96: 1 | Z96: 2 | AA96: 3 | AB96: 1 | AC96: 0 | AD96: 0 | AE96: 3 | AF96: 2
D97: 61 | E97: LUIZ GULHERME (SP) | J97: 3 | K97: 5 | L97: WALLACE RINCO (SP) | R97: 8 | S97: 10 | U97: 0 | W97: 0 | X97: 0 | Y97: 1 | Z97: 3 | AA97: 5 | AB97: 1 | AC97: 0 | AD97: 0 | AE97: 5 | AF97: 3
A98: 1
A99: 1 | B99: 11 | C99: =$C$81 -> 2022-06-18 | D99: 62 | E99: =VLOOKUP($R99,$AU$9:$AV$24,2,0) -> LEO LIMA (SP) | J99: 8 | K99: 2 | L99: =VLOOKUP($S99,$AU$9:$AV$24,2,0) -> MELLI JR (SP) | R99: 1 | S99: 12 | U99: =COUNTBLANK(J99:K99) -> 0 | W99: 1 | X99: 0 | Y99: 0 | Z99: 8 | AA99: 2 | AB99: 0 | AC99: 0 | AD99: 1 | AE99: 2 | AF99: 8
D100: 63 | E100: PEDRO ANTONIO (SP) | J100: 2 | K100: 6 | L100: RODRIGO (PE) | R100: 2 | S100: 13 | U100: 0 | W100: 0 | X100: 0 | Y100: 1 | Z100: 2 | AA100: 6 | AB100: 1 | AC100: 0 | AD100: 0 | AE100: 6 | AF100: 2
D101: 61 | E101: TUGUINHA (SP) | J101: 3 | K101: 3 | L101: LINNO BALA (PE) | R101: 3 | S101: 14 | U101: 0 | W101: 0 | X101: 1 | Y101: 0 | Z101: 3 | AA101: 3 | AB101: 0 | AC101: 1 | AD101: 0 | AE101: 3 | AF101: 3
D102: 57 | E102: CAROL (SP) | J102: 2 | K102: 5 | L102: DANIEL COUTO (RJ) | R102: 4 | S102: 15 | U102: 0 | W102: 0 | X102: 0 | Y102: 1 | Z102: 2 | AA102: 5 | AB102: 1 | AC102: 0 | AD102: 0 | AE102: 5 | AF102: 2
A103: 1 | C103: 10:00:00 | D103: 58 | E103: IGOR COSTA (SP) | J103: 2 | K103: 1 | L103: VERISSON (PE) | R103: 5 | S103: 16 | U103: 0 | W103: 1 | X103: 0 | Y103: 0 | Z103: 2 | AA103: 1 | AB103: 0 | AC103: 0 | AD103: 1 | AE103: 1 | AF103: 2
A104: 1 | D104: 59 | E104: VITOR HUGO (SP) | J104: 2 | K104: 2 | L104: PEDRINHO (SP) | R104: 6 | S104: 9 | U104: 0 | W104: 0 | X104: 1 | Y104: 0 | Z104: 2 | AA104: 2 | AB104: 0 | AC104: 1 | AD104: 0 | AE104: 2 | AF104: 2
D105: 60 | E105: TUSURINHA (SP) | J105: 1 | K105: 5 | L105: WALLACE RINCO (SP) | R105: 7 | S105: 10 | U105: 0 | W105: =IF(OR(J105="",K105=""),"",IF(OR(E105="WO",L105="WO"),"",IF(J105>K105,1,0))) -> 0 | X105: =IF(OR(J105="",K105=""),"",IF(OR(E105="WO",L105="WO"),"",IF(J105=K105,1,0))) -> 0 | Y105: =IF(OR(J105="",K105=""),"",IF(OR(E105="WO",L105="WO"),"",IF(J105<K105,1,0))) -> 1 | Z105: =IF(OR(J105="",K105=""),"",IF(OR(E105="WO",L105="WO"),"",J105)) -> 1 | AA105: =IF(OR(J105="",K105=""),"",IF(OR(E105="WO",L105="WO"),"",K105)) -> 5 | AB105: =IF(OR(J105="",K105=""),"",IF(OR(E105="WO",L105="WO"),"",IF(J105<K105,1,0))) -> 1 | AC105: =IF(OR(J105="",K105=""),"",IF(OR(E105="WO",L105="WO"),"",IF(J105=K105,1,0))) -> 0 | AD105: =IF(OR(J105="",K105=""),"",IF(OR(E105="WO",L105="WO"),"",IF(J105>K105,1,0))) -> 0 | AE105: =IF(OR(J105="",K105=""),"",IF(OR(E105="WO",L105="WO"),"",K105)) -> 5 | AF105: =IF(OR(J105="",K105=""),"",IF(OR(E105="WO",L105="WO"),"",J105)) -> 1
D106: 64 | E106: LUIZ GULHERME (SP) | J106: 2 | K106: 0 | L106: DAVI ANDRADE (SP) | R106: 8 | S106: 11 | U106: 0 | W106: 1 | X106: 0 | Y106: 0 | Z106: 2 | AA106: 0 | AB106: 0 | AC106: 0 | AD106: 1 | AE106: 0 | AF106: 2
A107: 1
A108: 1 | B108: 12 | C108: =$C$81 -> 2022-06-18 | D108: 64 | E108: =VLOOKUP($R108,$AU$9:$AV$24,2,0) -> LEO LIMA (SP) | J108: 8 | K108: 4 | L108: =VLOOKUP($S108,$AU$9:$AV$24,2,0) -> RODRIGO (PE) | R108: 1 | S108: 13 | U108: =COUNTBLANK(J108:K108) -> 0 | W108: 1 | X108: 0 | Y108: 0 | Z108: 8 | AA108: 4 | AB108: 0 | AC108: 0 | AD108: 1 | AE108: 4 | AF108: 8
D109: 58 | E109: PEDRO ANTONIO (SP) | J109: 3 | K109: 3 | L109: LINNO BALA (PE) | R109: 2 | S109: 14 | U109: 0 | W109: 0 | X109: 1 | Y109: 0 | Z109: 3 | AA109: 3 | AB109: 0 | AC109: 1 | AD109: 0 | AE109: 3 | AF109: 3
D110: 59 | E110: TUGUINHA (SP) | J110: 3 | K110: 6 | L110: DANIEL COUTO (RJ) | R110: 3 | S110: 15 | U110: 0 | W110: 0 | X110: 0 | Y110: 1 | Z110: 3 | AA110: 6 | AB110: 1 | AC110: 0 | AD110: 0 | AE110: 6 | AF110: 3
D111: 60 | E111: CAROL (SP) | J111: 2 | K111: 5 | L111: VERISSON (PE) | R111: 4 | S111: 16 | U111: 0 | W111: 0 | X111: 0 | Y111: 1 | Z111: 2 | AA111: 5 | AB111: 1 | AC111: 0 | AD111: 0 | AE111: 5 | AF111: 2
A112: 1 | C112: 10:30:00 | D112: 62 | E112: IGOR COSTA (SP) | J112: 4 | K112: 1 | L112: PEDRINHO (SP) | R112: 5 | S112: 9 | U112: 0 | W112: 1 | X112: 0 | Y112: 0 | Z112: 4 | AA112: 1 | AB112: 0 | AC112: 0 | AD112: 1 | AE112: 1 | AF112: 4
A113: 1 | D113: 61 | E113: VITOR HUGO (SP) | J113: 2 | K113: 5 | L113: WALLACE RINCO (SP) | R113: 6 | S113: 10 | U113: 0 | W113: 0 | X113: 0 | Y113: 1 | Z113: 2 | AA113: 5 | AB113: 1 | AC113: 0 | AD113: 0 | AE113: 5 | AF113: 2
D114: 63 | E114: TUSURINHA (SP) | J114: 1 | K114: 0 | L114: DAVI ANDRADE (SP) | R114: 7 | S114: 11 | U114: 0 | W114: 1 | X114: 0 | Y114: 0 | Z114: 1 | AA114: 0 | AB114: 0 | AC114: 0 | AD114: 1 | AE114: 0 | AF114: 1
D115: 57 | E115: LUIZ GULHERME (SP) | J115: 3 | K115: 4 | L115: MELLI JR (SP) | R115: 8 | S115: 12 | U115: 0 | W115: 0 | X115: 0 | Y115: 1 | Z115: 3 | AA115: 4 | AB115: 1 | AC115: 0 | AD115: 0 | AE115: 4 | AF115: 3
A116: 1
A117: 1 | B117: 13 | C117: =$C$81 -> 2022-06-18 | D117: 60 | E117: =VLOOKUP($R117,$AU$9:$AV$24,2,0) -> LEO LIMA (SP) | J117: 10 | K117: 2 | L117: =VLOOKUP($S117,$AU$9:$AV$24,2,0) -> LINNO BALA (PE) | R117: 1 | S117: 14 | U117: =COUNTBLANK(J117:K117) -> 0 | W117: 1 | X117: 0 | Y117: 0 | Z117: 10 | AA117: 2 | AB117: 0 | AC117: 0 | AD117: 1 | AE117: 2 | AF117: 10
D118: 61 | E118: PEDRO ANTONIO (SP) | J118: 2 | K118: 7 | L118: DANIEL COUTO (RJ) | R118: 2 | S118: 15 | U118: 0 | W118: 0 | X118: 0 | Y118: 1 | Z118: 2 | AA118: 7 | AB118: 1 | AC118: 0 | AD118: 0 | AE118: 7 | AF118: 2
D119: 62 | E119: TUGUINHA (SP) | J119: 4 | K119: 2 | L119: VERISSON (PE) | R119: 3 | S119: 16 | U119: 0 | W119: 1 | X119: 0 | Y119: 0 | Z119: 4 | AA119: 2 | AB119: 0 | AC119: 0 | AD119: 1 | AE119: 2 | AF119: 4
D120: 63 | E120: CAROL (SP) | J120: 1 | K120: 3 | L120: PEDRINHO (SP) | R120: 4 | S120: 9 | U120: 0 | W120: 0 | X120: 0 | Y120: 1 | Z120: 1 | AA120: 3 | AB120: 1 | AC120: 0 | AD120: 0 | AE120: 3 | AF120: 1
A121: 1 | C121: 11:00:00 | D121: 64 | E121: IGOR COSTA (SP) | J121: 2 | K121: 5 | L121: WALLACE RINCO (SP) | R121: 5 | S121: 10 | U121: 0 | W121: 0 | X121: 0 | Y121: 1 | Z121: 2 | AA121: 5 | AB121: 1 | AC121: 0 | AD121: 0 | AE121: 5 | AF121: 2
A122: 1 | D122: 57 | E122: VITOR HUGO (SP) | J122: 2 | K122: 2 | L122: DAVI ANDRADE (SP) | R122: 6 | S122: 11 | U122: 0 | W122: 0 | X122: 1 | Y122: 0 | Z122: 2 | AA122: 2 | AB122: 0 | AC122: 1 | AD122: 0 | AE122: 2 | AF122: 2
D123: 58 | E123: TUSURINHA (SP) | J123: 3 | K123: 2 | L123: MELLI JR (SP) | R123: 7 | S123: 12 | U123: 0 | W123: 1 | X123: 0 | Y123: 0 | Z123: 3 | AA123: 2 | AB123: 0 | AC123: 0 | AD123: 1 | AE123: 2 | AF123: 3
D124: 59 | E124: LUIZ GULHERME (SP) | J124: 3 | K124: 4 | L124: RODRIGO (PE) | R124: 8 | S124: 13 | U124: 0 | W124: 0 | X124: 0 | Y124: 1 | Z124: 3 | AA124: 4 | AB124: 1 | AC124: 0 | AD124: 0 | AE124: 4 | AF124: 3
A125: 1
A126: 1 | B126: 14 | C126: =$C$81 -> 2022-06-18 | D126: 63 | E126: =VLOOKUP($R126,$AU$9:$AV$24,2,0) -> LEO LIMA (SP) | J126: 3 | K126: 2 | L126: =VLOOKUP($S126,$AU$9:$AV$24,2,0) -> DANIEL COUTO (RJ) | R126: 1 | S126: 15 | U126: =COUNTBLANK(J126:K126) -> 0 | W126: 1 | X126: 0 | Y126: 0 | Z126: 3 | AA126: 2 | AB126: 0 | AC126: 0 | AD126: 1 | AE126: 2 | AF126: 3
D127: 64 | E127: PEDRO ANTONIO (SP) | J127: 6 | K127: 1 | L127: VERISSON (PE) | R127: 2 | S127: 16 | U127: 0 | W127: =IF(OR(J127="",K127=""),"",IF(OR(E127="WO",L127="WO"),"",IF(J127>K127,1,0))) -> 1 | X127: =IF(OR(J127="",K127=""),"",IF(OR(E127="WO",L127="WO"),"",IF(J127=K127,1,0))) -> 0 | Y127: =IF(OR(J127="",K127=""),"",IF(OR(E127="WO",L127="WO"),"",IF(J127<K127,1,0))) -> 0 | Z127: =IF(OR(J127="",K127=""),"",IF(OR(E127="WO",L127="WO"),"",J127)) -> 6 | AA127: =IF(OR(J127="",K127=""),"",IF(OR(E127="WO",L127="WO"),"",K127)) -> 1 | AB127: =IF(OR(J127="",K127=""),"",IF(OR(E127="WO",L127="WO"),"",IF(J127<K127,1,0))) -> 0 | AC127: =IF(OR(J127="",K127=""),"",IF(OR(E127="WO",L127="WO"),"",IF(J127=K127,1,0))) -> 0 | AD127: =IF(OR(J127="",K127=""),"",IF(OR(E127="WO",L127="WO"),"",IF(J127>K127,1,0))) -> 1 | AE127: =IF(OR(J127="",K127=""),"",IF(OR(E127="WO",L127="WO"),"",K127)) -> 1 | AF127: =IF(OR(J127="",K127=""),"",IF(OR(E127="WO",L127="WO"),"",J127)) -> 6
D128: 58 | E128: TUGUINHA (SP) | J128: 4 | K128: 3 | L128: PEDRINHO (SP) | R128: 3 | S128: 9 | U128: 0 | W128: 1 | X128: 0 | Y128: 0 | Z128: 4 | AA128: 3 | AB128: 0 | AC128: 0 | AD128: 1 | AE128: 3 | AF128: 4
D129: 57 | E129: CAROL (SP) | J129: 1 | K129: 5 | L129: WALLACE RINCO (SP) | R129: 4 | S129: 10 | U129: 0 | W129: 0 | X129: 0 | Y129: 1 | Z129: 1 | AA129: 5 | AB129: 1 | AC129: 0 | AD129: 0 | AE129: 5 | AF129: 1
A130: 1 | C130: 11:30:00 | D130: 59 | E130: IGOR COSTA (SP) | J130: 5 | K130: 2 | L130: DAVI ANDRADE (SP) | R130: 5 | S130: 11 | U130: 0 | W130: =IF(OR(J130="",K130=""),"",IF(OR(E130="WO",L130="WO"),"",IF(J130>K130,1,0))) -> 1 | X130: =IF(OR(J130="",K130=""),"",IF(OR(E130="WO",L130="WO"),"",IF(J130=K130,1,0))) -> 0 | Y130: =IF(OR(J130="",K130=""),"",IF(OR(E130="WO",L130="WO"),"",IF(J130<K130,1,0))) -> 0 | Z130: =IF(OR(J130="",K130=""),"",IF(OR(E130="WO",L130="WO"),"",J130)) -> 5 | AA130: =IF(OR(J130="",K130=""),"",IF(OR(E130="WO",L130="WO"),"",K130)) -> 2 | AB130: =IF(OR(J130="",K130=""),"",IF(OR(E130="WO",L130="WO"),"",IF(J130<K130,1,0))) -> 0 | AC130: =IF(OR(J130="",K130=""),"",IF(OR(E130="WO",L130="WO"),"",IF(J130=K130,1,0))) -> 0 | AD130: =IF(OR(J130="",K130=""),"",IF(OR(E130="WO",L130="WO"),"",IF(J130>K130,1,0))) -> 1 | AE130: =IF(OR(J130="",K130=""),"",IF(OR(E130="WO",L130="WO"),"",K130)) -> 2 | AF130: =IF(OR(J130="",K130=""),"",IF(OR(E130="WO",L130="WO"),"",J130)) -> 5
A131: 1 | D131: 60 | E131: VITOR HUGO (SP) | J131: 4 | K131: 2 | L131: MELLI JR (SP) | R131: 6 | S131: 12 | U131: 0 | W131: 1 | X131: 0 | Y131: 0 | Z131: 4 | AA131: 2 | AB131: 0 | AC131: 0 | AD131: 1 | AE131: 2 | AF131: 4
D132: 61 | E132: TUSURINHA (SP) | J132: 2 | K132: 8 | L132: RODRIGO (PE) | R132: 7 | S132: 13 | U132: 0 | W132: 0 | X132: 0 | Y132: 1 | Z132: 2 | AA132: 8 | AB132: 1 | AC132: 0 | AD132: 0 | AE132: 8 | AF132: 2
D133: 62 | E133: LUIZ GULHERME (SP) | J133: 3 | K133: 1 | L133: LINNO BALA (PE) | R133: 8 | S133: 14 | U133: 0 | W133: 1 | X133: 0 | Y133: 0 | Z133: 3 | AA133: 1 | AB133: 0 | AC133: 0 | AD133: 1 | AE133: 1 | AF133: 3
A134: 1
A135: 1 | B135: 15 | C135: =$C$81 -> 2022-06-18 | D135: 58 | E135: =VLOOKUP($R135,$AU$9:$AV$24,2,0) -> LEO LIMA (SP) | J135: 10 | K135: 1 | L135: =VLOOKUP($S135,$AU$9:$AV$24,2,0) -> VERISSON (PE) | R135: 1 | S135: 16 | U135: =COUNTBLANK(J135:K135) -> 0 | W135: 1 | X135: 0 | Y135: 0 | Z135: 10 | AA135: 1 | AB135: 0 | AC135: 0 | AD135: 1 | AE135: 1 | AF135: 10
D136: 59 | E136: PEDRO ANTONIO (SP) | J136: 2 | K136: 2 | L136: PEDRINHO (SP) | R136: 2 | S136: 9 | U136: 0 | W136: =IF(OR(J136="",K136=""),"",IF(OR(E136="WO",L136="WO"),"",IF(J136>K136,1,0))) -> 0 | X136: =IF(OR(J136="",K136=""),"",IF(OR(E136="WO",L136="WO"),"",IF(J136=K136,1,0))) -> 1 | Y136: =IF(OR(J136="",K136=""),"",IF(OR(E136="WO",L136="WO"),"",IF(J136<K136,1,0))) -> 0 | Z136: =IF(OR(J136="",K136=""),"",IF(OR(E136="WO",L136="WO"),"",J136)) -> 2 | AA136: =IF(OR(J136="",K136=""),"",IF(OR(E136="WO",L136="WO"),"",K136)) -> 2 | AB136: =IF(OR(J136="",K136=""),"",IF(OR(E136="WO",L136="WO"),"",IF(J136<K136,1,0))) -> 0 | AC136: =IF(OR(J136="",K136=""),"",IF(OR(E136="WO",L136="WO"),"",IF(J136=K136,1,0))) -> 1 | AD136: =IF(OR(J136="",K136=""),"",IF(OR(E136="WO",L136="WO"),"",IF(J136>K136,1,0))) -> 0 | AE136: =IF(OR(J136="",K136=""),"",IF(OR(E136="WO",L136="WO"),"",K136)) -> 2 | AF136: =IF(OR(J136="",K136=""),"",IF(OR(E136="WO",L136="WO"),"",J136)) -> 2
D137: 60 | E137: TUGUINHA (SP) | J137: 3 | K137: 7 | L137: WALLACE RINCO (SP) | R137: 3 | S137: 10 | U137: 0 | W137: 0 | X137: 0 | Y137: 1 | Z137: 3 | AA137: 7 | AB137: 1 | AC137: 0 | AD137: 0 | AE137: 7 | AF137: 3
D138: 61 | E138: CAROL (SP) | J138: 1 | K138: 0 | L138: DAVI ANDRADE (SP) | R138: 4 | S138: 11 | U138: 0 | W138: 1 | X138: 0 | Y138: 0 | Z138: 1 | AA138: 0 | AB138: 0 | AC138: 0 | AD138: 1 | AE138: 0 | AF138: 1
A139: 1 | C139: 12:00:00 | D139: 63 | E139: IGOR COSTA (SP) | J139: 2 | K139: 3 | L139: MELLI JR (SP) | R139: 5 | S139: 12 | U139: 0 | W139: =IF(OR(J139="",K139=""),"",IF(OR(E139="WO",L139="WO"),"",IF(J139>K139,1,0))) -> 0 | X139: =IF(OR(J139="",K139=""),"",IF(OR(E139="WO",L139="WO"),"",IF(J139=K139,1,0))) -> 0 | Y139: =IF(OR(J139="",K139=""),"",IF(OR(E139="WO",L139="WO"),"",IF(J139<K139,1,0))) -> 1 | Z139: =IF(OR(J139="",K139=""),"",IF(OR(E139="WO",L139="WO"),"",J139)) -> 2 | AA139: =IF(OR(J139="",K139=""),"",IF(OR(E139="WO",L139="WO"),"",K139)) -> 3 | AB139: =IF(OR(J139="",K139=""),"",IF(OR(E139="WO",L139="WO"),"",IF(J139<K139,1,0))) -> 1 | AC139: =IF(OR(J139="",K139=""),"",IF(OR(E139="WO",L139="WO"),"",IF(J139=K139,1,0))) -> 0 | AD139: =IF(OR(J139="",K139=""),"",IF(OR(E139="WO",L139="WO"),"",IF(J139>K139,1,0))) -> 0 | AE139: =IF(OR(J139="",K139=""),"",IF(OR(E139="WO",L139="WO"),"",K139)) -> 3 | AF139: =IF(OR(J139="",K139=""),"",IF(OR(E139="WO",L139="WO"),"",J139)) -> 2
A140: 1 | D140: 62 | E140: VITOR HUGO (SP) | J140: 4 | K140: 2 | L140: RODRIGO (PE) | R140: 6 | S140: 13 | U140: 0 | W140: =IF(OR(J140="",K140=""),"",IF(OR(E140="WO",L140="WO"),"",IF(J140>K140,1,0))) -> 1 | X140: =IF(OR(J140="",K140=""),"",IF(OR(E140="WO",L140="WO"),"",IF(J140=K140,1,0))) -> 0 | Y140: =IF(OR(J140="",K140=""),"",IF(OR(E140="WO",L140="WO"),"",IF(J140<K140,1,0))) -> 0 | Z140: =IF(OR(J140="",K140=""),"",IF(OR(E140="WO",L140="WO"),"",J140)) -> 4 | AA140: =IF(OR(J140="",K140=""),"",IF(OR(E140="WO",L140="WO"),"",K140)) -> 2 | AB140: =IF(OR(J140="",K140=""),"",IF(OR(E140="WO",L140="WO"),"",IF(J140<K140,1,0))) -> 0 | AC140: =IF(OR(J140="",K140=""),"",IF(OR(E140="WO",L140="WO"),"",IF(J140=K140,1,0))) -> 0 | AD140: =IF(OR(J140="",K140=""),"",IF(OR(E140="WO",L140="WO"),"",IF(J140>K140,1,0))) -> 1 | AE140: =IF(OR(J140="",K140=""),"",IF(OR(E140="WO",L140="WO"),"",K140)) -> 2 | AF140: =IF(OR(J140="",K140=""),"",IF(OR(E140="WO",L140="WO"),"",J140)) -> 4
D141: 64 | E141: TUSURINHA (SP) | J141: 2 | K141: 3 | L141: LINNO BALA (PE) | R141: 7 | S141: 14 | U141: 0 | W141: =IF(OR(J141="",K141=""),"",IF(OR(E141="WO",L141="WO"),"",IF(J141>K141,1,0))) -> 0 | X141: =IF(OR(J141="",K141=""),"",IF(OR(E141="WO",L141="WO"),"",IF(J141=K141,1,0))) -> 0 | Y141: =IF(OR(J141="",K141=""),"",IF(OR(E141="WO",L141="WO"),"",IF(J141<K141,1,0))) -> 1 | Z141: =IF(OR(J141="",K141=""),"",IF(OR(E141="WO",L141="WO"),"",J141)) -> 2 | AA141: =IF(OR(J141="",K141=""),"",IF(OR(E141="WO",L141="WO"),"",K141)) -> 3 | AB141: =IF(OR(J141="",K141=""),"",IF(OR(E141="WO",L141="WO"),"",IF(J141<K141,1,0))) -> 1 | AC141: =IF(OR(J141="",K141=""),"",IF(OR(E141="WO",L141="WO"),"",IF(J141=K141,1,0))) -> 0 | AD141: =IF(OR(J141="",K141=""),"",IF(OR(E141="WO",L141="WO"),"",IF(J141>K141,1,0))) -> 0 | AE141: =IF(OR(J141="",K141=""),"",IF(OR(E141="WO",L141="WO"),"",K141)) -> 3 | AF141: =IF(OR(J141="",K141=""),"",IF(OR(E141="WO",L141="WO"),"",J141)) -> 2
D142: 57 | E142: LUIZ GULHERME (SP) | J142: 3 | K142: 6 | L142: DANIEL COUTO (RJ) | R142: 8 | S142: 15 | U142: 0 | W142: =IF(OR(J142="",K142=""),"",IF(OR(E142="WO",L142="WO"),"",IF(J142>K142,1,0))) -> 0 | X142: =IF(OR(J142="",K142=""),"",IF(OR(E142="WO",L142="WO"),"",IF(J142=K142,1,0))) -> 0 | Y142: =IF(OR(J142="",K142=""),"",IF(OR(E142="WO",L142="WO"),"",IF(J142<K142,1,0))) -> 1 | Z142: =IF(OR(J142="",K142=""),"",IF(OR(E142="WO",L142="WO"),"",J142)) -> 3 | AA142: =IF(OR(J142="",K142=""),"",IF(OR(E142="WO",L142="WO"),"",K142)) -> 6 | AB142: =IF(OR(J142="",K142=""),"",IF(OR(E142="WO",L142="WO"),"",IF(J142<K142,1,0))) -> 1 | AC142: =IF(OR(J142="",K142=""),"",IF(OR(E142="WO",L142="WO"),"",IF(J142=K142,1,0))) -> 0 | AD142: =IF(OR(J142="",K142=""),"",IF(OR(E142="WO",L142="WO"),"",IF(J142>K142,1,0))) -> 0 | AE142: =IF(OR(J142="",K142=""),"",IF(OR(E142="WO",L142="WO"),"",K142)) -> 6 | AF142: =IF(OR(J142="",K142=""),"",IF(OR(E142="WO",L142="WO"),"",J142)) -> 3
U143: =SUM(U9:U142) -> 0
B145: Class | C145: Atletas | H145: PG | I145: J | J145: V | K145: E | L145: D | M145: GP | N145: GC | O145: SG | P145: Sorteio
A146: =IF($U$143=0,"è","") -> è | B146: 1 | C146: =VLOOKUP($B146,$AI$9:$AS$24,2,0) -> LEO LIMA (SP) | H146: =VLOOKUP($B146,$AI$9:$AS$24,3,0) -> 43 | I146: =VLOOKUP($B146,$AI$9:$AS$24,4,0) -> 15 | J146: =VLOOKUP($B146,$AI$9:$AS$24,5,0) -> 14 | K146: =VLOOKUP($B146,$AI$9:$AS$24,6,0) -> 1 | L146: =VLOOKUP($B146,$AI$9:$AS$24,7,0) -> 0 | M146: =VLOOKUP($B146,$AI$9:$AS$24,8,0) -> 115 | N146: =VLOOKUP($B146,$AI$9:$AS$24,9,0) -> 29 | O146: =VLOOKUP($B146,$AI$9:$AS$24,10,0) -> 86 | P146: =IF(INT(AS9)=INT(AS13),ASC(CHAR(252)),"") -> 
A147: =IF($U$143=0,"è","") -> è | B147: 2 | C147: DANIEL COUTO (RJ) | H147: 40 | I147: 15 | J147: 13 | K147: 1 | L147: 1 | M147: 79 | N147: 34 | O147: 45 | P147: =IF(OR(INT(AS13)=INT(AS9),INT(AS14)=INT(AS13)),ASC(CHAR(252)),"") -> 
A148: è | B148: 3 | C148: WALLACE RINCO (SP) | H148: 40 | I148: 15 | J148: 13 | K148: 1 | L148: 1 | M148: 77 | N148: 36 | O148: 41 | P148: =IF(OR(INT(AS14)=INT(AS13),INT(AS16)=INT(AS14)),ASC(CHAR(252)),"") -> 
A149: è | B149: 4 | C149: RODRIGO (PE) | H149: 28 | I149: 15 | J149: 9 | K149: 1 | L149: 5 | M149: 59 | N149: 48 | O149: 11 | P149: =IF(OR(INT(AS16)=INT(AS14),INT(AS17)=INT(AS16)),ASC(CHAR(252)),"") -> 
A150: è | B150: 5 | C150: MELLI JR (SP) | H150: 28 | I150: 15 | J150: 9 | K150: 1 | L150: 5 | M150: 44 | N150: 46 | O150: -2 | P150: =IF(OR(INT(AS17)=INT(AS16),INT(AS18)=INT(AS17)),ASC(CHAR(252)),"") -> 
A151: è | B151: 6 | C151: IGOR COSTA (SP) | H151: 24 | I151: 15 | J151: 8 | K151: 0 | L151: 7 | M151: 39 | N151: 42 | O151: -3 | P151: =IF(OR(INT(AS18)=INT(AS17),INT(AS19)=INT(AS18)),ASC(CHAR(252)),"") -> 
A152: è | B152: 7 | C152: TUSURINHA (SP) | H152: 21 | I152: 15 | J152: 7 | K152: 0 | L152: 8 | M152: 31 | N152: 49 | O152: -18
A153: è | B153: 8 | C153: LUIZ GULHERME (SP) | H153: 20 | I153: 15 | J153: 6 | K153: 2 | L153: 7 | M153: 40 | N153: 43 | O153: -3
B154: 9 | C154: VITOR HUGO (SP) | H154: 19 | I154: 15 | J154: 5 | K154: 4 | L154: 6 | M154: 35 | N154: 41 | O154: -6
B155: 10 | C155: PEDRO ANTONIO (SP) | H155: 18 | I155: 15 | J155: 5 | K155: 3 | L155: 7 | M155: 38 | N155: 45 | O155: -7
B156: 11 | C156: TUGUINHA (SP) | H156: 17 | I156: 15 | J156: 5 | K156: 2 | L156: 8 | M156: 31 | N156: 54 | O156: -23
B157: 12 | C157: LINNO BALA (PE) | H157: 15 | I157: 15 | J157: 4 | K157: 3 | L157: 8 | M157: 31 | N157: 52 | O157: -21 | P157: =IF(OR(INT(AS18)=INT(AS17),INT(AS22)=INT(AS18)),ASC(CHAR(252)),"") -> 
B158: 13 | C158: PEDRINHO (SP) | H158: 14 | I158: 15 | J158: 3 | K158: 5 | L158: 7 | M158: 31 | N158: 40 | O158: -9 | P158: =IF(OR(INT(AS22)=INT(AS18),INT(AS23)=INT(AS22)),ASC(CHAR(252)),"") -> 
B159: 14 | C159: VERISSON (PE) | H159: 10 | I159: 15 | J159: 3 | K159: 1 | L159: 11 | M159: 22 | N159: 50 | O159: -28 | P159: =IF(OR(INT(AS23)=INT(AS22),INT(AS24)=INT(AS23)),ASC(CHAR(252)),"") -> 
B160: 15 | C160: DAVI ANDRADE (SP) | H160: 7 | I160: 15 | J160: 2 | K160: 1 | L160: 12 | M160: 14 | N160: 43 | O160: -29 | P160: =IF(OR(INT(AS22)=INT(AS18),INT(AS23)=INT(AS22)),ASC(CHAR(252)),"") -> 
B161: 16 | C161: CAROL (SP) | H161: 3 | I161: 15 | J161: 1 | K161: 0 | L161: 14 | M161: 18 | N161: 52 | O161: -34 | P161: =IF(OR(INT(AS23)=INT(AS22),INT(AS25)=INT(AS23)),ASC(CHAR(252)),"") -> 
B163: è | C163: QF (Ouro)

Sheet QF
B4: 32o CAMPEONATO BRASILEIRO INDIVIDUAL
B6: =CONCATENATE(INFO!$C$4, " | ", "1a Divisão") -> SUB-18 | 1a Divisão | P6: Quartas de Final
A7: Grp | B7: Rod. | C7: Data/Hora | D7: Mesas | E7: Jogos
B9: QF | C9: 2022-06-19 | D9: 57 | E9: =RESUMO!$B$3 -> LEO LIMA (SP) | J9: 6 | K9: 4 | L9: =RESUMO!$B$10 -> LUIZ GULHERME (SP)
E10: =CONCATENATE(RESUMO!$A$3," Col") -> 1o Col | F10: =RESUMO!$C$3 -> 43 | G10: =RESUMO!$E$3 -> 14 | H10: =RESUMO!$J$3 -> 86 | I10: =RESUMO!$H$3 -> 115 | J10: =IF(R10=0," ",IF(R10>S10,"*"," ")) -> * | K10: =IF(S10=0," ",IF(J10="*"," ","*")) ->  | L10: =RESUMO!$C$10 -> 20 | M10: =RESUMO!$E$10 -> 6 | N10: =RESUMO!$J$10 -> -3 | O10: =RESUMO!$H$10 -> 40 | P10: =CONCATENATE(RESUMO!$A$10," Col") -> 8o Col | R10: =(F10*1000000000)+(G10*1000000)+(H10*1000)+I10 -> 43014086115 | S10: =(L10*1000000000)+(M10*1000000)+(N10*1000)+O10 -> 20005997040
F11: =IF(J11>0,0,IF(J9>K9,3,IF(J9=K9,1,0))) -> 3 | G11: =IF(F11=3,1,0) -> 1 | H11: =IF(J11>0,0,J9-K9) -> 2 | I11: =IF(J11>0,0,J9) -> 6 | J11: =COUNTBLANK(J9:K9) -> 0 | L11: =IF(J11>0,0,IF(K9>J9,3,IF(K9=J9,1,0))) -> 0 | M11: =IF(L11=3,1,0) -> 0 | N11: =IF(J11>0,0,K9-J9) -> -2 | O11: =IF(J11>0,0,K9) -> 4
D12: 58 | E12: =RESUMO!$B$4 -> DANIEL COUTO (RJ) | J12: 7 | K12: 2 | L12: =RESUMO!$B$9 -> TUSURINHA (SP)
E13: =CONCATENATE(RESUMO!$A$4," Col") -> 2o Col | F13: =RESUMO!$C$4 -> 40 | G13: =RESUMO!$E$4 -> 13 | H13: =RESUMO!$J$4 -> 45 | I13: =RESUMO!$H$4 -> 79 | J13: =IF(R13=0," ",IF(R13>S13,"*"," ")) -> * | K13: =IF(S13=0," ",IF(J13="*"," ","*")) ->  | L13: =RESUMO!$C$9 -> 21 | M13: =RESUMO!$E$9 -> 7 | N13: =RESUMO!$J$9 -> -18 | O13: =RESUMO!$H$9 -> 31 | P13: =CONCATENATE(RESUMO!$A$9," Col") -> 7o Col | R13: =(F13*1000000000)+(G13*1000000)+(H13*1000)+I13 -> 40013045079 | S13: =(L13*1000000000)+(M13*1000000)+(N13*1000)+O13 -> 21006982031
F14: =IF(J14>0,0,IF(J12>K12,3,IF(J12=K12,1,0))) -> 3 | G14: =IF(F14=3,1,0) -> 1 | H14: =IF(J14>0,0,J12-K12) -> 5 | I14: =IF(J14>0,0,J12) -> 7 | J14: =COUNTBLANK(J12:K12) -> 0 | L14: =IF(J14>0,0,IF(K12>J12,3,IF(K12=J12,1,0))) -> 0 | M14: =IF(L14=3,1,0) -> 0 | N14: =IF(J14>0,0,K12-J12) -> -5 | O14: =IF(J14>0,0,K12) -> 2
C15: 09:00:00 | D15: 59 | E15: =RESUMO!$B$5 -> WALLACE RINCO (SP) | J15: 6 | K15: 1 | L15: =RESUMO!$B$8 -> IGOR COSTA (SP)
E16: =CONCATENATE(RESUMO!$A$5," Col") -> 3o Col | F16: =RESUMO!$C$5 -> 40 | G16: =RESUMO!$E$5 -> 13 | H16: =RESUMO!$J$5 -> 41 | I16: =RESUMO!$H$5 -> 77 | J16: =IF(R16=0," ",IF(R16>S16,"*"," ")) -> * | K16: =IF(S16=0," ",IF(J16="*"," ","*")) ->  | L16: =RESUMO!$C$8 -> 24 | M16: =RESUMO!$E$8 -> 8 | N16: =RESUMO!$J$8 -> -3 | O16: =RESUMO!$H$8 -> 39 | P16: =CONCATENATE(RESUMO!$A$8," Col") -> 6o Col | R16: =(F16*1000000000)+(G16*1000000)+(H16*1000)+I16 -> 40013041077 | S16: =(L16*1000000000)+(M16*1000000)+(N16*1000)+O16 -> 24007997039
F17: =IF(J17>0,0,IF(J15>K15,3,IF(J15=K15,1,0))) -> 3 | G17: =IF(F17=3,1,0) -> 1 | H17: =IF(J17>0,0,J15-K15) -> 5 | I17: =IF(J17>0,0,J15) -> 6 | J17: =COUNTBLANK(J15:K15) -> 0 | L17: =IF(J17>0,0,IF(K15>J15,3,IF(K15=J15,1,0))) -> 0 | M17: =IF(L17=3,1,0) -> 0 | N17: =IF(J17>0,0,K15-J15) -> -5 | O17: =IF(J17>0,0,K15) -> 1
D18: 60 | E18: =RESUMO!$B$6 -> RODRIGO (PE) | J18: 3 | K18: 2 | L18: =RESUMO!$B$7 -> MELLI JR (SP)
E19: =CONCATENATE(RESUMO!$A$6," Col") -> 4o Col | F19: =RESUMO!$C$6 -> 28 | G19: =RESUMO!$E$6 -> 9 | H19: =RESUMO!$J$6 -> 11 | I19: =RESUMO!$H$6 -> 59 | J19: =IF(R19=0," ",IF(R19>S19,"*"," ")) -> * | K19: =IF(S19=0," ",IF(J19="*"," ","*")) ->  | L19: =RESUMO!$C$7 -> 28 | M19: =RESUMO!$E$7 -> 9 | N19: =RESUMO!$J$7 -> -2 | O19: =RESUMO!$H$7 -> 44 | P19: =CONCATENATE(RESUMO!$A$7," Col") -> 5o Col | R19: =(F19*1000000000)+(G19*1000000)+(H19*1000)+I19 -> 28009011059 | S19: =(L19*1000000000)+(M19*1000000)+(N19*1000)+O19 -> 28008998044
F20: =IF(J20>0,0,IF(J18>K18,3,IF(J18=K18,1,0))) -> 3 | G20: =IF(F20=3,1,0) -> 1 | H20: =IF(J20>0,0,J18-K18) -> 1 | I20: =IF(J20>0,0,J18) -> 3 | J20: =COUNTBLANK(J18:K18) -> 0 | L20: =IF(J20>0,0,IF(K18>J18,3,IF(K18=J18,1,0))) -> 0 | M20: =IF(L20=3,1,0) -> 0 | N20: =IF(J20>0,0,K18-J18) -> -1 | O20: =IF(J20>0,0,K18) -> 2

Sheet SF
B4: 32o CAMPEONATO BRASILEIRO INDIVIDUAL
B6: =CONCATENATE(INFO!$C$4, " | ", "1a Divisão") -> SUB-18 | 1a Divisão | P6: Semifinal
A7: Grp | B7: Rod. | C7: Data/Hora | D7: Mesas | E7: Jogos
B9: SF | C9: 2022-06-19 | D9: 61 | E9: =RESUMO!$B$47 -> LEO LIMA (SP) | J9: 4 | K9: 1 | L9: =RESUMO!$B$50 -> RODRIGO (PE)
E10: =CONCATENATE(RESUMO!$N$47,"o MC") -> 1o MC | F10: =RESUMO!$C$47 -> 46 | G10: =RESUMO!$E$47 -> 15 | H10: =RESUMO!$J$47 -> 88 | I10: =RESUMO!$H$47 -> 121 | J10: =IF(R10=0," ",IF(R10>S10,"*"," ")) -> * | K10: =IF(S10=0," ",IF(J10="*"," ","*")) ->  | L10: =RESUMO!$C$50 -> 31 | M10: =RESUMO!$E$50 -> 10 | N10: =RESUMO!$J$50 -> 12 | O10: =RESUMO!$H$50 -> 118 | P10: =CONCATENATE(RESUMO!$N$50,"o MC") -> 4o MC | R10: =(F10*1000000000)+(G10*1000000)+(H10*1000)+I10 -> 46015088121 | S10: =(L10*1000000000)+(M10*1000000)+(N10*1000)+O10 -> 31010012118
F11: =IF(J11>0,0,IF(J9>K9,3,IF(J9=K9,1,0))) -> 3 | G11: =IF(F11=3,1,0) -> 1 | H11: =IF(J11>0,0,J9-K9) -> 3 | I11: =IF(J11>0,0,J9) -> 4 | J11: =COUNTBLANK(J9:K9) -> 0 | L11: =IF(J11>0,0,IF(K9>J9,3,IF(K9=J9,1,0))) -> 0 | M11: =IF(L11=3,1,0) -> 0 | N11: =IF(J11>0,0,K9-J9) -> -3 | O11: =IF(J11>0,0,K9) -> 1
C12: 09:30:00 | D12: =D9+1 -> 62 | E12: =RESUMO!$B$48 -> DANIEL COUTO (RJ) | J12: 5 | K12: 2 | L12: =RESUMO!$B$49 -> WALLACE RINCO (SP)
E13: =CONCATENATE(RESUMO!$N$48,"o MC") -> 2o MC | F13: =RESUMO!$C$48 -> 43 | G13: =RESUMO!$E$48 -> 14 | H13: =RESUMO!$J$48 -> 50 | I13: =RESUMO!$H$48 -> 86 | J13: =IF(R13=0," ",IF(R13>S13,"*"," ")) -> * | K13: =IF(S13=0," ",IF(J13="*"," ","*")) ->  | L13: =RESUMO!$C$49 -> 43 | M13: =RESUMO!$E$49 -> 14 | N13: =RESUMO!$J$49 -> 46 | O13: =RESUMO!$H$49 -> 83 | P13: =CONCATENATE(RESUMO!$N$49,"o MC") -> 3o MC | R13: =(F13*1000000000)+(G13*1000000)+(H13*1000)+I13 -> 43014050086 | S13: =(L13*1000000000)+(M13*1000000)+(N13*1000)+O13 -> 43014046083
F14: =IF(J14>0,0,IF(J12>K12,3,IF(J12=K12,1,0))) -> 3 | G14: =IF(F14=3,1,0) -> 1 | H14: =IF(J14>0,0,J12-K12) -> 3 | I14: =IF(J14>0,0,J12) -> 5 | J14: =COUNTBLANK(J12:K12) -> 0 | L14: =IF(J14>0,0,IF(K12>J12,3,IF(K12=J12,1,0))) -> 0 | M14: =IF(L14=3,1,0) -> 0 | N14: =IF(J14>0,0,K12-J12) -> -3 | O14: =IF(J14>0,0,K12) -> 2

Sheet F
B4: 32o CAMPEONATO BRASILEIRO INDIVIDUAL
B6: =CONCATENATE(INFO!$C$4, " | ", "1a Divisão") -> SUB-18 | 1a Divisão | P6: Final
A7: Grp | B7: Rod. | C7: Data/Hora | D7: Mesa | E7: Jogos
B9: F | C9: 2022-06-19 | D9: 63 | E9: =RESUMO!$B$68 -> LEO LIMA (SP) | J9: 9 | K9: 3 | L9: =RESUMO!$B$69 -> DANIEL COUTO (RJ)
C10: 10:00:00 | E10: =CONCATENATE(RESUMO!$N$68,"o MC") -> 1o MC | F10: =RESUMO!$C$68 -> 49 | G10: =RESUMO!$E$68 -> 16 | H10: =RESUMO!$J$68 -> 91 | I10: =RESUMO!$H$68 -> 125 | J10: =IF(R10=0," ",IF(R10>S10,"*"," ")) -> * | K10: =IF(S10=0," ",IF(J10="*"," ","*")) ->  | L10: =RESUMO!$C$69 -> 46 | M10: =RESUMO!$E$69 -> 15 | N10: =RESUMO!$J$69 -> 53 | O10: =RESUMO!$H$69 -> 91 | P10: =CONCATENATE(RESUMO!$N$69,"o MC") -> 2o MC | R10: =(F10*1000000000)+(G10*1000000)+(H10*1000)+I10 -> 49016091125 | S10: =(L10*1000000000)+(M10*1000000)+(N10*1000)+O10 -> 46015053091
F11: =IF(J11>0,0,IF(J9>K9,3,IF(J9=K9,1,0))) -> 3 | G11: =IF(F11=3,1,0) -> 1 | H11: =IF(J11>0,0,J9-K9) -> 6 | I11: =IF(J11>0,0,J9) -> 9 | J11: =COUNTBLANK(J9:K9) -> 0 | L11: =IF(J11>0,0,IF(K9>J9,3,IF(K9=J9,1,0))) -> 0 | M11: =IF(L11=3,1,0) -> 0 | N11: =IF(J11>0,0,K9-J9) -> -6 | O11: =IF(J11>0,0,K9) -> 3
B13: =CONCATENATE(INFO!$C$4, " | ", "1a Divisão") -> SUB-18 | 1a Divisão | P13: Disputa de 3o Lugar
A14: Grp | B14: Rod. | C14: Data/Hora | D14: Mesa | E14: Jogos
B16: D3º | C16: 2022-06-19 | D16: 64 | E16: =RESUMO!$B$70 -> WALLACE RINCO (SP) | J16: 3 | K16: 5 | L16: =RESUMO!$B$71 -> RODRIGO (PE)
C17: 10:00:00 | E17: =CONCATENATE(RESUMO!$N$70,"o MC") -> 1o MC | F17: =RESUMO!$C$70 -> 43 | G17: =RESUMO!$E$70 -> 14 | H17: =RESUMO!$J$70 -> 43 | I17: =RESUMO!$H$70 -> 85 | J17: =IF(R17=0," ",IF(R17>S17,"*"," ")) -> * | K17: =IF(S17=0," ",IF(J17="*"," ","*")) ->  | L17: =RESUMO!$C$71 -> 31 | M17: =RESUMO!$E$71 -> 10 | N17: =RESUMO!$J$71 -> 9 | O17: =RESUMO!$H$71 -> 119 | P17: =CONCATENATE(RESUMO!$N$71,"o MC") -> 2o MC | R17: =(F17*1000000000)+(G17*1000000)+(H17*1000)+I17 -> 43014043085 | S17: =(L17*1000000000)+(M17*1000000)+(N17*1000)+O17 -> 31010009119
F18: =IF(J18>0,0,IF(J16>K16,3,IF(J16=K16,1,0))) -> 0 | G18: =IF(F18=3,1,0) -> 0 | H18: =IF(J18>0,0,J16-K16) -> -2 | I18: =IF(J18>0,0,J16) -> 3 | J18: =COUNTBLANK(J16:K16) -> 0 | L18: =IF(J18>0,0,IF(K16>J16,3,IF(K16=J16,1,0))) -> 3 | M18: =IF(L18=3,1,0) -> 1 | N18: =IF(J18>0,0,K16-J16) -> 2 | O18: =IF(J18>0,0,K16) -> 5

Sheet CLASS
A5: =INFO!$C$1 -> 32o CAMPEONATO BRASILEIRO INDIVIDUAL
A6: =CONCATENATE(INFO!$A$4, INFO!$C$4) -> CATEGORIA:SUB-18
A7: Classificação Final
A8: Colocação | B8: Atletas | C8: PG | D8: J | E8: V | F8: E | G8: D | H8: GP | I8: GC | J8: SG | K8: IA%
A9: =RESUMO!$A115 -> 1 | B9: =RESUMO!$B115 -> LEO LIMA (SP) | C9: =RESUMO!C115 -> 52 | D9: =RESUMO!D115 -> 18 | E9: =RESUMO!E115 -> 17 | F9: =RESUMO!F115 -> 1 | G9: =RESUMO!G115 -> 0 | H9: =RESUMO!H115 -> 134 | I9: =RESUMO!I115 -> 37 | J9: =RESUMO!J115 -> 97 | K9: =($C9)/(3*$D9) -> 0.962962963
A10: =RESUMO!$A116 -> 2 | B10: =RESUMO!$B116 -> DANIEL COUTO (RJ) | C10: =RESUMO!C116 -> 46 | D10: =RESUMO!D116 -> 18 | E10: =RESUMO!E116 -> 15 | F10: =RESUMO!F116 -> 1 | G10: =RESUMO!G116 -> 2 | H10: =RESUMO!H116 -> 94 | I10: =RESUMO!I116 -> 47 | J10: =RESUMO!J116 -> 47 | K10: =($C10)/(3*$D10) -> 0.8518518519
A11: =RESUMO!$A117 -> 3 | B11: =RESUMO!$B117 -> WALLACE RINCO (SP) | C11: =RESUMO!C117 -> 43 | D11: =RESUMO!D117 -> 17 | E11: =RESUMO!E117 -> 14 | F11: =RESUMO!F117 -> 1 | G11: =RESUMO!G117 -> 2 | H11: =RESUMO!H117 -> 85 | I11: =RESUMO!I117 -> 42 | J11: =RESUMO!J117 -> 43 | K11: 0.8431372549
A12: =RESUMO!$A118 -> 4 | B12: =RESUMO!$B118 -> RODRIGO (PE) | C12: =RESUMO!C118 -> 31 | D12: =RESUMO!D118 -> 17 | E12: =RESUMO!E118 -> 10 | F12: =RESUMO!F118 -> 1 | G12: =RESUMO!G118 -> 6 | H12: =RESUMO!H118 -> 119 | I12: =RESUMO!I118 -> 110 | J12: =RESUMO!J118 -> 9 | K12: 0.6078431373
A13: =RESUMO!$A119 -> 5 | B13: =RESUMO!$B119 -> MELLI JR (SP) | C13: =RESUMO!C119 -> 28 | D13: =RESUMO!D119 -> 16 | E13: =RESUMO!E119 -> 9 | F13: =RESUMO!F119 -> 1 | G13: =RESUMO!G119 -> 6 | H13: =RESUMO!H119 -> 88 | I13: =RESUMO!I119 -> 91 | J13: =RESUMO!J119 -> -3 | K13: 0.5833333333
A14: =RESUMO!$A120 -> 6 | B14: =RESUMO!$B120 -> IGOR COSTA (SP) | C14: =RESUMO!C120 -> 24 | D14: =RESUMO!D120 -> 16 | E14: =RESUMO!E120 -> 8 | F14: =RESUMO!F120 -> 0 | G14: =RESUMO!G120 -> 8 | H14: =RESUMO!H120 -> 40 | I14: =RESUMO!I120 -> 48 | J14: =RESUMO!J120 -> -8 | K14: 0.5
A15: =RESUMO!$A121 -> 7 | B15: =RESUMO!$B121 -> TUSURINHA (SP) | C15: =RESUMO!C121 -> 21 | D15: =RESUMO!D121 -> 16 | E15: =RESUMO!E121 -> 7 | F15: =RESUMO!F121 -> 0 | G15: =RESUMO!G121 -> 9 | H15: =RESUMO!H121 -> 33 | I15: =RESUMO!I121 -> 56 | J15: =RESUMO!J121 -> -23 | K15: 0.4375
A16: =RESUMO!$A122 -> 8 | B16: =RESUMO!$B122 -> LUIZ GULHERME (SP) | C16: =RESUMO!C122 -> 20 | D16: =RESUMO!D122 -> 16 | E16: =RESUMO!E122 -> 6 | F16: =RESUMO!F122 -> 2 | G16: =RESUMO!G122 -> 8 | H16: =RESUMO!H122 -> 44 | I16: =RESUMO!I122 -> 49 | J16: =RESUMO!J122 -> -5 | K16: 0.4166666667
A17: =RESUMO!$A123 -> 9 | B17: =RESUMO!$B123 -> VITOR HUGO (SP) | C17: =RESUMO!C123 -> 19 | D17: =RESUMO!D123 -> 15 | E17: =RESUMO!E123 -> 5 | F17: =RESUMO!F123 -> 4 | G17: =RESUMO!G123 -> 6 | H17: =RESUMO!H123 -> 35 | I17: =RESUMO!I123 -> 41 | J17: =RESUMO!J123 -> -6 | K17: 0.4222222222
A18: =RESUMO!$A124 -> 10 | B18: =RESUMO!$B124 -> PEDRO ANTONIO (SP) | C18: =RESUMO!C124 -> 18 | D18: =RESUMO!D124 -> 15 | E18: =RESUMO!E124 -> 5 | F18: =RESUMO!F124 -> 3 | G18: =RESUMO!G124 -> 7 | H18: =RESUMO!H124 -> 38 | I18: =RESUMO!I124 -> 45 | J18: =RESUMO!J124 -> -7 | K18: 0.4
A19: =RESUMO!$A125 -> 11 | B19: =RESUMO!$B125 -> TUGUINHA (SP) | C19: =RESUMO!C125 -> 17 | D19: =RESUMO!D125 -> 15 | E19: =RESUMO!E125 -> 5 | F19: =RESUMO!F125 -> 2 | G19: =RESUMO!G125 -> 8 | H19: =RESUMO!H125 -> 31 | I19: =RESUMO!I125 -> 54 | J19: =RESUMO!J125 -> -23 | K19: 0.3777777778
A20: =RESUMO!$A126 -> 12 | B20: =RESUMO!$B126 -> LINNO BALA (PE) | C20: =RESUMO!C126 -> 15 | D20: =RESUMO!D126 -> 15 | E20: =RESUMO!E126 -> 4 | F20: =RESUMO!F126 -> 3 | G20: =RESUMO!G126 -> 8 | H20: =RESUMO!H126 -> 31 | I20: =RESUMO!I126 -> 52 | J20: =RESUMO!J126 -> -21 | K20: 0.3333333333
A21: =RESUMO!$A127 -> 13 | B21: =RESUMO!$B127 -> PEDRINHO (SP) | C21: =RESUMO!C127 -> 14 | D21: =RESUMO!D127 -> 15 | E21: =RESUMO!E127 -> 3 | F21: =RESUMO!F127 -> 5 | G21: =RESUMO!G127 -> 7 | H21: =RESUMO!H127 -> 31 | I21: =RESUMO!I127 -> 40 | J21: =RESUMO!J127 -> -9 | K21: 0.3111111111
A22: =RESUMO!$A128 -> 14 | B22: =RESUMO!$B128 -> VERISSON (PE) | C22: =RESUMO!C128 -> 10 | D22: =RESUMO!D128 -> 15 | E22: =RESUMO!E128 -> 3 | F22: =RESUMO!F128 -> 1 | G22: =RESUMO!G128 -> 11 | H22: =RESUMO!H128 -> 22 | I22: =RESUMO!I128 -> 50 | J22: =RESUMO!J128 -> -28 | K22: 0.2222222222
A23: =RESUMO!$A129 -> 15 | B23: =RESUMO!$B129 -> DAVI ANDRADE (SP) | C23: =RESUMO!C129 -> 7 | D23: =RESUMO!D129 -> 15 | E23: =RESUMO!E129 -> 2 | F23: =RESUMO!F129 -> 1 | G23: =RESUMO!G129 -> 12 | H23: =RESUMO!H129 -> 14 | I23: =RESUMO!I129 -> 43 | J23: =RESUMO!J129 -> -29 | K23: 0.1555555556
A24: =RESUMO!$A130 -> 16 | B24: =RESUMO!$B130 -> CAROL (SP) | C24: =RESUMO!C130 -> 3 | D24: =RESUMO!D130 -> 15 | E24: =RESUMO!E130 -> 1 | F24: =RESUMO!F130 -> 0 | G24: =RESUMO!G130 -> 14 | H24: =RESUMO!H130 -> 18 | I24: =RESUMO!I130 -> 52 | J24: =RESUMO!J130 -> -34 | K24: 0.06666666667

Sheet RESUMO
A1: Resumo da 1a Fase
A2: Ref. | B2: Atletas | C2: PG | D2: J | E2: V | F2: E | G2: D | H2: GP | I2: GC | J2: SG | K2: Class | L2: Chave | M2: Key
A3: =CONCATENATE('F1'!$B146,"o") -> 1o | B3: ='F1'!C146 -> LEO LIMA (SP) | C3: ='F1'!H146 -> 43 | D3: ='F1'!I146 -> 15 | E3: ='F1'!J146 -> 14 | F3: ='F1'!K146 -> 1 | G3: ='F1'!L146 -> 0 | H3: ='F1'!M146 -> 115 | I3: ='F1'!N146 -> 29 | J3: ='F1'!O146 -> 86 | K3: 1 | L3: =(C3*1000000000)+(E3*1000000)+(J3*1000)+H3 -> 43014086115 | M3: 1
A4: =CONCATENATE('F1'!$B147,"o") -> 2o | B4: ='F1'!C147 -> DANIEL COUTO (RJ) | C4: ='F1'!H147 -> 40 | D4: ='F1'!I147 -> 15 | E4: ='F1'!J147 -> 13 | F4: ='F1'!K147 -> 1 | G4: ='F1'!L147 -> 1 | H4: ='F1'!M147 -> 79 | I4: ='F1'!N147 -> 34 | J4: ='F1'!O147 -> 45 | K4: 1 | L4: =(C4*1000000000)+(E4*1000000)+(J4*1000)+H4 -> 40013045079 | M4: 2
A5: =CONCATENATE('F1'!$B148,"o") -> 3o | B5: ='F1'!C148 -> WALLACE RINCO (SP) | C5: ='F1'!H148 -> 40 | D5: ='F1'!I148 -> 15 | E5: ='F1'!J148 -> 13 | F5: ='F1'!K148 -> 1 | G5: ='F1'!L148 -> 1 | H5: ='F1'!M148 -> 77 | I5: ='F1'!N148 -> 36 | J5: ='F1'!O148 -> 41 | K5: 1 | L5: 40013041077 | M5: 3
A6: =CONCATENATE('F1'!$B149,"o") -> 4o | B6: ='F1'!C149 -> RODRIGO (PE) | C6: ='F1'!H149 -> 28 | D6: ='F1'!I149 -> 15 | E6: ='F1'!J149 -> 9 | F6: ='F1'!K149 -> 1 | G6: ='F1'!L149 -> 5 | H6: ='F1'!M149 -> 59 | I6: ='F1'!N149 -> 48 | J6: ='F1'!O149 -> 11 | K6: 1 | L6: 28009011059 | M6: 4
A7: =CONCATENATE('F1'!$B150,"o") -> 5o | B7: ='F1'!C150 -> MELLI JR (SP) | C7: ='F1'!H150 -> 28 | D7: ='F1'!I150 -> 15 | E7: ='F1'!J150 -> 9 | F7: ='F1'!K150 -> 1 | G7: ='F1'!L150 -> 5 | H7: ='F1'!M150 -> 44 | I7: ='F1'!N150 -> 46 | J7: ='F1'!O150 -> -2 | K7: 1 | L7: 28008998044 | M7: 5
A8: =CONCATENATE('F1'!$B151,"o") -> 6o | B8: ='F1'!C151 -> IGOR COSTA (SP) | C8: ='F1'!H151 -> 24 | D8: ='F1'!I151 -> 15 | E8: ='F1'!J151 -> 8 | F8: ='F1'!K151 -> 0 | G8: ='F1'!L151 -> 7 | H8: ='F1'!M151 -> 39 | I8: ='F1'!N151 -> 42 | J8: ='F1'!O151 -> -3 | K8: 1 | L8: =(C8*1000000000)+(E8*1000000)+(J8*1000)+H8 -> 24007997039 | M8: 6
A9: =CONCATENATE('F1'!$B152,"o") -> 7o | B9: ='F1'!C152 -> TUSURINHA (SP) | C9: ='F1'!H152 -> 21 | D9: ='F1'!I152 -> 15 | E9: ='F1'!J152 -> 7 | F9: ='F1'!K152 -> 0 | G9: ='F1'!L152 -> 8 | H9: ='F1'!M152 -> 31 | I9: ='F1'!N152 -> 49 | J9: ='F1'!O152 -> -18 | K9: 1 | L9: 21006982031 | M9: 7
A10: =CONCATENATE('F1'!$B153,"o") -> 8o | B10: ='F1'!C153 -> LUIZ GULHERME (SP) | C10: ='F1'!H153 -> 20 | D10: ='F1'!I153 -> 15 | E10: ='F1'!J153 -> 6 | F10: ='F1'!K153 -> 2 | G10: ='F1'!L153 -> 7 | H10: ='F1'!M153 -> 40 | I10: ='F1'!N153 -> 43 | J10: ='F1'!O153 -> -3 | K10: 1 | L10: 20005997040 | M10: 8
A11: =CONCATENATE('F1'!$B154,"o") -> 9o | B11: ='F1'!C154 -> VITOR HUGO (SP) | C11: ='F1'!H154 -> 19 | D11: ='F1'!I154 -> 15 | E11: ='F1'!J154 -> 5 | F11: ='F1'!K154 -> 4 | G11: ='F1'!L154 -> 6 | H11: ='F1'!M154 -> 35 | I11: ='F1'!N154 -> 41 | J11: ='F1'!O154 -> -6 | K11: 9 | L11: 19004994035 | M11: 9
A12: =CONCATENATE('F1'!$B155,"o") -> 10o | B12: ='F1'!C155 -> PEDRO ANTONIO (SP) | C12: ='F1'!H155 -> 18 | D12: ='F1'!I155 -> 15 | E12: ='F1'!J155 -> 5 | F12: ='F1'!K155 -> 3 | G12: ='F1'!L155 -> 7 | H12: ='F1'!M155 -> 38 | I12: ='F1'!N155 -> 45 | J12: ='F1'!O155 -> -7 | K12: 9 | L12: 18004993038 | M12: 10
A13: =CONCATENATE('F1'!$B156,"o") -> 11o | B13: ='F1'!C156 -> TUGUINHA (SP) | C13: ='F1'!H156 -> 17 | D13: ='F1'!I156 -> 15 | E13: ='F1'!J156 -> 5 | F13: ='F1'!K156 -> 2 | G13: ='F1'!L156 -> 8 | H13: ='F1'!M156 -> 31 | I13: ='F1'!N156 -> 54 | J13: ='F1'!O156 -> -23 | K13: 9 | L13: 17004977031 | M13: 11
A14: =CONCATENATE('F1'!$B157,"o") -> 12o | B14: ='F1'!C157 -> LINNO BALA (PE) | C14: ='F1'!H157 -> 15 | D14: ='F1'!I157 -> 15 | E14: ='F1'!J157 -> 4 | F14: ='F1'!K157 -> 3 | G14: ='F1'!L157 -> 8 | H14: ='F1'!M157 -> 31 | I14: ='F1'!N157 -> 52 | J14: ='F1'!O157 -> -21 | K14: 9 | L14: 15003979031 | M14: 12
A15: =CONCATENATE('F1'!$B158,"o") -> 13o | B15: ='F1'!C158 -> PEDRINHO (SP) | C15: ='F1'!H158 -> 14 | D15: ='F1'!I158 -> 15 | E15: ='F1'!J158 -> 3 | F15: ='F1'!K158 -> 5 | G15: ='F1'!L158 -> 7 | H15: ='F1'!M158 -> 31 | I15: ='F1'!N158 -> 40 | J15: ='F1'!O158 -> -9 | K15: 9 | L15: 14002991031 | M15: 13
A16: =CONCATENATE('F1'!$B159,"o") -> 14o | B16: ='F1'!C159 -> VERISSON (PE) | C16: ='F1'!H159 -> 10 | D16: ='F1'!I159 -> 15 | E16: ='F1'!J159 -> 3 | F16: ='F1'!K159 -> 1 | G16: ='F1'!L159 -> 11 | H16: ='F1'!M159 -> 22 | I16: ='F1'!N159 -> 50 | J16: ='F1'!O159 -> -28 | K16: 9 | L16: 10002972022 | M16: 14
A17: =CONCATENATE('F1'!$B160,"o") -> 15o | B17: ='F1'!C160 -> DAVI ANDRADE (SP) | C17: ='F1'!H160 -> 7 | D17: ='F1'!I160 -> 15 | E17: ='F1'!J160 -> 2 | F17: ='F1'!K160 -> 1 | G17: ='F1'!L160 -> 12 | H17: ='F1'!M160 -> 14 | I17: ='F1'!N160 -> 43 | J17: ='F1'!O160 -> -29 | K17: 9 | L17: 7001971014 | M17: 15
A18: =CONCATENATE('F1'!$B161,"o") -> 16o | B18: ='F1'!C161 -> CAROL (SP) | C18: ='F1'!H161 -> 3 | D18: ='F1'!I161 -> 15 | E18: ='F1'!J161 -> 1 | F18: ='F1'!K161 -> 0 | G18: ='F1'!L161 -> 14 | H18: ='F1'!M161 -> 18 | I18: ='F1'!N161 -> 52 | J18: ='F1'!O161 -> -34 | K18: 9 | L18: 3000966018 | M18: 16
A20: Resumo das Quartas de Final
A21: Ref. | B21: Atletas | C21: PG | D21: J | E21: V | F21: E | G21: D | H21: GP | I21: GC | J21: SG | K21: Class | L21: Chave | M21: Key
A22: =IF($K22=1,"V. QF1","P.QF1") -> V. QF1 | B22: =$B$3 -> LEO LIMA (SP) | C22: =QF!F11 -> 3 | D22: =SUM(E22:G22) -> 1 | E22: =QF!G11 -> 1 | F22: =IF(C22=1,1,0) -> 0 | G22: =IF(H22<I22,1,IF($H$22:$H$23=0,0,1-E22-F22)) -> 0 | H22: =QF!I11 -> 6 | I22: =H22-J22 -> 4 | J22: =QF!H11 -> 2 | K22: =IF(C22=3,1,IF(AND(C22=1,L22>L23),1,IF(D22=0,0,5))) -> 1 | L22: =$L$3 -> 43014086115 | M22: =VLOOKUP(B22,$B$3:$M$18,12,FALSE) -> 1
A23: =IF($K23=1,"V. QF1","P. QF1") -> P. QF1 | B23: =$B$10 -> LUIZ GULHERME (SP) | C23: =QF!L11 -> 0 | D23: =SUM(E23:G23) -> 1 | E23: =QF!M11 -> 0 | F23: =IF(C23=1,1,0) -> 0 | G23: =IF(H23<I23,1,IF($H$22:$H$23=0,0,1-E23-F23)) -> 1 | H23: =QF!O11 -> 4 | I23: 6 | J23: =QF!N11 -> -2 | K23: =IF(C23=3,1,IF(AND(C23=1,L22>L23),1,IF(D23=0,0,5))) -> 5 | L23: =$L$10 -> 20005997040 | M23: 8
A24: =IF($K24=1,"V. QF2","P. QF2") -> V. QF2 | B24: =$B$4 -> DANIEL COUTO (RJ) | C24: =QF!F14 -> 3 | D24: 1 | E24: =QF!G14 -> 1 | F24: 0 | G24: =IF(H24<I24,1,IF($H$24:$H$25=0,0,1-E24-F24)) -> 0 | H24: =QF!I14 -> 7 | I24: 2 | J24: =QF!H14 -> 5 | K24: =IF(C24=3,1,IF(AND(C24=1,L24>L25),1,IF(D24=0,0,5))) -> 1 | L24: =$L$4 -> 40013045079 | M24: 2
A25: =IF($K25=1,"V. QF2","P. QF2") -> P. QF2 | B25: =$B$9 -> TUSURINHA (SP) | C25: =QF!L14 -> 0 | D25: 1 | E25: =QF!M14 -> 0 | F25: 0 | G25: =IF(H25<I25,1,IF($H$24:$H$25=0,0,1-E25-F25)) -> 1 | H25: =QF!O14 -> 2 | I25: 7 | J25: =QF!N14 -> -5 | K25: =IF(C25=3,1,IF(AND(C25=1,L24>L25),1,IF(D25=0,0,5))) -> 5 | L25: =$L$9 -> 21006982031 | M25: 7
A26: =IF($K26=1,"V. QF3","P. QF3") -> V. QF3 | B26: =$B$5 -> WALLACE RINCO (SP) | C26: =QF!F17 -> 3 | D26: =SUM(E26:G26) -> 1 | E26: =QF!G17 -> 1 | F26: =IF(C26=1,1,0) -> 0 | G26: =IF(H26<I26,1,IF($H$26:$H$27=0,0,1-E26-F26)) -> 0 | H26: =QF!I17 -> 6 | I26: =H26-J26 -> 1 | J26: =QF!H17 -> 5 | K26: =IF(C26=3,1,IF(AND(C26=1,L26>L27),1,IF(D26=0,0,5))) -> 1 | L26: =$L$5 -> 40013041077 | M26: =VLOOKUP(B26,$B$3:$M$18,12,FALSE) -> 3
A27: =IF($K27=1,"V. QF3","P. QF3") -> P. QF3 | B27: =$B$8 -> IGOR COSTA (SP) | C27: =QF!L17 -> 0 | D27: =SUM(E27:G27) -> 1 | E27: =QF!M17 -> 0 | F27: =IF(C27=1,1,0) -> 0 | G27: =IF(H27<I27,1,IF($H$26:$H$27=0,0,1-E27-F27)) -> 1 | H27: =QF!O17 -> 1 | I27: 6 | J27: =QF!N17 -> -5 | K27: =IF(C27=3,1,IF(AND(C27=1,L26>L27),1,IF(D27=0,0,5))) -> 5 | L27: =$L$8 -> 24007997039 | M27: =VLOOKUP(B27,$B$3:$M$18,12,FALSE) -> 6
A28: =IF($K28=1,"V. QF4","P. QF4") -> V. QF4 | B28: =$B$6 -> RODRIGO (PE) | C28: =QF!F20 -> 3 | D28: =SUM(E28:G28) -> 1 | E28: =QF!G20 -> 1 | F28: =IF(C28=1,1,0) -> 0 | G28: =IF(H28<I28,1,IF($H$28:$H$29=0,0,1-E28-F28)) -> 0 | H28: =QF!I19 -> 59 | I28: =H28-J28 -> 58 | J28: =QF!H20 -> 1 | K28: =IF(C28=3,1,IF(AND(C28=1,L28>L29),1,IF(D28=0,0,5))) -> 1 | L28: =$L$6 -> 28009011059 | M28: =VLOOKUP(B28,$B$3:$M$18,12,FALSE) -> 4
A29: =IF($K29=1,"V. QF4","P. QF4") -> P. QF4 | B29: =$B$7 -> MELLI JR (SP) | C29: =QF!L20 -> 0 | D29: =SUM(E29:G29) -> 1 | E29: =QF!M20 -> 0 | F29: =IF(C29=1,1,0) -> 0 | G29: =IF(H29<I29,1,IF($H$28:$H$29=0,0,1-E29-F29)) -> 1 | H29: =QF!O19 -> 44 | I29: 45 | J29: =QF!N20 -> -1 | K29: =IF(C29=3,1,IF(AND(C29=1,L28>L29),1,IF(D29=0,0,5))) -> 5 | L29: =$L$7 -> 28008998044 | M29: =VLOOKUP(B29,$B$3:$M$18,12,FALSE) -> 5
A31: Resumo Acumulado até as Quartas de Final dos Vencedores
A32: Ref. | B32: Atletas | C32: PG | D32: J | E32: V | F32: E | G32: D | H32: GP | I32: GC | J32: SG | K32: Class | L32: Chave | M32: Key | N32: Rank
A33: =IF($K$22=1,$A$22,$A$23) -> V. QF1 | B33: =IF($K$22=1,$B$22,$B$23) -> LEO LIMA (SP) | C33: =VLOOKUP($B33,$B$3:$K$18,2,FALSE)+VLOOKUP($B33,$B$22:$K$29,2,FALSE) -> 46 | D33: =VLOOKUP($B33,$B$3:$K$18,3,FALSE)+VLOOKUP($B33,$B$22:$K$29,3,FALSE) -> 16 | E33: =VLOOKUP($B33,$B$3:$K$18,4,FALSE)+VLOOKUP($B33,$B$22:$K$29,4,FALSE) -> 15 | F33: =VLOOKUP($B33,$B$3:$K$18,5,FALSE)+VLOOKUP($B33,$B$22:$K$29,5,FALSE) -> 1 | G33: =VLOOKUP($B33,$B$3:$K$18,6,FALSE)+VLOOKUP($B33,$B$22:$K$29,6,FALSE) -> 0 | H33: =VLOOKUP($B33,$B$3:$K$18,7,FALSE)+VLOOKUP($B33,$B$22:$K$29,7,FALSE) -> 121 | I33: =VLOOKUP($B33,$B$3:$K$18,8,FALSE)+VLOOKUP($B33,$B$22:$K$29,8,FALSE) -> 33 | J33: =VLOOKUP($B33,$B$3:$K$18,9,FALSE)+VLOOKUP($B33,$B$22:$K$29,9,FALSE) -> 88 | K33: =VLOOKUP($B33,$B$22:$K$29,10,FALSE) -> 1 | L33: =(C33*1000000000)+(E33*1000000)+(J33*1000)+H33 -> 46015088121 | M33: =VLOOKUP(B33,$B$3:$M$18,12,FALSE) -> 1 | N33: =RANK(L33,$L$33:$L$36) -> 1 | O33: =A33 -> V. QF1 | Q33: =B33 -> LEO LIMA (SP)
A34: =IF($K$24=1,$A$24,$A$25) -> V. QF2 | B34: =IF($K$24=1,$B$24,$B$25) -> DANIEL COUTO (RJ) | C34: =VLOOKUP($B34,$B$3:$K$18,2,FALSE)+VLOOKUP($B34,$B$22:$K$29,2,FALSE) -> 43 | D34: =VLOOKUP($B34,$B$3:$K$18,3,FALSE)+VLOOKUP($B34,$B$22:$K$29,3,FALSE) -> 16 | E34: =VLOOKUP($B34,$B$3:$K$18,4,FALSE)+VLOOKUP($B34,$B$22:$K$29,4,FALSE) -> 14 | F34: =VLOOKUP($B34,$B$3:$K$18,5,FALSE)+VLOOKUP($B34,$B$22:$K$29,5,FALSE) -> 1 | G34: =VLOOKUP($B34,$B$3:$K$18,6,FALSE)+VLOOKUP($B34,$B$22:$K$29,6,FALSE) -> 1 | H34: =VLOOKUP($B34,$B$3:$K$18,7,FALSE)+VLOOKUP($B34,$B$22:$K$29,7,FALSE) -> 86 | I34: =VLOOKUP($B34,$B$3:$K$18,8,FALSE)+VLOOKUP($B34,$B$22:$K$29,8,FALSE) -> 36 | J34: =VLOOKUP($B34,$B$3:$K$18,9,FALSE)+VLOOKUP($B34,$B$22:$K$29,9,FALSE) -> 50 | K34: =VLOOKUP($B34,$B$22:$K$29,10,FALSE) -> 1 | L34: =(C34*1000000000)+(E34*1000000)+(J34*1000)+H34 -> 43014050086 | M34: =VLOOKUP(B34,$B$3:$M$18,12,FALSE) -> 2 | N34: =RANK(L34,$L$33:$L$36) -> 2 | O34: =A34 -> V. QF2 | Q34: =B34 -> DANIEL COUTO (RJ)
A35: =IF($K$26=1,$A$26,$A$27) -> V. QF3 | B35: =IF($K$26=1,$B$26,$B$27) -> WALLACE RINCO (SP) | C35: =VLOOKUP($B35,$B$3:$K$18,2,FALSE)+VLOOKUP($B35,$B$22:$K$29,2,FALSE) -> 43 | D35: 16 | E35: 14 | F35: 1 | G35: 1 | H35: 83 | I35: 37 | J35: 46 | K35: 1 | L35: 43014046083 | M35: =VLOOKUP(B35,$B$3:$M$18,12,FALSE) -> 3 | N35: 3 | O35: V. QF3 | Q35: WALLACE RINCO (SP)
A36: =IF($K$28=1,$A$28,$A$29) -> V. QF4 | B36: =IF($K$28=1,$B$28,$B$29) -> RODRIGO (PE) | C36: =VLOOKUP($B36,$B$3:$K$18,2,FALSE)+VLOOKUP($B36,$B$22:$K$29,2,FALSE) -> 31 | D36: 16 | E36: 10 | F36: 1 | G36: 5 | H36: 118 | I36: 106 | J36: 12 | K36: 1 | L36: 31010012118 | M36: =VLOOKUP(B36,$B$3:$M$18,12,FALSE) -> 4 | N36: 4 | O36: V. QF4 | Q36: RODRIGO (PE)
A38: Resumo Acumulado até as Quartas de Final dos ELIMINADOS
A39: Ref. | B39: Atletas | C39: PG | D39: J | E39: V | F39: E | G39: D | H39: GP | I39: GC | J39: SG | K39: Class | L39: Chave | M39: Key | N39: Rank
A40: =IF($K$22=5,$A$22,$A$23) -> P. QF1 | B40: =IF($K$22=5,$B$22,$B$23) -> LUIZ GULHERME (SP) | C40: 20 | D40: 16 | E40: 6 | F40: 2 | G40: 8 | H40: 44 | I40: 49 | J40: -5 | K40: 5 | L40: =(C40*1000000000)+(E40*1000000)+(J40*1000)+H40 -> 20005995044 | M40: =VLOOKUP(B40,$B$3:$M$18,12,FALSE) -> 8 | N40: =RANK(L40,$L$40:$L$43) -> 4 | O40: =A40 -> P. QF1 | Q40: =B40 -> LUIZ GULHERME (SP)
A41: =IF($K$24=5,$A$24,$A$25) -> P. QF2 | B41: =IF($K$24=5,$B$24,$B$25) -> TUSURINHA (SP) | C41: 21 | D41: 16 | E41: 7 | F41: 0 | G41: 9 | H41: 33 | I41: 56 | J41: -23 | K41: 5 | L41: =(C41*1000000000)+(E41*1000000)+(J41*1000)+H41 -> 21006977033 | M41: =VLOOKUP(B41,$B$3:$M$18,12,FALSE) -> 7 | N41: =RANK(L41,$L$40:$L$43) -> 3 | O41: P. QF2 | Q41: =B41 -> TUSURINHA (SP)
A42: =IF($K$26=5,$A$26,$A$27) -> P. QF3 | B42: =IF($K$26=5,$B$26,$B$27) -> IGOR COSTA (SP) | C42: 24 | D42: 16 | E42: 8 | F42: 0 | G42: 8 | H42: 40 | I42: 48 | J42: -8 | K42: 5 | L42: 24007992040 | M42: =VLOOKUP(B42,$B$3:$M$18,12,FALSE) -> 6 | N42: 2 | O42: P. QF3 | Q42: =B42 -> IGOR COSTA (SP)
A43: =IF($K$28=5,$A$28,$A$29) -> P. QF4 | B43: =IF($K$28=5,$B$28,$B$29) -> MELLI JR (SP) | C43: 28 | D43: 16 | E43: 9 | F43: 1 | G43: 6 | H43: 88 | I43: 91 | J43: -3 | K43: 5 | L43: 28008997088 | M43: =VLOOKUP(B43,$B$3:$M$18,12,FALSE) -> 5 | N43: 1 | O43: P. QF4 | Q43: =B43 -> MELLI JR (SP)
A45: Resumo Geral da Classificação até as Quartas de Final
A46: Ref. | B46: Atletas | C46: PG | D46: J | E46: V | F46: E | G46: D | H46: GP | I46: GC | J46: SG | K46: Class | L46: Chave | M46: Key | N46: Rank
A47: =VLOOKUP(N47,$N$33:$Q$36,2,FALSE) -> V. QF1 | B47: =VLOOKUP(N47,$N$33:$Q$36,4,FALSE) -> LEO LIMA (SP) | C47: =VLOOKUP($B47,$B$33:$M$36,2,) -> 46 | D47: =VLOOKUP($B47,$B$33:$M$36,3,) -> 16 | E47: =VLOOKUP($B47,$B$33:$M$36,4,) -> 15 | F47: =VLOOKUP($B47,$B$33:$M$36,5,) -> 1 | G47: =VLOOKUP($B47,$B$33:$M$36,6,) -> 0 | H47: =VLOOKUP($B47,$B$33:$M$36,7,) -> 121 | I47: =VLOOKUP($B47,$B$33:$M$36,8,) -> 33 | J47: =VLOOKUP($B47,$B$33:$M$36,9,) -> 88 | K47: =VLOOKUP($B47,$B$33:$M$36,10,) -> 1 | L47: =VLOOKUP($B47,$B$33:$M$36,11,) -> 46015088121 | M47: =VLOOKUP(B47,$B$3:$M$18,12,FALSE) -> 1 | N47: 1
A48: =VLOOKUP(N48,$N$33:$Q$36,2,FALSE) -> V. QF2 | B48: =VLOOKUP(N48,$N$33:$Q$36,4,FALSE) -> DANIEL COUTO (RJ) | C48: =VLOOKUP($B48,$B$33:$M$36,2,) -> 43 | D48: =VLOOKUP($B48,$B$33:$M$36,3,) -> 16 | E48: =VLOOKUP($B48,$B$33:$M$36,4,) -> 14 | F48: =VLOOKUP($B48,$B$33:$M$36,5,) -> 1 | G48: =VLOOKUP($B48,$B$33:$M$36,6,) -> 1 | H48: =VLOOKUP($B48,$B$33:$M$36,7,) -> 86 | I48: =VLOOKUP($B48,$B$33:$M$36,8,) -> 36 | J48: =VLOOKUP($B48,$B$33:$M$36,9,) -> 50 | K48: =VLOOKUP($B48,$B$33:$M$36,10,) -> 1 | L48: =VLOOKUP($B48,$B$33:$M$36,11,) -> 43014050086 | M48: =VLOOKUP(B48,$B$3:$M$18,12,FALSE) -> 2 | N48: 2
A49: V. QF3 | B49: =VLOOKUP(N49,$N$33:$Q$36,4,FALSE) -> WALLACE RINCO (SP) | C49: 43 | D49: 16 | E49: 14 | F49: 1 | G49: 1 | H49: 83 | I49: 37 | J49: 46 | K49: 1 | L49: 43014046083 | M49: =VLOOKUP(B49,$B$3:$M$18,12,FALSE) -> 3 | N49: 3
A50: V. QF4 | B50: RODRIGO (PE) | C50: 31 | D50: 16 | E50: 10 | F50: 1 | G50: 5 | H50: 118 | I50: 106 | J50: 12 | K50: 1 | L50: 31010012118 | M50: =VLOOKUP(B50,$B$3:$M$18,12,FALSE) -> 4 | N50: 4
A52: Resumo das Semifinais
A53: Ref. | B53: Atletas | C53: PG | D53: J | E53: V | F53: E | G53: D | H53: GP | I53: GC | J53: SG | K53: Class | L53: Chave | M53: Key
A54: =CONCATENATE($N47,"o MC") -> 1o MC | B54: =$B$47 -> LEO LIMA (SP) | C54: =SF!F11 -> 3 | D54: =SUM(E54:G54) -> 1 | E54: =SF!G11 -> 1 | F54: =IF(C54=1,1,0) -> 0 | G54: =IF(H54<I54,1,IF($H$54:$H$55=0,0,1-E54-F54)) -> 0 | H54: =SF!I11 -> 4 | I54: =H54-J54 -> 1 | J54: =SF!H11 -> 3 | K54: =IF(C54=3,1,IF(AND(C54=1,L54>L55),1,IF(D54=0,0,3))) -> 1 | L54: =$L$47 -> 46015088121 | M54: =VLOOKUP(B54,$B$3:$M$18,12,FALSE) -> 1
A55: =CONCATENATE($N50,"o MC") -> 4o MC | B55: =$B$50 -> RODRIGO (PE) | C55: =SF!L11 -> 0 | D55: =SUM(E55:G55) -> 1 | E55: =SF!M11 -> 0 | F55: =IF(C55=1,1,0) -> 0 | G55: =IF(H55<I55,1,IF($H$54:$H$55=0,0,1-E55-F55)) -> 1 | H55: =SF!O11 -> 1 | I55: 4 | J55: =SF!N11 -> -3 | K55: =IF(C55=3,1,IF(AND(C55=1,L55>L54),1,IF(D55=0,0,3))) -> 3 | L55: =$L$50 -> 31010012118 | M55: =VLOOKUP(B55,$B$3:$M$18,12,FALSE) -> 4
A56: =CONCATENATE($N48,"o MC") -> 2o MC | B56: =$B$48 -> DANIEL COUTO (RJ) | C56: =SF!F14 -> 3 | D56: 1 | E56: =SF!G14 -> 1 | F56: 0 | G56: =IF(H56<I56,1,IF($H$56:$H$57=0,0,1-E56-F56)) -> 0 | H56: =SF!I14 -> 5 | I56: 2 | J56: =SF!H14 -> 3 | K56: =IF(C56=3,1,IF(AND(C56=1,L56>L55),1,IF(D56=0,0,3))) -> 1 | L56: =$L$48 -> 43014050086 | M56: =VLOOKUP(B56,$B$3:$M$18,12,FALSE) -> 2
A57: =CONCATENATE($N49,"o MC") -> 3o MC | B57: =$B$49 -> WALLACE RINCO (SP) | C57: =SF!L14 -> 0 | D57: 1 | E57: =SF!M14 -> 0 | F57: 0 | G57: =IF(H57<I57,1,IF($H$56:$H$57=0,0,1-E57-F57)) -> 1 | H57: =SF!O14 -> 2 | I57: 5 | J57: =SF!N14 -> -3 | K57: =IF(C57=3,1,IF(AND(C57=1,L57>L56),1,IF(D57=0,0,3))) -> 3 | L57: =$L$49 -> 43014046083 | M57: =VLOOKUP(B57,$B$3:$M$18,12,FALSE) -> 3
A59: Resumo Acumulado até as Semifinais
A60: Ref. | B60: Atletas | C60: PG | D60: J | E60: V | F60: E | G60: D | H60: GP | I60: GC | J60: SG | K60: Class | L60: Chave | M60: Key | N60: Rank
A61: V. SF1 | B61: =IF($K$54=1,$B$54,$B$55) -> LEO LIMA (SP) | C61: =VLOOKUP($B61,$B$47:$K$50,2,FALSE)+VLOOKUP($B61,$B$54:$K$57,2,FALSE) -> 49 | D61: =VLOOKUP($B61,$B$47:$K$50,3,FALSE)+VLOOKUP($B61,$B$54:$K$57,3,FALSE) -> 17 | E61: =VLOOKUP($B61,$B$47:$K$50,4,FALSE)+VLOOKUP($B61,$B$54:$K$57,4,FALSE) -> 16 | F61: =VLOOKUP($B61,$B$47:$K$50,5,FALSE)+VLOOKUP($B61,$B$54:$K$57,5,FALSE) -> 1 | G61: =VLOOKUP($B61,$B$47:$K$50,6,FALSE)+VLOOKUP($B61,$B$54:$K$57,6,FALSE) -> 0 | H61: =VLOOKUP($B61,$B$47:$K$50,7,FALSE)+VLOOKUP($B61,$B$54:$K$57,7,FALSE) -> 125 | I61: =VLOOKUP($B61,$B$47:$K$50,8,FALSE)+VLOOKUP($B61,$B$54:$K$57,8,FALSE) -> 34 | J61: =VLOOKUP($B61,$B$47:$K$50,9,FALSE)+VLOOKUP($B61,$B$54:$K$57,9,FALSE) -> 91 | K61: =VLOOKUP($B61,$B$54:$K$57,10,FALSE) -> 1 | L61: =(C61*1000000000)+(E61*1000000)+(J61*1000)+H61 -> 49016091125 | M61: =VLOOKUP(B61,$B$3:$M$18,12,FALSE) -> 1 | N61: =RANK(L61,$L$61:$L$62) -> 1 | O61: =A61 -> V. SF1 | Q61: =B61 -> LEO LIMA (SP)
A62: V. SF2 | B62: =IF($K$56=1,$B$56,$B$57) -> DANIEL COUTO (RJ) | C62: =VLOOKUP($B62,$B$47:$K$50,2,FALSE)+VLOOKUP($B62,$B$54:$K$57,2,FALSE) -> 46 | D62: =VLOOKUP($B62,$B$47:$K$50,3,FALSE)+VLOOKUP($B62,$B$54:$K$57,3,FALSE) -> 17 | E62: =VLOOKUP($B62,$B$47:$K$50,4,FALSE)+VLOOKUP($B62,$B$54:$K$57,4,FALSE) -> 15 | F62: =VLOOKUP($B62,$B$47:$K$50,5,FALSE)+VLOOKUP($B62,$B$54:$K$57,5,FALSE) -> 1 | G62: =VLOOKUP($B62,$B$47:$K$50,6,FALSE)+VLOOKUP($B62,$B$54:$K$57,6,FALSE) -> 1 | H62: =VLOOKUP($B62,$B$47:$K$50,7,FALSE)+VLOOKUP($B62,$B$54:$K$57,7,FALSE) -> 91 | I62: =VLOOKUP($B62,$B$47:$K$50,8,FALSE)+VLOOKUP($B62,$B$54:$K$57,8,FALSE) -> 38 | J62: =VLOOKUP($B62,$B$47:$K$50,9,FALSE)+VLOOKUP($B62,$B$54:$K$57,9,FALSE) -> 53 | K62: =VLOOKUP($B62,$B$54:$K$57,10,FALSE) -> 1 | L62: =(C62*1000000000)+(E62*1000000)+(J62*1000)+H62 -> 46015053091 | M62: =VLOOKUP(B62,$B$3:$M$18,12,FALSE) -> 2 | N62: =RANK(L62,$L$61:$L$62) -> 2 | O62: =A62 -> V. SF2 | Q62: =B62 -> DANIEL COUTO (RJ)
A63: P. SF1 | B63: =IF($K$54=3,$B$54,$B$55) -> RODRIGO (PE) | C63: 31 | D63: 17 | E63: 10 | F63: 1 | G63: 6 | H63: 119 | I63: 110 | J63: 9 | K63: =VLOOKUP($B63,$B$54:$K$57,10,FALSE) -> 3 | L63: 31010009119 | M63: =VLOOKUP(B63,$B$3:$M$18,12,FALSE) -> 4 | N63: =RANK(L63,$L$63:$L$64) -> 2 | O63: P. SF1 | Q63: RODRIGO (PE)
A64: P. SF2 | B64: =IF($K$56=3,$B$56,$B$57) -> WALLACE RINCO (SP) | C64: 43 | D64: 17 | E64: 14 | F64: 1 | G64: 2 | H64: 85 | I64: 42 | J64: 43 | K64: =VLOOKUP($B64,$B$54:$K$57,10,FALSE) -> 3 | L64: 43014043085 | M64: =VLOOKUP(B64,$B$3:$M$18,12,FALSE) -> 3 | N64: =RANK(L64,$L$63:$L$64) -> 1 | O64: P. SF2 | Q64: WALLACE RINCO (SP)
A66: Resumo Geral da Classificação até as Semifianis
A67: Ref. | B67: Atletas | C67: PG | D67: J | E67: V | F67: E | G67: D | H67: GP | I67: GC | J67: SG | K67: Class | L67: Chave | M67: Key | N67: Rank
A68: =VLOOKUP(N68,$N$61:$Q$62,2,FALSE) -> V. SF1 | B68: =VLOOKUP(N68,$N$61:$Q$62,4,FALSE) -> LEO LIMA (SP) | C68: =VLOOKUP($B68,$B$61:$M$64,2,) -> 49 | D68: =VLOOKUP($B68,$B$61:$M$64,3,) -> 17 | E68: =VLOOKUP($B68,$B$61:$M$64,4,) -> 16 | F68: =VLOOKUP($B68,$B$61:$M$64,5,) -> 1 | G68: =VLOOKUP($B68,$B$61:$M$64,6,) -> 0 | H68: =VLOOKUP($B68,$B$61:$M$64,7,) -> 125 | I68: =VLOOKUP($B68,$B$61:$M$64,8,) -> 34 | J68: =VLOOKUP($B68,$B$61:$M$64,9,) -> 91 | K68: =VLOOKUP($B68,$B$61:$M$64,10,) -> 1 | L68: =VLOOKUP($B68,$B$61:$M$64,11,) -> 49016091125 | M68: =VLOOKUP(B68,$B$3:$M$18,12,FALSE) -> 1 | N68: 1
A69: =VLOOKUP(N69,$N$61:$Q$62,2,FALSE) -> V. SF2 | B69: =VLOOKUP(N69,$N$61:$Q$62,4,FALSE) -> DANIEL COUTO (RJ) | C69: =VLOOKUP($B69,$B$61:$M$64,2,) -> 46 | D69: =VLOOKUP($B69,$B$61:$M$64,3,) -> 17 | E69: =VLOOKUP($B69,$B$61:$M$64,4,) -> 15 | F69: =VLOOKUP($B69,$B$61:$M$64,5,) -> 1 | G69: =VLOOKUP($B69,$B$61:$M$64,6,) -> 1 | H69: =VLOOKUP($B69,$B$61:$M$64,7,) -> 91 | I69: =VLOOKUP($B69,$B$61:$M$64,8,) -> 38 | J69: =VLOOKUP($B69,$B$61:$M$64,9,) -> 53 | K69: =VLOOKUP($B69,$B$61:$M$64,10,) -> 1 | L69: =VLOOKUP($B69,$B$61:$M$64,11,) -> 46015053091 | M69: =VLOOKUP(B69,$B$3:$M$18,12,FALSE) -> 2 | N69: 2
A70: =VLOOKUP(N70,$N$63:$Q$64,2,FALSE) -> P. SF2 | B70: =VLOOKUP(N70,$N$63:$Q$64,4,FALSE) -> WALLACE RINCO (SP) | C70: 43 | D70: 17 | E70: 14 | F70: 1 | G70: 2 | H70: 85 | I70: 42 | J70: 43 | K70: 3 | L70: 43014043085 | M70: =VLOOKUP(B70,$B$3:$M$18,12,FALSE) -> 3 | N70: 1
A71: =VLOOKUP(N71,$N$63:$Q$64,2,FALSE) -> P. SF1 | B71: =VLOOKUP(N71,$N$63:$Q$64,4,FALSE) -> RODRIGO (PE) | C71: 31 | D71: 17 | E71: 10 | F71: 1 | G71: 6 | H71: 119 | I71: 110 | J71: 9 | K71: 3 | L71: 31010009119 | M71: =VLOOKUP(B71,$B$3:$M$18,12,FALSE) -> 4 | N71: 2
A73: Resumo das Finais
A74: Ref. | B74: Atletas | C74: PG | D74: J | E74: V | F74: E | G74: D | H74: GP | I74: GC | J74: SG | K74: Class | L74: Chave | M74: Key
A75: =$A68 -> V. SF1 | B75: =$B68 -> LEO LIMA (SP) | C75: =F!F11 -> 3 | D75: =SUM(E75:G75) -> 1 | E75: =F!G11 -> 1 | F75: =IF(C75=1,1,0) -> 0 | G75: =IF(H75<I75,1,IF($H$75:$H$76=0,0,1-E75-F75)) -> 0 | H75: =F!I11 -> 9 | I75: =H75-J75 -> 3 | J75: =F!H11 -> 6 | K75: =IF(C75=3,1,IF(AND(C75=1,L75>L76),1,IF(D75=0,0,2))) -> 1 | L75: =$L68 -> 49016091125 | M75: =VLOOKUP(B75,$B$3:$M$17,12,FALSE) -> 1
A76: =$A69 -> V. SF2 | B76: =$B69 -> DANIEL COUTO (RJ) | C76: =F!L11 -> 0 | D76: =SUM(E76:G76) -> 1 | E76: =F!M11 -> 0 | F76: =IF(C76=1,1,0) -> 0 | G76: =IF(H76<I76,1,IF($H$75:$H$76=0,0,1-E76-F76)) -> 1 | H76: =F!O11 -> 3 | I76: =H76-J76 -> 9 | J76: =F!N11 -> -6 | K76: =IF(C76=3,1,IF(AND(C76=1,L75>L76),1,IF(D76=0,0,2))) -> 2 | L76: =$L69 -> 46015053091 | M76: =VLOOKUP(B76,$B$3:$M$17,12,FALSE) -> 2
A77: P. SF2 | B77: WALLACE RINCO (SP) | C77: =F!F18 -> 0 | D77: 1 | E77: =F!G18 -> 0 | F77: 0 | G77: =IF(H77<I77,1,IF($H$77:$H$78=0,0,1-E77-F77)) -> 1 | H77: =F!I18 -> 3 | I77: 5 | J77: =F!H18 -> -2 | K77: =IF(C77=3,3,IF(AND(C77=1,L77>L78),3,IF(D77=0,0,4))) -> 4 | L77: 43014043085 | M77: =VLOOKUP(B77,$B$3:$M$17,12,FALSE) -> 3
A78: P. SF1 | B78: RODRIGO (PE) | C78: =F!L18 -> 3 | D78: 1 | E78: =F!M18 -> 1 | F78: 0 | G78: =IF(H78<I78,1,IF($H$77:$H$78=0,0,1-E78-F78)) -> 0 | H78: =F!O18 -> 5 | I78: 3 | J78: =F!N18 -> 2 | K78: =IF(C78=3,3,IF(AND(C78=1,L78>L79),3,IF(D78=0,0,4))) -> 3 | L78: 31010009119 | M78: =VLOOKUP(B78,$B$3:$M$17,12,FALSE) -> 4
A80: Resumo Acumulado até as Finais
A81: Ref. | B81: Atletas | C81: PG | D81: J | E81: V | F81: E | G81: D | H81: GP | I81: GC | J81: SG | K81: Class | L81: Chave | M81: Key | N81: Rank
A82: V. F. | B82: =IF($K$75=1,$B$75,$B$76) -> LEO LIMA (SP) | C82: =VLOOKUP($B82,$B$68:$K$71,2,FALSE)+VLOOKUP($B82,$B$75:$K$78,2,FALSE) -> 52 | D82: =VLOOKUP($B82,$B$68:$K$71,3,FALSE)+VLOOKUP($B82,$B$75:$K$78,3,FALSE) -> 18 | E82: =VLOOKUP($B82,$B$68:$K$71,4,FALSE)+VLOOKUP($B82,$B$75:$K$78,4,FALSE) -> 17 | F82: =VLOOKUP($B82,$B$68:$K$71,5,FALSE)+VLOOKUP($B82,$B$75:$K$78,5,FALSE) -> 1 | G82: =VLOOKUP($B82,$B$68:$K$71,6,FALSE)+VLOOKUP($B82,$B$75:$K$78,6,FALSE) -> 0 | H82: =VLOOKUP($B82,$B$68:$K$71,7,FALSE)+VLOOKUP($B82,$B$75:$K$78,7,FALSE) -> 134 | I82: =VLOOKUP($B82,$B$68:$K$71,8,FALSE)+VLOOKUP($B82,$B$75:$K$78,8,FALSE) -> 37 | J82: =VLOOKUP($B82,$B$68:$K$71,9,FALSE)+VLOOKUP($B82,$B$75:$K$78,9,FALSE) -> 97 | K82: =VLOOKUP($B82,$B$75:$K$78,10,FALSE) -> 1 | L82: =(C82*1000000000)+(E82*1000000)+(J82*1000)+H82 -> 52017097134 | M82: =VLOOKUP(B82,$B$3:$M$18,12,FALSE) -> 1 | N82: =RANK(L82,$L$82:$L$83) -> 1 | O82: =A82 -> V. F. | Q82: =B82 -> LEO LIMA (SP)
A83: P. F. | B83: =IF($K$75=2,$B$75,$B$76) -> DANIEL COUTO (RJ) | C83: =VLOOKUP($B83,$B$68:$K$71,2,FALSE)+VLOOKUP($B83,$B$75:$K$78,2,FALSE) -> 46 | D83: =VLOOKUP($B83,$B$68:$K$71,3,FALSE)+VLOOKUP($B83,$B$75:$K$78,3,FALSE) -> 18 | E83: =VLOOKUP($B83,$B$68:$K$71,4,FALSE)+VLOOKUP($B83,$B$75:$K$78,4,FALSE) -> 15 | F83: =VLOOKUP($B83,$B$68:$K$71,5,FALSE)+VLOOKUP($B83,$B$75:$K$78,5,FALSE) -> 1 | G83: =VLOOKUP($B83,$B$68:$K$71,6,FALSE)+VLOOKUP($B83,$B$75:$K$78,6,FALSE) -> 2 | H83: =VLOOKUP($B83,$B$68:$K$71,7,FALSE)+VLOOKUP($B83,$B$75:$K$78,7,FALSE) -> 94 | I83: =VLOOKUP($B83,$B$68:$K$71,8,FALSE)+VLOOKUP($B83,$B$75:$K$78,8,FALSE) -> 47 | J83: =VLOOKUP($B83,$B$68:$K$71,9,FALSE)+VLOOKUP($B83,$B$75:$K$78,9,FALSE) -> 47 | K83: 2 | L83: =(C83*1000000000)+(E83*1000000)+(J83*1000)+H83 -> 46015047094 | M83: =VLOOKUP(B83,$B$3:$M$18,12,FALSE) -> 2 | N83: =RANK(L83,$L$82:$L$83) -> 2 | O83: =A83 -> P. F. | Q83: =B83 -> DANIEL COUTO (RJ)
A84: V. F. | B84: =IF($K$77=3,$B$77,$B$78) -> RODRIGO (PE) | C84: 34 | D84: 18 | E84: 11 | F84: 1 | G84: 6 | H84: 124 | I84: 113 | J84: 11 | K84: =VLOOKUP($B84,$B$75:$K$78,10,FALSE) -> 3 | L84: =(C84*1000000000)+(E84*1000000)+(J84*1000)+H84 -> 34011011124 | M84: =VLOOKUP(B84,$B$3:$M$18,12,FALSE) -> 4 | N84: =RANK(L84,$L$84:$L$85) -> 2 | O84: =A84 -> V. F. | Q84: =B84 -> RODRIGO (PE)
A85: P. F. | B85: =IF($K$77=4,$B$77,$B$78) -> WALLACE RINCO (SP) | C85: 43 | D85: 18 | E85: 14 | F85: 1 | G85: 3 | H85: 88 | I85: 47 | J85: 41 | K85: 4 | L85: 43014041088 | M85: =VLOOKUP(B85,$B$3:$M$18,12,FALSE) -> 3 | N85: =RANK(L85,$L$84:$L$85) -> 1 | O85: =A85 -> P. F. | Q85: =B85 -> WALLACE RINCO (SP)
A87: Resumo Geral Acumulado até as Finais
A88: Ref. | B88: Atletas | C88: PG | D88: J | E88: V | F88: E | G88: D | H88: GP | I88: GC | J88: SG | K88: Class | L88: Chave | M88: Key | N88: Rank
A89: =VLOOKUP(N89,$N$82:$Q$83,2,FALSE) -> V. F. | B89: =VLOOKUP(N89,$N$82:$Q$83,4,FALSE) -> LEO LIMA (SP) | C89: =VLOOKUP($B89,$B$82:$M$85,2,FALSE) -> 52 | D89: =VLOOKUP($B89,$B$82:$M$85,3,FALSE) -> 18 | E89: =VLOOKUP($B89,$B$82:$M$85,4,FALSE) -> 17 | F89: =VLOOKUP($B89,$B$82:$M$85,5,FALSE) -> 1 | G89: =VLOOKUP($B89,$B$82:$M$85,6,FALSE) -> 0 | H89: =VLOOKUP($B89,$B$82:$M$85,7,FALSE) -> 134 | I89: =VLOOKUP($B89,$B$82:$M$85,8,FALSE) -> 37 | J89: =VLOOKUP($B89,$B$82:$M$85,9,FALSE) -> 97 | K89: =VLOOKUP($B89,$B$82:$M$85,10,FALSE) -> 1 | L89: =(C89*1000000000)+(E89*1000000)+(J89*1000)+H89 -> 52017097134 | M89: =VLOOKUP(B89,$B$3:$M$18,12,FALSE) -> 1 | N89: 1 | O89: =B89 -> LEO LIMA (SP)
A90: =VLOOKUP(N90,$N$82:$Q$83,2,FALSE) -> P. F. | B90: =VLOOKUP(N90,$N$82:$Q$83,4,FALSE) -> DANIEL COUTO (RJ) | C90: =VLOOKUP($B90,$B$82:$M$85,2,FALSE) -> 46 | D90: =VLOOKUP($B90,$B$82:$M$85,3,FALSE) -> 18 | E90: =VLOOKUP($B90,$B$82:$M$85,4,FALSE) -> 15 | F90: =VLOOKUP($B90,$B$82:$M$85,5,FALSE) -> 1 | G90: =VLOOKUP($B90,$B$82:$M$85,6,FALSE) -> 2 | H90: =VLOOKUP($B90,$B$82:$M$85,7,FALSE) -> 94 | I90: =VLOOKUP($B90,$B$82:$M$85,8,FALSE) -> 47 | J90: =VLOOKUP($B90,$B$82:$M$85,9,FALSE) -> 47 | K90: =VLOOKUP($B90,$B$82:$M$85,10,FALSE) -> 2 | L90: =(C90*1000000000)+(E90*1000000)+(J90*1000)+H90 -> 46015047094 | M90: =VLOOKUP(B90,$B$3:$M$18,12,FALSE) -> 2 | N90: 2 | O90: =B90 -> DANIEL COUTO (RJ)
A91: =VLOOKUP(N91,$N$84:$Q$85,2,FALSE) -> P. F. | B91: =VLOOKUP(N91,$N$84:$Q$85,4,FALSE) -> WALLACE RINCO (SP) | C91: =VLOOKUP($B91,$B$82:$M$85,2,FALSE) -> 43 | D91: =VLOOKUP($B91,$B$82:$M$85,3,FALSE) -> 18 | E91: =VLOOKUP($B91,$B$82:$M$85,4,FALSE) -> 14 | F91: =VLOOKUP($B91,$B$82:$M$85,5,FALSE) -> 1 | G91: =VLOOKUP($B91,$B$82:$M$85,6,FALSE) -> 3 | H91: =VLOOKUP($B91,$B$82:$M$85,7,FALSE) -> 88 | I91: =VLOOKUP($B91,$B$82:$M$85,8,FALSE) -> 47 | J91: =VLOOKUP($B91,$B$82:$M$85,9,FALSE) -> 41 | K91: =VLOOKUP($B91,$B$82:$M$85,10,FALSE) -> 4 | L91: =(C91*1000000000)+(E91*1000000)+(J91*1000)+H91 -> 43014041088 | M91: =VLOOKUP(B91,$B$3:$M$18,12,FALSE) -> 3 | N91: 1 | O91: =B91 -> WALLACE RINCO (SP)
A92: =VLOOKUP(N92,$N$82:$Q$83,2,FALSE) -> P. F. | B92: =VLOOKUP(N92,$N$84:$Q$85,4,FALSE) -> RODRIGO (PE) | C92: =VLOOKUP($B92,$B$82:$M$85,2,FALSE) -> 34 | D92: =VLOOKUP($B92,$B$82:$M$85,3,FALSE) -> 18 | E92: =VLOOKUP($B92,$B$82:$M$85,4,FALSE) -> 11 | F92: =VLOOKUP($B92,$B$82:$M$85,5,FALSE) -> 1 | G92: =VLOOKUP($B92,$B$82:$M$85,6,FALSE) -> 6 | H92: =VLOOKUP($B92,$B$82:$M$85,7,FALSE) -> 124 | I92: =VLOOKUP($B92,$B$82:$M$85,8,FALSE) -> 113 | J92: =VLOOKUP($B92,$B$82:$M$85,9,FALSE) -> 11 | K92: =VLOOKUP($B92,$B$82:$M$85,10,FALSE) -> 3 | L92: =(C92*1000000000)+(E92*1000000)+(J92*1000)+H92 -> 34011011124 | M92: =VLOOKUP(B92,$B$3:$M$18,12,FALSE) -> 4 | N92: 2 | O92: =B92 -> RODRIGO (PE)
A94: Resumo para Classificação Final
A95: Class | B95: Atletas | C95: PG | D95: J | E95: V | F95: E | G95: D | H95: GP | I95: GC | J95: SG | K95: Class | L95: Chave | M95: Key
A96: =K96 -> 1 | B96: =B89 -> LEO LIMA (SP) | C96: =C89 -> 52 | D96: 18 | E96: 17 | F96: 1 | G96: 0 | H96: 134 | I96: 37 | J96: 97 | K96: 1 | L96: 52017097134 | M96: 1
A97: =K97 -> 2 | B97: =B90 -> DANIEL COUTO (RJ) | C97: 46 | D97: 18 | E97: 15 | F97: 1 | G97: 2 | H97: 94 | I97: 47 | J97: 47 | K97: =K90 -> 2 | L97: 46015047094 | M97: 2
A98: =K98 -> 4 | B98: =B63 -> RODRIGO (PE) | C98: 31 | D98: 17 | E98: 10 | F98: 1 | G98: 6 | H98: 119 | I98: 110 | J98: 9 | K98: =K91 -> 4 | L98: =L63 -> 31010009119 | M98: =M63 -> 4
A99: =K99 -> 3 | B99: =B64 -> WALLACE RINCO (SP) | C99: 43 | D99: 17 | E99: 14 | F99: 1 | G99: 2 | H99: 85 | I99: 42 | J99: 43 | K99: =K92 -> 3 | L99: =L64 -> 43014043085 | M99: =M64 -> 3
A100: =RANK(L100,$L$100:$L$103,0)+K100-1 -> 8 | B100: =B40 -> LUIZ GULHERME (SP) | C100: =C40 -> 20 | D100: =D40 -> 16 | E100: 6 | F100: 2 | G100: 8 | H100: 44 | I100: 49 | J100: -5 | K100: 5 | L100: 20005995044 | M100: 8
A101: =RANK(L101,$L$100:$L$103,0)+K101-1 -> 7 | B101: =B41 -> TUSURINHA (SP) | C101: 21 | D101: 16 | E101: 7 | F101: 0 | G101: 9 | H101: 33 | I101: 56 | J101: -23 | K101: 5 | L101: 21006977033 | M101: 7
A102: 6 | B102: IGOR COSTA (SP) | C102: 24 | D102: 16 | E102: 8 | F102: 0 | G102: 8 | H102: 40 | I102: 48 | J102: -8 | K102: 5 | L102: 24007992040 | M102: 6
A103: 5 | B103: MELLI JR (SP) | C103: 28 | D103: 16 | E103: 9 | F103: 1 | G103: 6 | H103: 88 | I103: 91 | J103: -3 | K103: 5 | L103: 28008997088 | M103: 5
A104: =RANK(L104,$L$104:$L$111,0)+K104-1 -> 9 | B104: =B11 -> VITOR HUGO (SP) | C104: =C11 -> 19 | D104: =D11 -> 15 | E104: 5 | F104: 4 | G104: 6 | H104: 35 | I104: 41 | J104: -6 | K104: 9 | L104: 19004994035 | M104: 9
A105: =RANK(L105,$L$104:$L$111,0)+K105-1 -> 10 | B105: =B12 -> PEDRO ANTONIO (SP) | C105: 18 | D105: =D12 -> 15 | E105: 5 | F105: 3 | G105: 7 | H105: 38 | I105: 45 | J105: -7 | K105: 9 | L105: 18004993038 | M105: 10
A106: 11 | B106: TUGUINHA (SP) | C106: 17 | D106: =D13 -> 15 | E106: 5 | F106: 2 | G106: 8 | H106: 31 | I106: 54 | J106: -23 | K106: 9 | L106: 17004977031 | M106: 11
A107: 12 | B107: LINNO BALA (PE) | C107: 15 | D107: =D14 -> 15 | E107: 4 | F107: 3 | G107: 8 | H107: 31 | I107: 52 | J107: -21 | K107: 9 | L107: 15003979031 | M107: 12
A108: 13 | B108: PEDRINHO (SP) | C108: 14 | D108: =D15 -> 15 | E108: 3 | F108: 5 | G108: 7 | H108: 31 | I108: 40 | J108: -9 | K108: 9 | L108: 14002991031 | M108: 13
A109: 14 | B109: VERISSON (PE) | C109: 10 | D109: =D16 -> 15 | E109: 3 | F109: 1 | G109: 11 | H109: 22 | I109: 50 | J109: -28 | K109: 9 | L109: 10002972022 | M109: 14
A110: 15 | B110: DAVI ANDRADE (SP) | C110: 7 | D110: =D17 -> 15 | E110: 2 | F110: 1 | G110: 12 | H110: 14 | I110: 43 | J110: -29 | K110: 9 | L110: 7001971014 | M110: 15
A111: 16 | B111: CAROL (SP) | C111: 3 | D111: =D18 -> 15 | E111: 1 | F111: 0 | G111: 14 | H111: 18 | I111: 52 | J111: -34 | K111: 9 | L111: 3000966018 | M111: 16
A113: Classificação Final
A114: Class | B114: Atletas | C114: PG | D114: J | E114: V | F114: E | G114: D | H114: GP | I114: GC | J114: SG | K114: Class | L114: Chave | M114: Key
A115: 1 | B115: =VLOOKUP($A115,$A$96:$M$111,2,0) -> LEO LIMA (SP) | C115: =VLOOKUP($A115,$A$96:$M$111,3,0) -> 52 | D115: =VLOOKUP($A115,$A$96:$M$111,4,0) -> 18 | E115: =VLOOKUP($A115,$A$96:$M$111,5,0) -> 17 | F115: =VLOOKUP($A115,$A$96:$M$111,6,0) -> 1 | G115: =VLOOKUP($A115,$A$96:$M$111,7,0) -> 0 | H115: =VLOOKUP($A115,$A$96:$M$111,8,0) -> 134 | I115: =VLOOKUP($A115,$A$96:$M$111,9,0) -> 37 | J115: =VLOOKUP($A115,$A$96:$M$111,10,0) -> 97 | K115: =VLOOKUP($A115,$A$96:$M$111,11,0) -> 1 | L115: =VLOOKUP($A115,$A$96:$M$111,12,0) -> 52017097134 | M115: =VLOOKUP($A115,$A$96:$M$111,13,0) -> 1
A116: 2 | B116: =VLOOKUP($A116,$A$96:$M$111,2,0) -> DANIEL COUTO (RJ) | C116: =VLOOKUP($A116,$A$96:$M$111,3,0) -> 46 | D116: =VLOOKUP($A116,$A$96:$M$111,4,0) -> 18 | E116: =VLOOKUP($A116,$A$96:$M$111,5,0) -> 15 | F116: =VLOOKUP($A116,$A$96:$M$111,6,0) -> 1 | G116: =VLOOKUP($A116,$A$96:$M$111,7,0) -> 2 | H116: =VLOOKUP($A116,$A$96:$M$111,8,0) -> 94 | I116: =VLOOKUP($A116,$A$96:$M$111,9,0) -> 47 | J116: =VLOOKUP($A116,$A$96:$M$111,10,0) -> 47 | K116: =VLOOKUP($A116,$A$96:$M$111,11,0) -> 2 | L116: =VLOOKUP($A116,$A$96:$M$111,12,0) -> 46015047094 | M116: =VLOOKUP($A116,$A$96:$M$111,13,0) -> 2
A117: 3 | B117: WALLACE RINCO (SP) | C117: 43 | D117: 17 | E117: 14 | F117: 1 | G117: 2 | H117: 85 | I117: 42 | J117: 43 | K117: 3 | L117: 43014043085 | M117: 3
A118: 4 | B118: RODRIGO (PE) | C118: 31 | D118: 17 | E118: 10 | F118: 1 | G118: 6 | H118: 119 | I118: 110 | J118: 9 | K118: 4 | L118: 31010009119 | M118: 4
A119: 5 | B119: MELLI JR (SP) | C119: 28 | D119: 16 | E119: 9 | F119: 1 | G119: 6 | H119: 88 | I119: 91 | J119: -3 | K119: 5 | L119: 28008997088 | M119: 5
A120: 6 | B120: IGOR COSTA (SP) | C120: 24 | D120: 16 | E120: 8 | F120: 0 | G120: 8 | H120: 40 | I120: 48 | J120: -8 | K120: 5 | L120: 24007992040 | M120: 6
A121: 7 | B121: TUSURINHA (SP) | C121: 21 | D121: 16 | E121: 7 | F121: 0 | G121: 9 | H121: 33 | I121: 56 | J121: -23 | K121: 5 | L121: 21006977033 | M121: 7
A122: 8 | B122: LUIZ GULHERME (SP) | C122: 20 | D122: 16 | E122: 6 | F122: 2 | G122: 8 | H122: 44 | I122: 49 | J122: -5 | K122: 5 | L122: 20005995044 | M122: 8
A123: 9 | B123: VITOR HUGO (SP) | C123: 19 | D123: 15 | E123: 5 | F123: 4 | G123: 6 | H123: 35 | I123: 41 | J123: -6 | K123: 9 | L123: 19004994035 | M123: 9
A124: 10 | B124: PEDRO ANTONIO (SP) | C124: 18 | D124: 15 | E124: 5 | F124: 3 | G124: 7 | H124: 38 | I124: 45 | J124: -7 | K124: 9 | L124: 18004993038 | M124: 10
A125: 11 | B125: TUGUINHA (SP) | C125: 17 | D125: 15 | E125: 5 | F125: 2 | G125: 8 | H125: 31 | I125: 54 | J125: -23 | K125: 9 | L125: 17004977031 | M125: 11
A126: 12 | B126: LINNO BALA (PE) | C126: 15 | D126: 15 | E126: 4 | F126: 3 | G126: 8 | H126: 31 | I126: 52 | J126: -21 | K126: 9 | L126: 15003979031 | M126: 12
A127: 13 | B127: PEDRINHO (SP) | C127: 14 | D127: 15 | E127: 3 | F127: 5 | G127: 7 | H127: 31 | I127: 40 | J127: -9 | K127: 9 | L127: 14002991031 | M127: 13
A128: 14 | B128: VERISSON (PE) | C128: 10 | D128: 15 | E128: 3 | F128: 1 | G128: 11 | H128: 22 | I128: 50 | J128: -28 | K128: 9 | L128: 10002972022 | M128: 14
A129: 15 | B129: DAVI ANDRADE (SP) | C129: 7 | D129: 15 | E129: 2 | F129: 1 | G129: 12 | H129: 14 | I129: 43 | J129: -29 | K129: 9 | L129: 7001971014 | M129: 15
A130: 16 | B130: CAROL (SP) | C130: 3 | D130: 15 | E130: 1 | F130: 0 | G130: 14 | H130: 18 | I130: 52 | J130: -34 | K130: 9 | L130: 3000966018 | M130: 16

Sheet SUM-F1
Z1: N.o | AA1: 32º Campeonato Brasileiro Individual | AB1: Categoria | AC1: Grp | AD1: Rod | AE1: Mesa | AF1: Jog1 | AG1: Jog2
C2: =$AA$1 -> 32º Campeonato Brasileiro Individual | K2: =$AB$1 -> Categoria | O2: =$AA$1 -> 32º Campeonato Brasileiro Individual | W2: =$AB$1 -> Categoria | Z2: 1 | AA2: 1a Fase | AB2: SUB-18 | AC2: 1 | AD2: 1 | AE2: ='F1'!D9 -> 57 | AF2: ='F1'!E9 -> LEO LIMA (SP) | AG2: ='F1'!L9 -> CAROL (SP)
C3: =$AA$2 -> 1a Fase | K3: =$AB$2 -> SUB-18 | O3: =$AA$3 -> 1a Fase | W3: =$AB$3 -> SUB-18 | Z3: 2 | AA3: =AA2 -> 1a Fase | AB3: =AB2 -> SUB-18 | AC3: 1 | AD3: 1 | AE3: ='F1'!D10 -> 58 | AF3: ='F1'!E10 -> PEDRO ANTONIO (SP) | AG3: ='F1'!L10 -> TUGUINHA (SP)
Z4: 3 | AA4: 1a Fase | AB4: SUB-18 | AC4: 1 | AD4: 1 | AE4: ='F1'!D11 -> 59 | AF4: ='F1'!E11 -> IGOR COSTA (SP) | AG4: ='F1'!L11 -> LUIZ GULHERME (SP)
A5: 1 | C5: Grupo | E5: =$AF$2 -> LEO LIMA (SP) | O5: Grupo | Q5: =$AF$3 -> PEDRO ANTONIO (SP) | Z5: 4 | AA5: 1a Fase | AB5: SUB-18 | AC5: 1 | AD5: 1 | AE5: ='F1'!D12 -> 60 | AF5: ='F1'!E12 -> VITOR HUGO (SP) | AG5: ='F1'!L12 -> TUSURINHA (SP)
A6: 1 | C6: =$AC$2 -> 1 | O6: =$AC$3 -> 1 | Z6: 5 | AA6: 1a Fase | AB6: SUB-18 | AC6: 1 | AD6: 1 | AE6: ='F1'!D13 -> 61 | AF6: ='F1'!E13 -> PEDRINHO (SP) | AG6: ='F1'!L13 -> MELLI JR (SP)
Z7: 6 | AA7: 1a Fase | AB7: SUB-18 | AC7: 1 | AD7: 1 | AE7: ='F1'!D14 -> 62 | AF7: ='F1'!E14 -> WALLACE RINCO (SP) | AG7: ='F1'!L14 -> DAVI ANDRADE (SP)
Z8: 7 | AA8: 1a Fase | AB8: SUB-18 | AC8: 1 | AD8: 1 | AE8: ='F1'!D15 -> 63 | AF8: ='F1'!E15 -> RODRIGO (PE) | AG8: ='F1'!L15 -> VERISSON (PE)
C9: Rodada | O9: Rodada | Z9: 8 | AA9: 1a Fase | AB9: SUB-18 | AC9: 1 | AD9: 1 | AE9: ='F1'!D16 -> 64 | AF9: ='F1'!E16 -> LINNO BALA (PE) | AG9: ='F1'!L16 -> DANIEL COUTO (RJ)
C10: =$AD$2 -> 1 | O10: =$AD$3 -> 1 | Z10: 9 | AA10: 1a Fase | AB10: SUB-18 | AC10: 1 | AD10: 2 | AE10: ='F1'!D18 -> 60 | AF10: ='F1'!E18 -> LEO LIMA (SP) | AG10: ='F1'!L18 -> TUGUINHA (SP)
A11: 1 | E11: =$AG$2 -> CAROL (SP) | Q11: =$AG$3 -> TUGUINHA (SP) | Z11: 10 | AA11: 1a Fase | AB11: SUB-18 | AC11: 1 | AD11: 2 | AE11: ='F1'!D19 -> 59 | AF11: ='F1'!E19 -> PEDRO ANTONIO (SP) | AG11: ='F1'!L19 -> CAROL (SP)
A12: 1 | Z12: 11 | AA12: 1a Fase | AB12: SUB-18 | AC12: 1 | AD12: 2 | AE12: ='F1'!D20 -> 62 | AF12: ='F1'!E20 -> IGOR COSTA (SP) | AG12: ='F1'!L20 -> TUSURINHA (SP)
C13: Mesa | O13: Mesa | Z13: 12 | AA13: 1a Fase | AB13: SUB-18 | AC13: 1 | AD13: 2 | AE13: ='F1'!D21 -> 61 | AF13: ='F1'!E21 -> VITOR HUGO (SP) | AG13: ='F1'!L21 -> LUIZ GULHERME (SP)
C14: =$AE$2 -> 57 | O14: =$AE$3 -> 58 | Z14: 13 | AA14: 1a Fase | AB14: SUB-18 | AC14: 1 | AD14: 2 | AE14: ='F1'!D22 -> 63 | AF14: ='F1'!E22 -> PEDRINHO (SP) | AG14: ='F1'!L22 -> DAVI ANDRADE (SP)
Z15: 14 | AA15: 1a Fase | AB15: SUB-18 | AC15: 1 | AD15: 2 | AE15: ='F1'!D23 -> 64 | AF15: ='F1'!E23 -> WALLACE RINCO (SP) | AG15: ='F1'!L23 -> MELLI JR (SP)
Z16: 15 | AA16: 1a Fase | AB16: SUB-18 | AC16: 1 | AD16: 2 | AE16: ='F1'!D24 -> 57 | AF16: ='F1'!E24 -> RODRIGO (PE) | AG16: ='F1'!L24 -> DANIEL COUTO (RJ)
Z17: 16 | AA17: 1a Fase | AB17: SUB-18 | AC17: 1 | AD17: 2 | AE17: ='F1'!D25 -> 58 | AF17: ='F1'!E25 -> LINNO BALA (PE) | AG17: ='F1'!L25 -> VERISSON (PE)
C18: =$AA$1 -> 32º Campeonato Brasileiro Individual | K18: =$AB$1 -> Categoria | O18: =$AA$1 -> 32º Campeonato Brasileiro Individual | W18: =$AB$1 -> Categoria | Z18: 17 | AA18: 1a Fase | AB18: SUB-18 | AC18: 1 | AD18: 3 | AE18: ='F1'!D27 -> 62 | AF18: ='F1'!E27 -> LEO LIMA (SP) | AG18: ='F1'!L27 -> PEDRO ANTONIO (SP)
C19: =$AA$4 -> 1a Fase | K19: =$AB$4 -> SUB-18 | O19: =$AA$5 -> 1a Fase | W19: =$AB$5 -> SUB-18 | Z19: 18 | AA19: 1a Fase | AB19: SUB-18 | AC19: 1 | AD19: 3 | AE19: ='F1'!D28 -> 63 | AF19: ='F1'!E28 -> TUGUINHA (SP) | AG19: ='F1'!L28 -> CAROL (SP)
Z20: 19 | AA20: 1a Fase | AB20: SUB-18 | AC20: 1 | AD20: 3 | AE20: ='F1'!D29 -> 64 | AF20: ='F1'!E29 -> IGOR COSTA (SP) | AG20: ='F1'!L29 -> VITOR HUGO (SP)
A21: 1 | C21: Grupo | E21: =$AF$4 -> IGOR COSTA (SP) | O21: Grupo | Q21: =$AF$5 -> VITOR HUGO (SP) | Z21: 20 | AA21: 1a Fase | AB21: SUB-18 | AC21: 1 | AD21: 3 | AE21: ='F1'!D30 -> 57 | AF21: ='F1'!E30 -> TUSURINHA (SP) | AG21: ='F1'!L30 -> LUIZ GULHERME (SP)
A22: 1 | C22: =$AC$4 -> 1 | O22: =$AC$5 -> 1 | Z22: 21 | AA22: 1a Fase | AB22: SUB-18 | AC22: 1 | AD22: 3 | AE22: ='F1'!D31 -> 59 | AF22: ='F1'!E31 -> PEDRINHO (SP) | AG22: ='F1'!L31 -> WALLACE RINCO (SP)
Z23: 22 | AA23: 1a Fase | AB23: SUB-18 | AC23: 1 | AD23: 3 | AE23: ='F1'!D32 -> 58 | AF23: ='F1'!E32 -> DAVI ANDRADE (SP) | AG23: ='F1'!L32 -> MELLI JR (SP)
Z24: 23 | AA24: 1a Fase | AB24: SUB-18 | AC24: 1 | AD24: 3 | AE24: ='F1'!D33 -> 60 | AF24: ='F1'!E33 -> RODRIGO (PE) | AG24: ='F1'!L33 -> LINNO BALA (PE)
C25: Rodada | O25: Rodada | Z25: 24 | AA25: 1a Fase | AB25: SUB-18 | AC25: 1 | AD25: 3 | AE25: ='F1'!D34 -> 61 | AF25: ='F1'!E34 -> DANIEL COUTO (RJ) | AG25: ='F1'!L34 -> VERISSON (PE)
C26: =$AD$4 -> 1 | O26: =$AD$5 -> 1 | Z26: 25 | AA26: 1a Fase | AB26: SUB-18 | AC26: 1 | AD26: 4 | AE26: ='F1'!D36 -> 58 | AF26: ='F1'!E36 -> LEO LIMA (SP) | AG26: ='F1'!L36 -> IGOR COSTA (SP)
A27: 1 | E27: =$AG$4 -> LUIZ GULHERME (SP) | Q27: =$AG$5 -> TUSURINHA (SP) | Z27: 26 | AA27: 1a Fase | AB27: SUB-18 | AC27: 1 | AD27: 4 | AE27: ='F1'!D37 -> 57 | AF27: ='F1'!E37 -> PEDRO ANTONIO (SP) | AG27: ='F1'!L37 -> VITOR HUGO (SP)
A28: 1 | Z28: 27 | AA28: 1a Fase | AB28: SUB-18 | AC28: 1 | AD28: 4 | AE28: ='F1'!D38 -> 59 | AF28: ='F1'!E38 -> TUGUINHA (SP) | AG28: ='F1'!L38 -> TUSURINHA (SP)
C29: Mesa | O29: Mesa | Z29: 28 | AA29: 1a Fase | AB29: SUB-18 | AC29: 1 | AD29: 4 | AE29: ='F1'!D39 -> 60 | AF29: ='F1'!E39 -> CAROL (SP) | AG29: ='F1'!L39 -> LUIZ GULHERME (SP)
C30: =$AE$4 -> 59 | O30: =$AE$5 -> 60 | Z30: 29 | AA30: 1a Fase | AB30: SUB-18 | AC30: 1 | AD30: 4 | AE30: ='F1'!D40 -> 62 | AF30: ='F1'!E40 -> PEDRINHO (SP) | AG30: ='F1'!L40 -> RODRIGO (PE)
Z31: 30 | AA31: 1a Fase | AB31: SUB-18 | AC31: 1 | AD31: 4 | AE31: ='F1'!D41 -> 61 | AF31: ='F1'!E41 -> WALLACE RINCO (SP) | AG31: ='F1'!L41 -> LINNO BALA (PE)
Z32: 31 | AA32: 1a Fase | AB32: SUB-18 | AC32: 1 | AD32: 4 | AE32: ='F1'!D42 -> 64 | AF32: ='F1'!E42 -> DAVI ANDRADE (SP) | AG32: ='F1'!L42 -> DANIEL COUTO (RJ)
Z33: 32 | AA33: 1a Fase | AB33: SUB-18 | AC33: 1 | AD33: 4 | AE33: ='F1'!D43 -> 63 | AF33: ='F1'!E43 -> MELLI JR (SP) | AG33: ='F1'!L43 -> VERISSON (PE)
C34: =$AA$1 -> 32º Campeonato Brasileiro Individual | K34: =$AB$1 -> Categoria | O34: =$AA$1 -> 32º Campeonato Brasileiro Individual | W34: =$AB$1 -> Categoria | Z34: 33 | AA34: 1a Fase | AB34: SUB-18 | AC34: 1 | AD34: 5 | AE34: ='F1'!D45 -> 60 | AF34: ='F1'!E45 -> LEO LIMA (SP) | AG34: ='F1'!L45 -> VITOR HUGO (SP)
C35: =$AA$6 -> 1a Fase | K35: =$AB$6 -> SUB-18 | O35: =$AA$7 -> 1a Fase | W35: =$AB$7 -> SUB-18 | Z35: 34 | AA35: =AA34 -> 1a Fase | AB35: =AB34 -> SUB-18 | AC35: 1 | AD35: 5 | AE35: ='F1'!D46 -> 61 | AF35: ='F1'!E46 -> PEDRO ANTONIO (SP) | AG35: ='F1'!L46 -> TUSURINHA (SP)
Z36: 35 | AA36: 1a Fase | AB36: SUB-18 | AC36: 1 | AD36: 5 | AE36: ='F1'!D47 -> 62 | AF36: ='F1'!E47 -> TUGUINHA (SP) | AG36: ='F1'!L47 -> LUIZ GULHERME (SP)
A37: 1 | C37: Grupo | E37: =$AF$6 -> PEDRINHO (SP) | O37: Grupo | Q37: =$AF$7 -> WALLACE RINCO (SP) | Z37: 36 | AA37: 1a Fase | AB37: SUB-18 | AC37: 1 | AD37: 5 | AE37: ='F1'!D48 -> 63 | AF37: ='F1'!E48 -> CAROL (SP) | AG37: ='F1'!L48 -> IGOR COSTA (SP)
A38: 1 | C38: =$AC$6 -> 1 | O38: =$AC$7 -> 1 | Z38: 37 | AA38: 1a Fase | AB38: SUB-18 | AC38: 1 | AD38: 5 | AE38: ='F1'!D49 -> 64 | AF38: ='F1'!E49 -> PEDRINHO (SP) | AG38: ='F1'!L49 -> LINNO BALA (PE)
Z39: 38 | AA39: 1a Fase | AB39: SUB-18 | AC39: 1 | AD39: 5 | AE39: ='F1'!D50 -> 58 | AF39: ='F1'!E50 -> WALLACE RINCO (SP) | AG39: ='F1'!L50 -> DANIEL COUTO (RJ)
Z40: 39 | AA40: 1a Fase | AB40: SUB-18 | AC40: 1 | AD40: 5 | AE40: ='F1'!D51 -> 57 | AF40: ='F1'!E51 -> DAVI ANDRADE (SP) | AG40: ='F1'!L51 -> VERISSON (PE)
C41: Rodada | O41: Rodada | Z41: 40 | AA41: 1a Fase | AB41: SUB-18 | AC41: 1 | AD41: 5 | AE41: ='F1'!D52 -> 59 | AF41: ='F1'!E52 -> MELLI JR (SP) | AG41: ='F1'!L52 -> RODRIGO (PE)
C42: =$AD$6 -> 1 | O42: =$AD$7 -> 1 | Z42: 41 | AA42: 1a Fase | AB42: SUB-18 | AC42: 1 | AD42: 6 | AE42: ='F1'!D54 -> 62 | AF42: ='F1'!E54 -> LEO LIMA (SP) | AG42: ='F1'!L54 -> TUSURINHA (SP)
A43: 1 | E43: =$AG$6 -> MELLI JR (SP) | Q43: =$AG$7 -> DAVI ANDRADE (SP) | Z43: 42 | AA43: 1a Fase | AB43: SUB-18 | AC43: 1 | AD43: 6 | AE43: ='F1'!D55 -> 64 | AF43: ='F1'!E55 -> PEDRO ANTONIO (SP) | AG43: ='F1'!L55 -> LUIZ GULHERME (SP)
A44: 1 | Z44: 43 | AA44: 1a Fase | AB44: SUB-18 | AC44: 1 | AD44: 6 | AE44: ='F1'!D56 -> 57 | AF44: ='F1'!E56 -> TUGUINHA (SP) | AG44: ='F1'!L56 -> IGOR COSTA (SP)
C45: Mesa | O45: Mesa | Z45: 44 | AA45: 1a Fase | AB45: SUB-18 | AC45: 1 | AD45: 6 | AE45: ='F1'!D57 -> 58 | AF45: ='F1'!E57 -> CAROL (SP) | AG45: ='F1'!L57 -> VITOR HUGO (SP)
C46: =$AE$6 -> 61 | O46: =$AE$7 -> 62 | Z46: 45 | AA46: 1a Fase | AB46: SUB-18 | AC46: 1 | AD46: 6 | AE46: ='F1'!D58 -> 60 | AF46: ='F1'!E58 -> PEDRINHO (SP) | AG46: ='F1'!L58 -> DANIEL COUTO (RJ)
Z47: 46 | AA47: 1a Fase | AB47: SUB-18 | AC47: 1 | AD47: 6 | AE47: ='F1'!D59 -> 59 | AF47: ='F1'!E59 -> WALLACE RINCO (SP) | AG47: ='F1'!L59 -> VERISSON (PE)
Z48: 47 | AA48: 1a Fase | AB48: SUB-18 | AC48: 1 | AD48: 6 | AE48: ='F1'!D60 -> 61 | AF48: ='F1'!E60 -> DAVI ANDRADE (SP) | AG48: ='F1'!L60 -> RODRIGO (PE)
Z49: 48 | AA49: 1a Fase | AB49: SUB-18 | AC49: 1 | AD49: 6 | AE49: ='F1'!D61 -> 63 | AF49: ='F1'!E61 -> MELLI JR (SP) | AG49: ='F1'!L61 -> LINNO BALA (PE)
C50: =$AA$1 -> 32º Campeonato Brasileiro Individual | K50: =$AB$1 -> Categoria | O50: =$AA$1 -> 32º Campeonato Brasileiro Individual | W50: =$AB$1 -> Categoria | Z50: 49 | AA50: 1a Fase | AB50: SUB-18 | AC50: 1 | AD50: 7 | AE50: ='F1'!D63 -> 58 | AF50: ='F1'!E63 -> LEO LIMA (SP) | AG50: ='F1'!L63 -> LUIZ GULHERME (SP)
C51: =$AA$8 -> 1a Fase | K51: =$AB$8 -> SUB-18 | O51: =$AA$9 -> 1a Fase | W51: =$AB$9 -> SUB-18 | Z51: 50 | AA51: 1a Fase | AB51: SUB-18 | AC51: 1 | AD51: 7 | AE51: ='F1'!D64 -> 59 | AF51: ='F1'!E64 -> PEDRO ANTONIO (SP) | AG51: ='F1'!L64 -> IGOR COSTA (SP)
Z52: 51 | AA52: 1a Fase | AB52: SUB-18 | AC52: 1 | AD52: 7 | AE52: ='F1'!D65 -> 64 | AF52: ='F1'!E65 -> TUGUINHA (SP) | AG52: ='F1'!L65 -> VITOR HUGO (SP)
A53: 1 | C53: Grupo | E53: =$AF$8 -> RODRIGO (PE) | O53: Grupo | Q53: =$AF$9 -> LINNO BALA (PE) | Z53: 52 | AA53: 1a Fase | AB53: SUB-18 | AC53: 1 | AD53: 7 | AE53: ='F1'!D66 -> 61 | AF53: ='F1'!E66 -> CAROL (SP) | AG53: ='F1'!L66 -> TUSURINHA (SP)
A54: 1 | C54: =$AC$8 -> 1 | O54: =$AC$9 -> 1 | Z54: 53 | AA54: 1a Fase | AB54: SUB-18 | AC54: 1 | AD54: 7 | AE54: ='F1'!D67 -> 57 | AF54: ='F1'!E67 -> PEDRINHO (SP) | AG54: ='F1'!L67 -> VERISSON (PE)
Z55: 54 | AA55: 1a Fase | AB55: SUB-18 | AC55: 1 | AD55: 7 | AE55: ='F1'!D68 -> 63 | AF55: ='F1'!E68 -> WALLACE RINCO (SP) | AG55: ='F1'!L68 -> RODRIGO (PE)
Z56: 55 | AA56: 1a Fase | AB56: SUB-18 | AC56: 1 | AD56: 7 | AE56: ='F1'!D69 -> 60 | AF56: ='F1'!E69 -> DAVI ANDRADE (SP) | AG56: ='F1'!L69 -> LINNO BALA (PE)
C57: Rodada | O57: Rodada | Z57: 56 | AA57: 1a Fase | AB57: SUB-18 | AC57: 1 | AD57: 7 | AE57: ='F1'!D70 -> 62 | AF57: ='F1'!E70 -> MELLI JR (SP) | AG57: ='F1'!L70 -> DANIEL COUTO (RJ)
C58: =$AD$8 -> 1 | O58: =$AD$9 -> 1 | Z58: 57 | AA58: 1a Fase | AB58: SUB-18 | AC58: 1 | AD58: 8 | AE58: ='F1'!D72 -> 61 | AF58: ='F1'!E72 -> LEO LIMA (SP) | AG58: ='F1'!L72 -> PEDRINHO (SP)
A59: 1 | E59: =$AG$8 -> VERISSON (PE) | Q59: =$AG$9 -> DANIEL COUTO (RJ) | Z59: 58 | AA59: 1a Fase | AB59: SUB-18 | AC59: 1 | AD59: 8 | AE59: ='F1'!D73 -> 62 | AF59: ='F1'!E73 -> PEDRO ANTONIO (SP) | AG59: ='F1'!L73 -> WALLACE RINCO (SP)
A60: 1 | Z60: 59 | AA60: 1a Fase | AB60: SUB-18 | AC60: 1 | AD60: 8 | AE60: ='F1'!D74 -> 63 | AF60: ='F1'!E74 -> TUGUINHA (SP) | AG60: ='F1'!L74 -> DAVI ANDRADE (SP)
C61: Mesa | O61: Mesa | Z61: 60 | AA61: 1a Fase | AB61: SUB-18 | AC61: 1 | AD61: 8 | AE61: ='F1'!D75 -> 64 | AF61: ='F1'!E75 -> CAROL (SP) | AG61: ='F1'!L75 -> MELLI JR (SP)
C62: =$AE$8 -> 63 | O62: =$AE$9 -> 64 | Z62: 61 | AA62: 1a Fase | AB62: SUB-18 | AC62: 1 | AD62: 8 | AE62: ='F1'!D76 -> 57 | AF62: ='F1'!E76 -> IGOR COSTA (SP) | AG62: ='F1'!L76 -> RODRIGO (PE)
Z63: 62 | AA63: 1a Fase | AB63: SUB-18 | AC63: 1 | AD63: 8 | AE63: ='F1'!D77 -> 58 | AF63: ='F1'!E77 -> VITOR HUGO (SP) | AG63: ='F1'!L77 -> LINNO BALA (PE)
Z64: 63 | AA64: 1a Fase | AB64: SUB-18 | AC64: 1 | AD64: 8 | AE64: ='F1'!D78 -> 59 | AF64: ='F1'!E78 -> TUSURINHA (SP) | AG64: ='F1'!L78 -> DANIEL COUTO (RJ)
Z65: 64 | AA65: 1a Fase | AB65: SUB-18 | AC65: 1 | AD65: 8 | AE65: ='F1'!D79 -> 60 | AF65: ='F1'!E79 -> LUIZ GULHERME (SP) | AG65: ='F1'!L79 -> VERISSON (PE)
C66: =$AA$1 -> 32º Campeonato Brasileiro Individual | K66: =$AB$1 -> Categoria | O66: =$AA$1 -> 32º Campeonato Brasileiro Individual | W66: =$AB$1 -> Categoria | Z66: 65 | AA66: 1a Fase | AB66: SUB-18 | AC66: 1 | AD66: 9 | AE66: ='F1'!D81 -> 57 | AF66: ='F1'!E81 -> LEO LIMA (SP) | AG66: ='F1'!L81 -> WALLACE RINCO (SP)
C67: =$AA$10 -> 1a Fase | K67: =$AB$10 -> SUB-18 | O67: =$AA$11 -> 1a Fase | W67: =$AB$11 -> SUB-18 | Z67: 66 | AA67: =AA66 -> 1a Fase | AB67: =AB66 -> SUB-18 | AC67: 1 | AD67: 9 | AE67: ='F1'!D82 -> 58 | AF67: ='F1'!E82 -> PEDRO ANTONIO (SP) | AG67: ='F1'!L82 -> DAVI ANDRADE (SP)
Z68: 67 | AA68: 1a Fase | AB68: SUB-18 | AC68: 1 | AD68: 9 | AE68: ='F1'!D83 -> 59 | AF68: ='F1'!E83 -> TUGUINHA (SP) | AG68: ='F1'!L83 -> MELLI JR (SP)
A69: 1 | C69: Grupo | E69: =$AF$10 -> LEO LIMA (SP) | O69: Grupo | Q69: =$AF$11 -> PEDRO ANTONIO (SP) | Z69: 68 | AA69: 1a Fase | AB69: SUB-18 | AC69: 1 | AD69: 9 | AE69: ='F1'!D84 -> 60 | AF69: ='F1'!E84 -> CAROL (SP) | AG69: ='F1'!L84 -> RODRIGO (PE)
A70: 1 | C70: =$AC$10 -> 1 | O70: =$AC$11 -> 1 | Z70: 69 | AA70: 1a Fase | AB70: SUB-18 | AC70: 1 | AD70: 9 | AE70: ='F1'!D85 -> 61 | AF70: ='F1'!E85 -> IGOR COSTA (SP) | AG70: ='F1'!L85 -> LINNO BALA (PE)
Z71: 70 | AA71: 1a Fase | AB71: SUB-18 | AC71: 1 | AD71: 9 | AE71: ='F1'!D86 -> 62 | AF71: ='F1'!E86 -> VITOR HUGO (SP) | AG71: ='F1'!L86 -> DANIEL COUTO (RJ)
Z72: 71 | AA72: 1a Fase | AB72: SUB-18 | AC72: 1 | AD72: 9 | AE72: ='F1'!D87 -> 63 | AF72: ='F1'!E87 -> TUSURINHA (SP) | AG72: ='F1'!L87 -> VERISSON (PE)
C73: Rodada | O73: Rodada | Z73: 72 | AA73: 1a Fase | AB73: SUB-18 | AC73: 1 | AD73: 9 | AE73: ='F1'!D88 -> 64 | AF73: ='F1'!E88 -> LUIZ GULHERME (SP) | AG73: ='F1'!L88 -> PEDRINHO (SP)
C74: =$AD$10 -> 2 | O74: =$AD$11 -> 2 | Z74: 73 | AA74: 1a Fase | AB74: SUB-18 | AC74: 1 | AD74: 10 | AE74: ='F1'!D90 -> 59 | AF74: ='F1'!E90 -> LEO LIMA (SP) | AG74: ='F1'!L90 -> DAVI ANDRADE (SP)
A75: 1 | E75: =$AG$10 -> TUGUINHA (SP) | Q75: =$AG$11 -> CAROL (SP) | Z75: 74 | AA75: 1a Fase | AB75: SUB-18 | AC75: 1 | AD75: 10 | AE75: ='F1'!D91 -> 60 | AF75: ='F1'!E91 -> PEDRO ANTONIO (SP) | AG75: ='F1'!L91 -> MELLI JR (SP)
A76: 1 | Z76: 75 | AA76: 1a Fase | AB76: SUB-18 | AC76: 1 | AD76: 10 | AE76: ='F1'!D92 -> 58 | AF76: ='F1'!E92 -> TUGUINHA (SP) | AG76: ='F1'!L92 -> RODRIGO (PE)
C77: Mesa | O77: Mesa | Z77: 76 | AA77: 1a Fase | AB77: SUB-18 | AC77: 1 | AD77: 10 | AE77: ='F1'!D93 -> 62 | AF77: ='F1'!E93 -> CAROL (SP) | AG77: ='F1'!L93 -> LINNO BALA (PE)
C78: =$AE$10 -> 60 | O78: =$AE$11 -> 59 | Z78: 77 | AA78: 1a Fase | AB78: SUB-18 | AC78: 1 | AD78: 10 | AE78: ='F1'!D94 -> 63 | AF78: ='F1'!E94 -> IGOR COSTA (SP) | AG78: ='F1'!L94 -> DANIEL COUTO (RJ)
Z79: 78 | AA79: 1a Fase | AB79: SUB-18 | AC79: 1 | AD79: 10 | AE79: ='F1'!D95 -> 64 | AF79: ='F1'!E95 -> VITOR HUGO (SP) | AG79: ='F1'!L95 -> VERISSON (PE)
Z80: 79 | AA80: 1a Fase | AB80: SUB-18 | AC80: 1 | AD80: 10 | AE80: ='F1'!D96 -> 57 | AF80: ='F1'!E96 -> TUSURINHA (SP) | AG80: ='F1'!L96 -> PEDRINHO (SP)
Z81: 80 | AA81: 1a Fase | AB81: SUB-18 | AC81: 1 | AD81: 10 | AE81: ='F1'!D97 -> 61 | AF81: ='F1'!E97 -> LUIZ GULHERME (SP) | AG81: ='F1'!L97 -> WALLACE RINCO (SP)
C82: =$AA$1 -> 32º Campeonato Brasileiro Individual | K82: =$AB$1 -> Categoria | O82: =$AA$1 -> 32º Campeonato Brasileiro Individual | W82: =$AB$1 -> Categoria | Z82: 81 | AA82: 1a Fase | AB82: SUB-18 | AC82: 1 | AD82: 11 | AE82: ='F1'!D99 -> 62 | AF82: ='F1'!E99 -> LEO LIMA (SP) | AG82: ='F1'!L99 -> MELLI JR (SP)
C83: =$AA$12 -> 1a Fase | K83: =$AB$12 -> SUB-18 | O83: =$AA$13 -> 1a Fase | W83: =$AB$13 -> SUB-18 | Z83: 82 | AA83: 1a Fase | AB83: SUB-18 | AC83: 1 | AD83: 11 | AE83: ='F1'!D100 -> 63 | AF83: ='F1'!E100 -> PEDRO ANTONIO (SP) | AG83: ='F1'!L100 -> RODRIGO (PE)
Z84: 83 | AA84: 1a Fase | AB84: SUB-18 | AC84: 1 | AD84: 11 | AE84: ='F1'!D101 -> 61 | AF84: ='F1'!E101 -> TUGUINHA (SP) | AG84: ='F1'!L101 -> LINNO BALA (PE)
A85: 1 | C85: Grupo | E85: =$AF$12 -> IGOR COSTA (SP) | O85: Grupo | Q85: =$AF$13 -> VITOR HUGO (SP) | Z85: 84 | AA85: 1a Fase | AB85: SUB-18 | AC85: 1 | AD85: 11 | AE85: ='F1'!D102 -> 57 | AF85: ='F1'!E102 -> CAROL (SP) | AG85: ='F1'!L102 -> DANIEL COUTO (RJ)
A86: 1 | C86: =$AC$12 -> 1 | O86: =$AC$13 -> 1 | Z86: 85 | AA86: 1a Fase | AB86: SUB-18 | AC86: 1 | AD86: 11 | AE86: ='F1'!D103 -> 58 | AF86: ='F1'!E103 -> IGOR COSTA (SP) | AG86: ='F1'!L103 -> VERISSON (PE)
Z87: 86 | AA87: 1a Fase | AB87: SUB-18 | AC87: 1 | AD87: 11 | AE87: ='F1'!D104 -> 59 | AF87: ='F1'!E104 -> VITOR HUGO (SP) | AG87: ='F1'!L104 -> PEDRINHO (SP)
Z88: 87 | AA88: 1a Fase | AB88: SUB-18 | AC88: 1 | AD88: 11 | AE88: ='F1'!D105 -> 60 | AF88: ='F1'!E105 -> TUSURINHA (SP) | AG88: ='F1'!L105 -> WALLACE RINCO (SP)
C89: Rodada | O89: Rodada | Z89: 88 | AA89: 1a Fase | AB89: SUB-18 | AC89: 1 | AD89: 11 | AE89: ='F1'!D106 -> 64 | AF89: ='F1'!E106 -> LUIZ GULHERME (SP) | AG89: ='F1'!L106 -> DAVI ANDRADE (SP)
C90: =$AD$12 -> 2 | O90: =$AD$13 -> 2 | Z90: 89 | AA90: 1a Fase | AB90: SUB-18 | AC90: 1 | AD90: 12 | AE90: ='F1'!D108 -> 64 | AF90: ='F1'!E108 -> LEO LIMA (SP) | AG90: ='F1'!L108 -> RODRIGO (PE)
A91: 1 | E91: =$AG$12 -> TUSURINHA (SP) | Q91: =$AG$13 -> LUIZ GULHERME (SP) | Z91: 90 | AA91: 1a Fase | AB91: SUB-18 | AC91: 1 | AD91: 12 | AE91: ='F1'!D109 -> 58 | AF91: ='F1'!E109 -> PEDRO ANTONIO (SP) | AG91: ='F1'!L109 -> LINNO BALA (PE)
A92: 1 | Z92: 91 | AA92: 1a Fase | AB92: SUB-18 | AC92: 1 | AD92: 12 | AE92: ='F1'!D110 -> 59 | AF92: ='F1'!E110 -> TUGUINHA (SP) | AG92: ='F1'!L110 -> DANIEL COUTO (RJ)
C93: Mesa | O93: Mesa | Z93: 92 | AA93: 1a Fase | AB93: SUB-18 | AC93: 1 | AD93: 12 | AE93: ='F1'!D111 -> 60 | AF93: ='F1'!E111 -> CAROL (SP) | AG93: ='F1'!L111 -> VERISSON (PE)
C94: =$AE$12 -> 62 | O94: =$AE$13 -> 61 | Z94: 93 | AA94: 1a Fase | AB94: SUB-18 | AC94: 1 | AD94: 12 | AE94: ='F1'!D112 -> 62 | AF94: ='F1'!E112 -> IGOR COSTA (SP) | AG94: ='F1'!L112 -> PEDRINHO (SP)
Z95: 94 | AA95: 1a Fase | AB95: SUB-18 | AC95: 1 | AD95: 12 | AE95: ='F1'!D113 -> 61 | AF95: ='F1'!E113 -> VITOR HUGO (SP) | AG95: ='F1'!L113 -> WALLACE RINCO (SP)
Z96: 95 | AA96: 1a Fase | AB96: SUB-18 | AC96: 1 | AD96: 12 | AE96: ='F1'!D114 -> 63 | AF96: ='F1'!E114 -> TUSURINHA (SP) | AG96: ='F1'!L114 -> DAVI ANDRADE (SP)
Z97: 96 | AA97: 1a Fase | AB97: SUB-18 | AC97: 1 | AD97: 12 | AE97: ='F1'!D115 -> 57 | AF97: ='F1'!E115 -> LUIZ GULHERME (SP) | AG97: ='F1'!L115 -> MELLI JR (SP)
C98: =$AA$1 -> 32º Campeonato Brasileiro Individual | K98: =$AB$1 -> Categoria | O98: =$AA$1 -> 32º Campeonato Brasileiro Individual | W98: =$AB$1 -> Categoria | Z98: 97 | AA98: 1a Fase | AB98: SUB-18 | AC98: 1 | AD98: 13 | AE98: ='F1'!D117 -> 60 | AF98: ='F1'!E117 -> LEO LIMA (SP) | AG98: ='F1'!L117 -> LINNO BALA (PE)
C99: =$AA$14 -> 1a Fase | K99: =$AB$14 -> SUB-18 | O99: =$AA$15 -> 1a Fase | W99: =$AB$15 -> SUB-18 | Z99: 98 | AA99: =AA98 -> 1a Fase | AB99: =AB98 -> SUB-18 | AC99: 1 | AD99: 13 | AE99: ='F1'!D118 -> 61 | AF99: ='F1'!E118 -> PEDRO ANTONIO (SP) | AG99: ='F1'!L118 -> DANIEL COUTO (RJ)
Z100: 99 | AA100: 1a Fase | AB100: SUB-18 | AC100: 1 | AD100: 13 | AE100: ='F1'!D119 -> 62 | AF100: ='F1'!E119 -> TUGUINHA (SP) | AG100: ='F1'!L119 -> VERISSON (PE)
A101: 1 | C101: Grupo | E101: =$AF$14 -> PEDRINHO (SP) | O101: Grupo | Q101: =$AF$15 -> WALLACE RINCO (SP) | Z101: 100 | AA101: 1a Fase | AB101: SUB-18 | AC101: 1 | AD101: 13 | AE101: ='F1'!D120 -> 63 | AF101: ='F1'!E120 -> CAROL (SP) | AG101: ='F1'!L120 -> PEDRINHO (SP)
A102: 1 | C102: =$AC$14 -> 1 | O102: =$AC$15 -> 1 | Z102: 101 | AA102: 1a Fase | AB102: SUB-18 | AC102: 1 | AD102: 13 | AE102: ='F1'!D121 -> 64 | AF102: ='F1'!E121 -> IGOR COSTA (SP) | AG102: ='F1'!L121 -> WALLACE RINCO (SP)
Z103: 102 | AA103: 1a Fase | AB103: SUB-18 | AC103: 1 | AD103: 13 | AE103: ='F1'!D122 -> 57 | AF103: ='F1'!E122 -> VITOR HUGO (SP) | AG103: ='F1'!L122 -> DAVI ANDRADE (SP)
Z104: 103 | AA104: 1a Fase | AB104: SUB-18 | AC104: 1 | AD104: 13 | AE104: ='F1'!D123 -> 58 | AF104: ='F1'!E123 -> TUSURINHA (SP) | AG104: ='F1'!L123 -> MELLI JR (SP)
C105: Rodada | O105: Rodada | Z105: 104 | AA105: 1a Fase | AB105: SUB-18 | AC105: 1 | AD105: 13 | AE105: ='F1'!D124 -> 59 | AF105: ='F1'!E124 -> LUIZ GULHERME (SP) | AG105: ='F1'!L124 -> RODRIGO (PE)
C106: =$AD$14 -> 2 | O106: =$AD$15 -> 2 | Z106: 105 | AA106: 1a Fase | AB106: SUB-18 | AC106: 1 | AD106: 14 | AE106: ='F1'!D126 -> 63 | AF106: ='F1'!E126 -> LEO LIMA (SP) | AG106: ='F1'!L126 -> DANIEL COUTO (RJ)
A107: 1 | E107: =$AG$14 -> DAVI ANDRADE (SP) | Q107: =$AG$15 -> MELLI JR (SP) | Z107: 106 | AA107: 1a Fase | AB107: SUB-18 | AC107: 1 | AD107: 14 | AE107: ='F1'!D127 -> 64 | AF107: ='F1'!E127 -> PEDRO ANTONIO (SP) | AG107: ='F1'!L127 -> VERISSON (PE)
A108: 1 | Z108: 107 | AA108: 1a Fase | AB108: SUB-18 | AC108: 1 | AD108: 14 | AE108: ='F1'!D128 -> 58 | AF108: ='F1'!E128 -> TUGUINHA (SP) | AG108: ='F1'!L128 -> PEDRINHO (SP)
C109: Mesa | O109: Mesa | Z109: 108 | AA109: 1a Fase | AB109: SUB-18 | AC109: 1 | AD109: 14 | AE109: ='F1'!D129 -> 57 | AF109: ='F1'!E129 -> CAROL (SP) | AG109: ='F1'!L129 -> WALLACE RINCO (SP)
C110: =$AE$14 -> 63 | O110: =$AE$15 -> 64 | Z110: 109 | AA110: 1a Fase | AB110: SUB-18 | AC110: 1 | AD110: 14 | AE110: ='F1'!D130 -> 59 | AF110: ='F1'!E130 -> IGOR COSTA (SP) | AG110: ='F1'!L130 -> DAVI ANDRADE (SP)
Z111: 110 | AA111: 1a Fase | AB111: SUB-18 | AC111: 1 | AD111: 14 | AE111: ='F1'!D131 -> 60 | AF111: ='F1'!E131 -> VITOR HUGO (SP) | AG111: ='F1'!L131 -> MELLI JR (SP)
Z112: 111 | AA112: 1a Fase | AB112: SUB-18 | AC112: 1 | AD112: 14 | AE112: ='F1'!D132 -> 61 | AF112: ='F1'!E132 -> TUSURINHA (SP) | AG112: ='F1'!L132 -> RODRIGO (PE)
Z113: 112 | AA113: 1a Fase | AB113: SUB-18 | AC113: 1 | AD113: 14 | AE113: ='F1'!D133 -> 62 | AF113: ='F1'!E133 -> LUIZ GULHERME (SP) | AG113: ='F1'!L133 -> LINNO BALA (PE)
C114: =$AA$1 -> 32º Campeonato Brasileiro Individual | K114: =$AB$1 -> Categoria | O114: =$AA$1 -> 32º Campeonato Brasileiro Individual | W114: =$AB$1 -> Categoria | Z114: 113 | AA114: 1a Fase | AB114: SUB-18 | AC114: 1 | AD114: 15 | AE114: ='F1'!D135 -> 58 | AF114: ='F1'!E135 -> LEO LIMA (SP) | AG114: ='F1'!L135 -> VERISSON (PE)
C115: =$AA$16 -> 1a Fase | K115: =$AB$16 -> SUB-18 | O115: =$AA$17 -> 1a Fase | W115: =$AB$17 -> SUB-18 | Z115: 114 | AA115: 1a Fase | AB115: SUB-18 | AC115: 1 | AD115: 15 | AE115: ='F1'!D136 -> 59 | AF115: ='F1'!E136 -> PEDRO ANTONIO (SP) | AG115: ='F1'!L136 -> PEDRINHO (SP)
Z116: 115 | AA116: 1a Fase | AB116: SUB-18 | AC116: 1 | AD116: 15 | AE116: ='F1'!D137 -> 60 | AF116: ='F1'!E137 -> TUGUINHA (SP) | AG116: ='F1'!L137 -> WALLACE RINCO (SP)
A117: 1 | C117: Grupo | E117: =$AF$16 -> RODRIGO (PE) | O117: Grupo | Q117: =$AF$17 -> LINNO BALA (PE) | Z117: 116 | AA117: 1a Fase | AB117: SUB-18 | AC117: 1 | AD117: 15 | AE117: ='F1'!D138 -> 61 | AF117: ='F1'!E138 -> CAROL (SP) | AG117: ='F1'!L138 -> DAVI ANDRADE (SP)
A118: 1 | C118: =$AC$16 -> 1 | O118: =$AC$17 -> 1 | Z118: 117 | AA118: 1a Fase | AB118: SUB-18 | AC118: 1 | AD118: 15 | AE118: ='F1'!D139 -> 63 | AF118: ='F1'!E139 -> IGOR COSTA (SP) | AG118: ='F1'!L139 -> MELLI JR (SP)
Z119: 118 | AA119: 1a Fase | AB119: SUB-18 | AC119: 1 | AD119: 15 | AE119: ='F1'!D140 -> 62 | AF119: ='F1'!E140 -> VITOR HUGO (SP) | AG119: ='F1'!L140 -> RODRIGO (PE)
Z120: 119 | AA120: 1a Fase | AB120: SUB-18 | AC120: 1 | AD120: 15 | AE120: ='F1'!D141 -> 64 | AF120: ='F1'!E141 -> TUSURINHA (SP) | AG120: ='F1'!L141 -> LINNO BALA (PE)
C121: Rodada | O121: Rodada | Z121: 120 | AA121: 1a Fase | AB121: SUB-18 | AC121: 1 | AD121: 15 | AE121: ='F1'!D142 -> 57 | AF121: ='F1'!E142 -> LUIZ GULHERME (SP) | AG121: ='F1'!L142 -> DANIEL COUTO (RJ)
C122: =$AD$16 -> 2 | O122: =$AD$17 -> 2
A123: 1 | E123: =$AG$16 -> DANIEL COUTO (RJ) | Q123: =$AG$17 -> VERISSON (PE)
A124: 1
C125: Mesa | O125: Mesa
C126: =$AE$16 -> 57 | O126: =$AE$17 -> 58
C130: =$AA$1 -> 32º Campeonato Brasileiro Individual | K130: =$AB$1 -> Categoria | O130: =$AA$1 -> 32º Campeonato Brasileiro Individual | W130: =$AB$1 -> Categoria
C131: =$AA$18 -> 1a Fase | K131: =$AB$18 -> SUB-18 | O131: =$AA$19 -> 1a Fase | W131: =$AB$19 -> SUB-18
A133: 1 | C133: Grupo | E133: =$AF$18 -> LEO LIMA (SP) | O133: Grupo | Q133: =$AF$19 -> TUGUINHA (SP)
A134: 1 | C134: =$AC$18 -> 1 | O134: =$AC$19 -> 1
C137: Rodada | O137: Rodada
C138: =$AD$18 -> 3 | O138: =$AD$19 -> 3
A139: 1 | E139: =$AG$18 -> PEDRO ANTONIO (SP) | Q139: =$AG$19 -> CAROL (SP)
A140: 1
C141: Mesa | O141: Mesa
C142: =$AE$18 -> 62 | O142: =$AE$19 -> 63
C146: =$AA$1 -> 32º Campeonato Brasileiro Individual | K146: =$AB$1 -> Categoria | O146: =$AA$1 -> 32º Campeonato Brasileiro Individual | W146: =$AB$1 -> Categoria
C147: =$AA$20 -> 1a Fase | K147: =$AB$20 -> SUB-18 | O147: =$AA$21 -> 1a Fase | W147: =$AB$21 -> SUB-18
A149: 1 | C149: Grupo | E149: =$AF$20 -> IGOR COSTA (SP) | O149: Grupo | Q149: =$AF$21 -> TUSURINHA (SP)
A150: 1 | C150: =$AC$20 -> 1 | O150: =$AC$21 -> 1
C153: Rodada | O153: Rodada
C154: =$AD$20 -> 3 | O154: =$AD$21 -> 3
A155: 1 | E155: =$AG$20 -> VITOR HUGO (SP) | Q155: =$AG$21 -> LUIZ GULHERME (SP)
A156: 1
C157: Mesa | O157: Mesa
C158: =$AE$20 -> 64 | O158: =$AE$21 -> 57
C162: =$AA$1 -> 32º Campeonato Brasileiro Individual | K162: =$AB$1 -> Categoria | O162: =$AA$1 -> 32º Campeonato Brasileiro Individual | W162: =$AB$1 -> Categoria
C163: =$AA$22 -> 1a Fase | K163: =$AB$22 -> SUB-18 | O163: =$AA$23 -> 1a Fase | W163: =$AB$23 -> SUB-18
A165: 1 | C165: Grupo | E165: =$AF$22 -> PEDRINHO (SP) | O165: Grupo | Q165: =$AF$23 -> DAVI ANDRADE (SP)
A166: 1 | C166: =$AC$22 -> 1 | O166: =$AC$23 -> 1
C169: Rodada | O169: Rodada
C170: =$AD$22 -> 3 | O170: =$AD$23 -> 3
A171: 1 | E171: =$AG$22 -> WALLACE RINCO (SP) | Q171: =$AG$23 -> MELLI JR (SP)
A172: 1
C173: Mesa | O173: Mesa
C174: =$AE$22 -> 59 | O174: =$AE$23 -> 58
C178: =$AA$1 -> 32º Campeonato Brasileiro Individual | K178: =$AB$1 -> Categoria | O178: =$AA$1 -> 32º Campeonato Brasileiro Individual | W178: =$AB$1 -> Categoria
C179: =$AA$24 -> 1a Fase | K179: =$AB$24 -> SUB-18 | O179: =$AA$25 -> 1a Fase | W179: =$AB$25 -> SUB-18
A181: 1 | C181: Grupo | E181: =$AF$24 -> RODRIGO (PE) | O181: Grupo | Q181: =$AF$25 -> DANIEL COUTO (RJ)
A182: 1 | C182: =$AC$24 -> 1 | O182: =$AC$25 -> 1
C185: Rodada | O185: Rodada
C186: =$AD$24 -> 3 | O186: =$AD$25 -> 3
A187: 1 | E187: =$AG$24 -> LINNO BALA (PE) | Q187: =$AG$25 -> VERISSON (PE)
A188: 1
C189: Mesa | O189: Mesa
C190: =$AE$24 -> 60 | O190: =$AE$25 -> 61
C194: =$AA$1 -> 32º Campeonato Brasileiro Individual | K194: =$AB$1 -> Categoria | O194: =$AA$1 -> 32º Campeonato Brasileiro Individual | W194: =$AB$1 -> Categoria
C195: =$AA$26 -> 1a Fase | K195: =$AB$26 -> SUB-18 | O195: =$AA$27 -> 1a Fase | W195: =$AB$27 -> SUB-18
A197: 1 | C197: Grupo | E197: =$AF$26 -> LEO LIMA (SP) | O197: Grupo | Q197: =$AF$27 -> PEDRO ANTONIO (SP)
A198: 1 | C198: =$AC$26 -> 1 | O198: =$AC$27 -> 1
C201: Rodada | O201: Rodada
C202: =$AD$26 -> 4 | O202: =$AD$27 -> 4
A203: 1 | E203: =$AG$26 -> IGOR COSTA (SP) | Q203: =$AG$27 -> VITOR HUGO (SP)
A204: 1
C205: Mesa | O205: Mesa
C206: =$AE$26 -> 58 | O206: =$AE$27 -> 57
C210: =$AA$1 -> 32º Campeonato Brasileiro Individual | K210: =$AB$1 -> Categoria | O210: =$AA$1 -> 32º Campeonato Brasileiro Individual | W210: =$AB$1 -> Categoria
C211: =$AA$28 -> 1a Fase | K211: =$AB$28 -> SUB-18 | O211: =$AA$29 -> 1a Fase | W211: =$AB$29 -> SUB-18
A213: 1 | C213: Grupo | E213: =$AF$28 -> TUGUINHA (SP) | O213: Grupo | Q213: =$AF$29 -> CAROL (SP)
A214: 1 | C214: =$AC$28 -> 1 | O214: =$AC$29 -> 1
C217: Rodada | O217: Rodada
C218: =$AD$28 -> 4 | O218: =$AD$29 -> 4
A219: 1 | E219: =$AG$28 -> TUSURINHA (SP) | Q219: =$AG$29 -> LUIZ GULHERME (SP)
A220: 1
C221: Mesa | O221: Mesa
C222: =$AE$28 -> 59 | O222: =$AE$29 -> 60
C226: =$AA$1 -> 32º Campeonato Brasileiro Individual | K226: =$AB$1 -> Categoria | O226: =$AA$1 -> 32º Campeonato Brasileiro Individual | W226: =$AB$1 -> Categoria
C227: =$AA$30 -> 1a Fase | K227: =$AB$30 -> SUB-18 | O227: =$AA$31 -> 1a Fase | W227: =$AB$31 -> SUB-18
A229: 1 | C229: Grupo | E229: =$AF$30 -> PEDRINHO (SP) | O229: Grupo | Q229: =$AF$31 -> WALLACE RINCO (SP)
A230: 1 | C230: =$AC$30 -> 1 | O230: =$AC$31 -> 1
C233: Rodada | O233: Rodada
C234: =$AD$30 -> 4 | O234: =$AD$31 -> 4
A235: 1 | E235: =$AG$30 -> RODRIGO (PE) | Q235: =$AG$31 -> LINNO BALA (PE)
A236: 1
C237: Mesa | O237: Mesa
C238: =$AE$30 -> 62 | O238: =$AE$31 -> 61
C242: =$AA$1 -> 32º Campeonato Brasileiro Individual | K242: =$AB$1 -> Categoria | O242: =$AA$1 -> 32º Campeonato Brasileiro Individual | W242: =$AB$1 -> Categoria
C243: =$AA$32 -> 1a Fase | K243: =$AB$32 -> SUB-18 | O243: =$AA$33 -> 1a Fase | W243: =$AB$33 -> SUB-18
A245: 1 | C245: Grupo | E245: =$AF$32 -> DAVI ANDRADE (SP) | O245: Grupo | Q245: =$AF$33 -> MELLI JR (SP)
A246: 1 | C246: =$AC$32 -> 1 | O246: =$AC$33 -> 1
... 446 more rows

Sheet SUM-QF
Z1: N.o | AA1: ='SUM-F1'!$AA$1 -> 32º Campeonato Brasileiro Individual | AB1: Categoria | AC1: Grp | AD1: Rod | AE1: Mesa | AF1: Jog1 | AG1: Jog2
C2: =$AA$1 -> 32º Campeonato Brasileiro Individual | K2: =$AB$1 -> Categoria | O2: =$AA$1 -> 32º Campeonato Brasileiro Individual | W2: =$AB$1 -> Categoria | Z2: 1 | AA2: Quartas de Final | AB2: SUB-18 | AC2: 1 | AD2: QF | AE2: =QF!D9 -> 57 | AF2: =QF!E9 -> LEO LIMA (SP) | AG2: =QF!L9 -> LUIZ GULHERME (SP)
C3: =$AA$2 -> Quartas de Final | K3: =$AB$2 -> SUB-18 | O3: =$AA$3 -> Quartas de Final | W3: =$AB$3 -> SUB-18 | Z3: 2 | AA3: =AA2 -> Quartas de Final | AB3: SUB-18 | AC3: 1 | AD3: QF | AE3: =QF!D12 -> 58 | AF3: =QF!E12 -> DANIEL COUTO (RJ) | AG3: =QF!L12 -> TUSURINHA (SP)
Z4: 3 | AA4: Quartas de Final | AB4: SUB-18 | AC4: 1 | AD4: QF | AE4: =QF!D15 -> 59 | AF4: =QF!E15 -> WALLACE RINCO (SP) | AG4: =QF!L15 -> IGOR COSTA (SP)
A5: 1 | C5: Grupo | E5: =$AF$2 -> LEO LIMA (SP) | O5: Grupo | Q5: =$AF$3 -> DANIEL COUTO (RJ) | Z5: 4 | AA5: Quartas de Final | AB5: SUB-18 | AC5: 1 | AD5: QF | AE5: =QF!D18 -> 60 | AF5: =QF!E18 -> RODRIGO (PE) | AG5: =QF!L18 -> MELLI JR (SP)
A6: 1 | C6: =$AC$2 -> 1 | O6: =$AC$3 -> 1
C9: Rodada | O9: Rodada
C10: =$AD$2 -> QF | O10: =$AD$3 -> QF
A11: 1 | E11: =$AG$2 -> LUIZ GULHERME (SP) | Q11: =$AG$3 -> TUSURINHA (SP)
A12: 1
C13: Mesa | O13: Mesa
C14: =$AE$2 -> 57 | O14: =$AE$3 -> 58
C18: =$AA$1 -> 32º Campeonato Brasileiro Individual | K18: =$AB$1 -> Categoria | O18: =$AA$1 -> 32º Campeonato Brasileiro Individual | W18: =$AB$1 -> Categoria
C19: =$AA$4 -> Quartas de Final | K19: =$AB$4 -> SUB-18 | O19: =$AA$5 -> Quartas de Final | W19: =$AB$5 -> SUB-18
A21: 1 | C21: Grupo | E21: =$AF$4 -> WALLACE RINCO (SP) | O21: Grupo | Q21: =$AF$5 -> RODRIGO (PE)
A22: 1 | C22: =$AC$4 -> 1 | O22: =$AC$5 -> 1
C25: Rodada | O25: Rodada
C26: =$AD$4 -> QF | O26: =$AD$5 -> QF
A27: 1 | E27: =$AG$4 -> IGOR COSTA (SP) | Q27: =$AG$5 -> MELLI JR (SP)
A28: 1
C29: Mesa | O29: Mesa
C30: =$AE$4 -> 59 | O30: =$AE$5 -> 60

Sheet SUM-SF
Z1: N.o | AA1: ='SUM-F1'!$AA$1 -> 32º Campeonato Brasileiro Individual | AB1: Categoria | AC1: Grp | AD1: Rod | AE1: Mesa | AF1: Jog1 | AG1: Jog2
C2: =$AA$1 -> 32º Campeonato Brasileiro Individual | K2: =$AB$1 -> Categoria | O2: =$AA$1 -> 32º Campeonato Brasileiro Individual | W2: =$AB$1 -> Categoria | Z2: 1 | AA2: Semifinal | AB2: SUB-18 | AC2: 1 | AD2: SF | AE2: =SF!D9 -> 61 | AF2: =SF!E9 -> LEO LIMA (SP) | AG2: =SF!L9 -> RODRIGO (PE)
C3: =$AA$2 -> Semifinal | K3: =$AB$2 -> SUB-18 | O3: =$AA$3 -> Semifinal | W3: =$AB$3 -> SUB-18 | Z3: 2 | AA3: =AA2 -> Semifinal | AB3: =AB2 -> SUB-18 | AC3: 1 | AD3: SF | AE3: =SF!D12 -> 62 | AF3: =SF!E12 -> DANIEL COUTO (RJ) | AG3: =SF!L12 -> WALLACE RINCO (SP)
A5: 1 | C5: Grupo | E5: =$AF$2 -> LEO LIMA (SP) | O5: Grupo | Q5: =$AF$3 -> DANIEL COUTO (RJ)
A6: 1 | C6: =$AC$2 -> 1 | O6: =$AC$3 -> 1
C9: Rodada | O9: Rodada
C10: =$AD$2 -> SF | O10: =$AD$3 -> SF
A11: 1 | E11: =$AG$2 -> RODRIGO (PE) | Q11: =$AG$3 -> WALLACE RINCO (SP)
A12: 1
C13: Mesa | O13: Mesa
C14: =$AE$2 -> 61 | O14: =$AE$3 -> 62

Sheet SUM-FN
Z1: N.o | AA1: ='SUM-F1'!$AA$1 -> 32º Campeonato Brasileiro Individual | AB1: Categoria | AC1: Grp | AD1: Rod | AE1: Mesa | AF1: Jog1 | AG1: Jog2
C2: =$AA$1 -> 32º Campeonato Brasileiro Individual | K2: =$AB$1 -> Categoria | O2: =$AA$1 -> 32º Campeonato Brasileiro Individual | W2: =$AB$1 -> Categoria | Z2: 1 | AA2: Final | AB2: SUB-18 | AC2: 1 | AD2: FN | AE2: =F!D9 -> 63 | AF2: =F!E9 -> LEO LIMA (SP) | AG2: =F!L9 -> DANIEL COUTO (RJ)
C3: =$AA$2 -> Final | K3: =$AB$2 -> SUB-18 | O3: =$AA$3 -> Disputa de 3o Lugar | W3: =$AB$3 -> SUB-18 | Z3: 2 | AA3: Disputa de 3o Lugar | AB3: =AB2 -> SUB-18 | AC3: 1 | AD3: 3/4º | AE3: =F!D16 -> 64 | AF3: =F!E16 -> WALLACE RINCO (SP) | AG3: =F!L16 -> RODRIGO (PE)
A5: 1 | C5: Grupo | E5: =$AF$2 -> LEO LIMA (SP) | O5: Grupo | Q5: =$AF$3 -> WALLACE RINCO (SP)
A6: 1 | C6: =$AC$2 -> 1 | O6: =$AC$3 -> 1
C9: Rodada | O9: Rodada
C10: =$AD$2 -> FN | O10: =$AD$3 -> 3/4º
A11: 1 | E11: =$AG$2 -> DANIEL COUTO (RJ) | Q11: =$AG$3 -> RODRIGO (PE)
A12: 1
C13: Mesa | O13: Mesa
C14: =$AE$2 -> 63 | O14: =$AE$3 -> 64
